{"text_format":"3","workbook":"xlsx","n_sheets":2,"sheets":["Расписание занятий","Список занятий"],"not_rendered":{"defined_names":17},"read":"whole","date_system":"1900"}

{"sheet":"Расписание занятий","index":0,"n_rows":56,"n_cols":9,"rows_kept":56,"merged":[[0,1,1,5],[0,8,1,8]]}
[null,"РАСПИСАНИЕ ЗАНЯТИЙ",{"$nulls":4},"НАЧАЛО \nЗАНЯТИЙ","ИНТЕРВАЛ \nВРЕМЕНИ","Список занятий"]
[{"$nulls":6},"08:00:00","15 МИН"]
[null,"ВРЕМЯ","ВОСКРЕСЕНЬЕ","ПОНЕДЕЛЬНИК","ВТОРНИК","СРЕДА","ЧЕТВЕРГ","ПЯТНИЦА","СУББОТА"]
[null,{"$f":"НачалоРасписания","v":"08:00:00"},{"$f":"IFERROR(INDEX(СписокЗанятий[],MATCH(SUMPRODUCT((СписокЗанятий[ДЕНЬ]=РасписаниеЗанятий[[#Headers],[ВОСКРЕСЕНЬЕ]])*(ROUNDDOWN($B4,10)>=ROUNDDOWN(СписокЗанятий[ВРЕМЯ НАЧАЛА],10))*($B4<=СписокЗанятий[ВРЕМЯ ОКОНЧАНИЯ]),СписокЗанятий[УНИКАЛЬНЫЕ]),СписокЗанятий[УНИКАЛЬНЫЕ],0),2),0)","v":0},{"$f":"IFERROR(INDEX(СписокЗанятий[],MATCH(SUMPRODUCT((СписокЗанятий[ДЕНЬ]=РасписаниеЗанятий[[#Headers],[ПОНЕДЕЛЬНИК]])*(ROUNDDOWN($B4,10)>=ROUNDDOWN(СписокЗанятий[ВРЕМЯ НАЧАЛА],10))*($B4<=СписокЗанятий[ВРЕМЯ ОКОНЧАНИЯ]),СписокЗанятий[УНИКАЛЬНЫЕ]),СписокЗанятий[УНИКАЛЬНЫЕ],0),2),0)","v":0},{"$f":"IFERROR(INDEX(СписокЗанятий[],MATCH(SUMPRODUCT((СписокЗанятий[ДЕНЬ]=РасписаниеЗанятий[[#Headers],[ВТОРНИК]])*(ROUNDDOWN($B4,10)>=ROUNDDOWN(СписокЗанятий[ВРЕМЯ НАЧАЛА],10))*($B4<=СписокЗанятий[ВРЕМЯ ОКОНЧАНИЯ]),СписокЗанятий[УНИКАЛЬНЫЕ]),СписокЗанятий[УНИКАЛЬНЫЕ],0),2),0)","v":0},{"$f":"IFERROR(INDEX(СписокЗанятий[],MATCH(SUMPRODUCT((СписокЗанятий[ДЕНЬ]=РасписаниеЗанятий[[#Headers],[СРЕДА]])*(ROUNDDOWN($B4,10)>=ROUNDDOWN(СписокЗанятий[ВРЕМЯ НАЧАЛА],10))*($B4<=СписокЗанятий[ВРЕМЯ ОКОНЧАНИЯ]),СписокЗанятий[УНИКАЛЬНЫЕ]),СписокЗанятий[УНИКАЛЬНЫЕ],0),2),0)","v":0},{"$f":"IFERROR(INDEX(СписокЗанятий[],MATCH(SUMPRODUCT((СписокЗанятий[ДЕНЬ]=РасписаниеЗанятий[[#Headers],[ЧЕТВЕРГ]])*(ROUNDDOWN($B4,10)>=ROUNDDOWN(СписокЗанятий[ВРЕМЯ НАЧАЛА],10))*($B4<=СписокЗанятий[ВРЕМЯ ОКОНЧАНИЯ]),СписокЗанятий[УНИКАЛЬНЫЕ]),СписокЗанятий[УНИКАЛЬНЫЕ],0),2),0)","v":0},{"$f":"IFERROR(INDEX(СписокЗанятий[],MATCH(SUMPRODUCT((СписокЗанятий[ДЕНЬ]=РасписаниеЗанятий[[#Headers],[ПЯТНИЦА]])*(ROUNDDOWN($B4,10)>=ROUNDDOWN(СписокЗанятий[ВРЕМЯ НАЧАЛА],10))*($B4<=СписокЗанятий[ВРЕМЯ ОКОНЧАНИЯ]),СписокЗанятий[УНИКАЛЬНЫЕ]),СписокЗанятий[УНИКАЛЬНЫЕ],0),2),0)","v":0},{"$f":"IFERROR(INDEX(СписокЗанятий[],MATCH(SUMPRODUCT((СписокЗанятий[ДЕНЬ]=РасписаниеЗанятий[[#Headers],[СУББОТА]])*(ROUNDDOWN($B4,10)>=ROUNDDOWN(СписокЗанятий[ВРЕМЯ НАЧАЛА],10))*($B4<=СписокЗанятий[ВРЕМЯ ОКОНЧАНИЯ]),СписокЗанятий[УНИКАЛЬНЫЕ]),СписокЗанятий[УНИКАЛЬНЫЕ],0),2),0)","v":0}]
[null,{"$f":"B4+Приращение","v":"08:15:00"},{"$f":"IFERROR(INDEX(СписокЗанятий[],MATCH(SUMPRODUCT((СписокЗанятий[ДЕНЬ]=РасписаниеЗанятий[[#Headers],[ВОСКРЕСЕНЬЕ]])*(ROUNDDOWN($B5,10)>=ROUNDDOWN(СписокЗанятий[ВРЕМЯ НАЧАЛА],10))*($B5<=СписокЗанятий[ВРЕМЯ ОКОНЧАНИЯ]),СписокЗанятий[УНИКАЛЬНЫЕ]),СписокЗанятий[УНИКАЛЬНЫЕ],0),2),0)","v":0},{"$f":"IFERROR(INDEX(СписокЗанятий[],MATCH(SUMPRODUCT((СписокЗанятий[ДЕНЬ]=РасписаниеЗанятий[[#Headers],[ПОНЕДЕЛЬНИК]])*(ROUNDDOWN($B5,10)>=ROUNDDOWN(СписокЗанятий[ВРЕМЯ НАЧАЛА],10))*($B5<=СписокЗанятий[ВРЕМЯ ОКОНЧАНИЯ]),СписокЗанятий[УНИКАЛЬНЫЕ]),СписокЗанятий[УНИКАЛЬНЫЕ],0),2),0)","v":"АЛГ"},{"$f":"IFERROR(INDEX(СписокЗанятий[],MATCH(SUMPRODUCT((СписокЗанятий[ДЕНЬ]=РасписаниеЗанятий[[#Headers],[ВТОРНИК]])*(ROUNDDOWN($B5,10)>=ROUNDDOWN(СписокЗанятий[ВРЕМЯ НАЧАЛА],10))*($B5<=СписокЗанятий[ВРЕМЯ ОКОНЧАНИЯ]),СписокЗанятий[УНИКАЛЬНЫЕ]),СписокЗанятий[УНИКАЛЬНЫЕ],0),2),0)","v":0},{"$f":"IFERROR(INDEX(СписокЗанятий[],MATCH(SUMPRODUCT((СписокЗанятий[ДЕНЬ]=РасписаниеЗанятий[[#Headers],[СРЕДА]])*(ROUNDDOWN($B5,10)>=ROUNDDOWN(СписокЗанятий[ВРЕМЯ НАЧАЛА],10))*($B5<=СписокЗанятий[ВРЕМЯ ОКОНЧАНИЯ]),СписокЗанятий[УНИКАЛЬНЫЕ]),СписокЗанятий[УНИКАЛЬНЫЕ],0),2),0)","v":"АЛГ"},{"$f":"IFERROR(INDEX(СписокЗанятий[],MATCH(SUMPRODUCT((СписокЗанятий[ДЕНЬ]=РасписаниеЗанятий[[#Headers],[ЧЕТВЕРГ]])*(ROUNDDOWN($B5,10)>=ROUNDDOWN(СписокЗанятий[ВРЕМЯ НАЧАЛА],10))*($B5<=СписокЗанятий[ВРЕМЯ ОКОНЧАНИЯ]),СписокЗанятий[УНИКАЛЬНЫЕ]),СписокЗанятий[УНИКАЛЬНЫЕ],0),2),0)","v":0},{"$f":"IFERROR(INDEX(СписокЗанятий[],MATCH(SUMPRODUCT((СписокЗанятий[ДЕНЬ]=РасписаниеЗанятий[[#Headers],[ПЯТНИЦА]])*(ROUNDDOWN($B5,10)>=ROUNDDOWN(СписокЗанятий[ВРЕМЯ НАЧАЛА],10))*($B5<=СписокЗанятий[ВРЕМЯ ОКОНЧАНИЯ]),СписокЗанятий[УНИКАЛЬНЫЕ]),СписокЗанятий[УНИКАЛЬНЫЕ],0),2),0)","v":"АЛГ"},{"$f":"IFERROR(INDEX(СписокЗанятий[],MATCH(SUMPRODUCT((СписокЗанятий[ДЕНЬ]=РасписаниеЗанятий[[#Headers],[СУББОТА]])*(ROUNDDOWN($B5,10)>=ROUNDDOWN(СписокЗанятий[ВРЕМЯ НАЧАЛА],10))*($B5<=СписокЗанятий[ВРЕМЯ ОКОНЧАНИЯ]),СписокЗанятий[УНИКАЛЬНЫЕ]),СписокЗанятий[УНИКАЛЬНЫЕ],0),2),0)","v":0}]
[null,"08:30:00",{"$f":"IFERROR(INDEX(СписокЗанятий[],MATCH(SUMPRODUCT((СписокЗанятий[ДЕНЬ]=РасписаниеЗанятий[[#Headers],[ВОСКРЕСЕНЬЕ]])*(ROUNDDOWN($B6,10)>=ROUNDDOWN(СписокЗанятий[ВРЕМЯ НАЧАЛА],10))*($B6<=СписокЗанятий[ВРЕМЯ ОКОНЧАНИЯ]),СписокЗанятий[УНИКАЛЬНЫЕ]),СписокЗанятий[УНИКАЛЬНЫЕ],0),2),0)","v":0},{"$f":"IFERROR(INDEX(СписокЗанятий[],MATCH(SUMPRODUCT((СписокЗанятий[ДЕНЬ]=РасписаниеЗанятий[[#Headers],[ПОНЕДЕЛЬНИК]])*(ROUNDDOWN($B6,10)>=ROUNDDOWN(СписокЗанятий[ВРЕМЯ НАЧАЛА],10))*($B6<=СписокЗанятий[ВРЕМЯ ОКОНЧАНИЯ]),СписокЗанятий[УНИКАЛЬНЫЕ]),СписокЗанятий[УНИКАЛЬНЫЕ],0),2),0)","v":"АЛГ"},{"$f":"IFERROR(INDEX(СписокЗанятий[],MATCH(SUMPRODUCT((СписокЗанятий[ДЕНЬ]=РасписаниеЗанятий[[#Headers],[ВТОРНИК]])*(ROUNDDOWN($B6,10)>=ROUNDDOWN(СписокЗанятий[ВРЕМЯ НАЧАЛА],10))*($B6<=СписокЗанятий[ВРЕМЯ ОКОНЧАНИЯ]),СписокЗанятий[УНИКАЛЬНЫЕ]),СписокЗанятий[УНИКАЛЬНЫЕ],0),2),0)","v":0},{"$f":"IFERROR(INDEX(СписокЗанятий[],MATCH(SUMPRODUCT((СписокЗанятий[ДЕНЬ]=РасписаниеЗанятий[[#Headers],[СРЕДА]])*(ROUNDDOWN($B6,10)>=ROUNDDOWN(СписокЗанятий[ВРЕМЯ НАЧАЛА],10))*($B6<=СписокЗанятий[ВРЕМЯ ОКОНЧАНИЯ]),СписокЗанятий[УНИКАЛЬНЫЕ]),СписокЗанятий[УНИКАЛЬНЫЕ],0),2),0)","v":"АЛГ"},{"$f":"IFERROR(INDEX(СписокЗанятий[],MATCH(SUMPRODUCT((СписокЗанятий[ДЕНЬ]=РасписаниеЗанятий[[#Headers],[ЧЕТВЕРГ]])*(ROUNDDOWN($B6,10)>=ROUNDDOWN(СписокЗанятий[ВРЕМЯ НАЧАЛА],10))*($B6<=СписокЗанятий[ВРЕМЯ ОКОНЧАНИЯ]),СписокЗанятий[УНИКАЛЬНЫЕ]),СписокЗанятий[УНИКАЛЬНЫЕ],0),2),0)","v":0},{"$f":"IFERROR(INDEX(СписокЗанятий[],MATCH(SUMPRODUCT((СписокЗанятий[ДЕНЬ]=РасписаниеЗанятий[[#Headers],[ПЯТНИЦА]])*(ROUNDDOWN($B6,10)>=ROUNDDOWN(СписокЗанятий[ВРЕМЯ НАЧАЛА],10))*($B6<=СписокЗанятий[ВРЕМЯ ОКОНЧАНИЯ]),СписокЗанятий[УНИКАЛЬНЫЕ]),СписокЗанятий[УНИКАЛЬНЫЕ],0),2),0)","v":"АЛГ"},{"$f":"IFERROR(INDEX(СписокЗанятий[],MATCH(SUMPRODUCT((СписокЗанятий[ДЕНЬ]=РасписаниеЗанятий[[#Headers],[СУББОТА]])*(ROUNDDOWN($B6,10)>=ROUNDDOWN(СписокЗанятий[ВРЕМЯ НАЧАЛА],10))*($B6<=СписокЗанятий[ВРЕМЯ ОКОНЧАНИЯ]),СписокЗанятий[УНИКАЛЬНЫЕ]),СписокЗанятий[УНИКАЛЬНЫЕ],0),2),0)","v":0}]
[null,"08:45:00",{"$f":"IFERROR(INDEX(СписокЗанятий[],MATCH(SUMPRODUCT((СписокЗанятий[ДЕНЬ]=РасписаниеЗанятий[[#Headers],[ВОСКРЕСЕНЬЕ]])*(ROUNDDOWN($B7,10)>=ROUNDDOWN(СписокЗанятий[ВРЕМЯ НАЧАЛА],10))*($B7<=СписокЗанятий[ВРЕМЯ ОКОНЧАНИЯ]),СписокЗанятий[УНИКАЛЬНЫЕ]),СписокЗанятий[УНИКАЛЬНЫЕ],0),2),0)","v":0},{"$f":"IFERROR(INDEX(СписокЗанятий[],MATCH(SUMPRODUCT((СписокЗанятий[ДЕНЬ]=РасписаниеЗанятий[[#Headers],[ПОНЕДЕЛЬНИК]])*(ROUNDDOWN($B7,10)>=ROUNDDOWN(СписокЗанятий[ВРЕМЯ НАЧАЛА],10))*($B7<=СписокЗанятий[ВРЕМЯ ОКОНЧАНИЯ]),СписокЗанятий[УНИКАЛЬНЫЕ]),СписокЗанятий[УНИКАЛЬНЫЕ],0),2),0)","v":"АЛГ"},{"$f":"IFERROR(INDEX(СписокЗанятий[],MATCH(SUMPRODUCT((СписокЗанятий[ДЕНЬ]=РасписаниеЗанятий[[#Headers],[ВТОРНИК]])*(ROUNDDOWN($B7,10)>=ROUNDDOWN(СписокЗанятий[ВРЕМЯ НАЧАЛА],10))*($B7<=СписокЗанятий[ВРЕМЯ ОКОНЧАНИЯ]),СписокЗанятий[УНИКАЛЬНЫЕ]),СписокЗанятий[УНИКАЛЬНЫЕ],0),2),0)","v":0},{"$f":"IFERROR(INDEX(СписокЗанятий[],MATCH(SUMPRODUCT((СписокЗанятий[ДЕНЬ]=РасписаниеЗанятий[[#Headers],[СРЕДА]])*(ROUNDDOWN($B7,10)>=ROUNDDOWN(СписокЗанятий[ВРЕМЯ НАЧАЛА],10))*($B7<=СписокЗанятий[ВРЕМЯ ОКОНЧАНИЯ]),СписокЗанятий[УНИКАЛЬНЫЕ]),СписокЗанятий[УНИКАЛЬНЫЕ],0),2),0)","v":"АЛГ"},{"$f":"IFERROR(INDEX(СписокЗанятий[],MATCH(SUMPRODUCT((СписокЗанятий[ДЕНЬ]=РасписаниеЗанятий[[#Headers],[ЧЕТВЕРГ]])*(ROUNDDOWN($B7,10)>=ROUNDDOWN(СписокЗанятий[ВРЕМЯ НАЧАЛА],10))*($B7<=СписокЗанятий[ВРЕМЯ ОКОНЧАНИЯ]),СписокЗанятий[УНИКАЛЬНЫЕ]),СписокЗанятий[УНИКАЛЬНЫЕ],0),2),0)","v":0},{"$f":"IFERROR(INDEX(СписокЗанятий[],MATCH(SUMPRODUCT((СписокЗанятий[ДЕНЬ]=РасписаниеЗанятий[[#Headers],[ПЯТНИЦА]])*(ROUNDDOWN($B7,10)>=ROUNDDOWN(СписокЗанятий[ВРЕМЯ НАЧАЛА],10))*($B7<=СписокЗанятий[ВРЕМЯ ОКОНЧАНИЯ]),СписокЗанятий[УНИКАЛЬНЫЕ]),СписокЗанятий[УНИКАЛЬНЫЕ],0),2),0)","v":"АЛГ"},{"$f":"IFERROR(INDEX(СписокЗанятий[],MATCH(SUMPRODUCT((СписокЗанятий[ДЕНЬ]=РасписаниеЗанятий[[#Headers],[СУББОТА]])*(ROUNDDOWN($B7,10)>=ROUNDDOWN(СписокЗанятий[ВРЕМЯ НАЧАЛА],10))*($B7<=СписокЗанятий[ВРЕМЯ ОКОНЧАНИЯ]),СписокЗанятий[УНИКАЛЬНЫЕ]),СписокЗанятий[УНИКАЛЬНЫЕ],0),2),0)","v":0}]
[null,"09:00:00",{"$f":"IFERROR(INDEX(СписокЗанятий[],MATCH(SUMPRODUCT((СписокЗанятий[ДЕНЬ]=РасписаниеЗанятий[[#Headers],[ВОСКРЕСЕНЬЕ]])*(ROUNDDOWN($B8,10)>=ROUNDDOWN(СписокЗанятий[ВРЕМЯ НАЧАЛА],10))*($B8<=СписокЗанятий[ВРЕМЯ ОКОНЧАНИЯ]),СписокЗанятий[УНИКАЛЬНЫЕ]),СписокЗанятий[УНИКАЛЬНЫЕ],0),2),0)","v":0},{"$f":"IFERROR(INDEX(СписокЗанятий[],MATCH(SUMPRODUCT((СписокЗанятий[ДЕНЬ]=РасписаниеЗанятий[[#Headers],[ПОНЕДЕЛЬНИК]])*(ROUNDDOWN($B8,10)>=ROUNDDOWN(СписокЗанятий[ВРЕМЯ НАЧАЛА],10))*($B8<=СписокЗанятий[ВРЕМЯ ОКОНЧАНИЯ]),СписокЗанятий[УНИКАЛЬНЫЕ]),СписокЗанятий[УНИКАЛЬНЫЕ],0),2),0)","v":"АЛГ"},{"$f":"IFERROR(INDEX(СписокЗанятий[],MATCH(SUMPRODUCT((СписокЗанятий[ДЕНЬ]=РасписаниеЗанятий[[#Headers],[ВТОРНИК]])*(ROUNDDOWN($B8,10)>=ROUNDDOWN(СписокЗанятий[ВРЕМЯ НАЧАЛА],10))*($B8<=СписокЗанятий[ВРЕМЯ ОКОНЧАНИЯ]),СписокЗанятий[УНИКАЛЬНЫЕ]),СписокЗанятий[УНИКАЛЬНЫЕ],0),2),0)","v":0},{"$f":"IFERROR(INDEX(СписокЗанятий[],MATCH(SUMPRODUCT((СписокЗанятий[ДЕНЬ]=РасписаниеЗанятий[[#Headers],[СРЕДА]])*(ROUNDDOWN($B8,10)>=ROUNDDOWN(СписокЗанятий[ВРЕМЯ НАЧАЛА],10))*($B8<=СписокЗанятий[ВРЕМЯ ОКОНЧАНИЯ]),СписокЗанятий[УНИКАЛЬНЫЕ]),СписокЗанятий[УНИКАЛЬНЫЕ],0),2),0)","v":"АЛГ"},{"$f":"IFERROR(INDEX(СписокЗанятий[],MATCH(SUMPRODUCT((СписокЗанятий[ДЕНЬ]=РасписаниеЗанятий[[#Headers],[ЧЕТВЕРГ]])*(ROUNDDOWN($B8,10)>=ROUNDDOWN(СписокЗанятий[ВРЕМЯ НАЧАЛА],10))*($B8<=СписокЗанятий[ВРЕМЯ ОКОНЧАНИЯ]),СписокЗанятий[УНИКАЛЬНЫЕ]),СписокЗанятий[УНИКАЛЬНЫЕ],0),2),0)","v":0},{"$f":"IFERROR(INDEX(СписокЗанятий[],MATCH(SUMPRODUCT((СписокЗанятий[ДЕНЬ]=РасписаниеЗанятий[[#Headers],[ПЯТНИЦА]])*(ROUNDDOWN($B8,10)>=ROUNDDOWN(СписокЗанятий[ВРЕМЯ НАЧАЛА],10))*($B8<=СписокЗанятий[ВРЕМЯ ОКОНЧАНИЯ]),СписокЗанятий[УНИКАЛЬНЫЕ]),СписокЗанятий[УНИКАЛЬНЫЕ],0),2),0)","v":"АЛГ"},{"$f":"IFERROR(INDEX(СписокЗанятий[],MATCH(SUMPRODUCT((СписокЗанятий[ДЕНЬ]=РасписаниеЗанятий[[#Headers],[СУББОТА]])*(ROUNDDOWN($B8,10)>=ROUNDDOWN(СписокЗанятий[ВРЕМЯ НАЧАЛА],10))*($B8<=СписокЗанятий[ВРЕМЯ ОКОНЧАНИЯ]),СписокЗанятий[УНИКАЛЬНЫЕ]),СписокЗанятий[УНИКАЛЬНЫЕ],0),2),0)","v":0}]
[null,{"$f":"B8+Приращение","v":"09:15:00"},{"$f":"IFERROR(INDEX(СписокЗанятий[],MATCH(SUMPRODUCT((СписокЗанятий[ДЕНЬ]=РасписаниеЗанятий[[#Headers],[ВОСКРЕСЕНЬЕ]])*(ROUNDDOWN($B9,10)>=ROUNDDOWN(СписокЗанятий[ВРЕМЯ НАЧАЛА],10))*($B9<=СписокЗанятий[ВРЕМЯ ОКОНЧАНИЯ]),СписокЗанятий[УНИКАЛЬНЫЕ]),СписокЗанятий[УНИКАЛЬНЫЕ],0),2),0)","v":0},{"$f":"IFERROR(INDEX(СписокЗанятий[],MATCH(SUMPRODUCT((СписокЗанятий[ДЕНЬ]=РасписаниеЗанятий[[#Headers],[ПОНЕДЕЛЬНИК]])*(ROUNDDOWN($B9,10)>=ROUNDDOWN(СписокЗанятий[ВРЕМЯ НАЧАЛА],10))*($B9<=СписокЗанятий[ВРЕМЯ ОКОНЧАНИЯ]),СписокЗанятий[УНИКАЛЬНЫЕ]),СписокЗанятий[УНИКАЛЬНЫЕ],0),2),0)","v":"АЛГ"},{"$f":"IFERROR(INDEX(СписокЗанятий[],MATCH(SUMPRODUCT((СписокЗанятий[ДЕНЬ]=РасписаниеЗанятий[[#Headers],[ВТОРНИК]])*(ROUNDDOWN($B9,10)>=ROUNDDOWN(СписокЗанятий[ВРЕМЯ НАЧАЛА],10))*($B9<=СписокЗанятий[ВРЕМЯ ОКОНЧАНИЯ]),СписокЗанятий[УНИКАЛЬНЫЕ]),СписокЗанятий[УНИКАЛЬНЫЕ],0),2),0)","v":0},{"$f":"IFERROR(INDEX(СписокЗанятий[],MATCH(SUMPRODUCT((СписокЗанятий[ДЕНЬ]=РасписаниеЗанятий[[#Headers],[СРЕДА]])*(ROUNDDOWN($B9,10)>=ROUNDDOWN(СписокЗанятий[ВРЕМЯ НАЧАЛА],10))*($B9<=СписокЗанятий[ВРЕМЯ ОКОНЧАНИЯ]),СписокЗанятий[УНИКАЛЬНЫЕ]),СписокЗанятий[УНИКАЛЬНЫЕ],0),2),0)","v":"АЛГ"},{"$f":"IFERROR(INDEX(СписокЗанятий[],MATCH(SUMPRODUCT((СписокЗанятий[ДЕНЬ]=РасписаниеЗанятий[[#Headers],[ЧЕТВЕРГ]])*(ROUNDDOWN($B9,10)>=ROUNDDOWN(СписокЗанятий[ВРЕМЯ НАЧАЛА],10))*($B9<=СписокЗанятий[ВРЕМЯ ОКОНЧАНИЯ]),СписокЗанятий[УНИКАЛЬНЫЕ]),СписокЗанятий[УНИКАЛЬНЫЕ],0),2),0)","v":0},{"$f":"IFERROR(INDEX(СписокЗанятий[],MATCH(SUMPRODUCT((СписокЗанятий[ДЕНЬ]=РасписаниеЗанятий[[#Headers],[ПЯТНИЦА]])*(ROUNDDOWN($B9,10)>=ROUNDDOWN(СписокЗанятий[ВРЕМЯ НАЧАЛА],10))*($B9<=СписокЗанятий[ВРЕМЯ ОКОНЧАНИЯ]),СписокЗанятий[УНИКАЛЬНЫЕ]),СписокЗанятий[УНИКАЛЬНЫЕ],0),2),0)","v":"АЛГ"},{"$f":"IFERROR(INDEX(СписокЗанятий[],MATCH(SUMPRODUCT((СписокЗанятий[ДЕНЬ]=РасписаниеЗанятий[[#Headers],[СУББОТА]])*(ROUNDDOWN($B9,10)>=ROUNDDOWN(СписокЗанятий[ВРЕМЯ НАЧАЛА],10))*($B9<=СписокЗанятий[ВРЕМЯ ОКОНЧАНИЯ]),СписокЗанятий[УНИКАЛЬНЫЕ]),СписокЗанятий[УНИКАЛЬНЫЕ],0),2),0)","v":0}]
[null,"09:30:00",{"$f":"IFERROR(INDEX(СписокЗанятий[],MATCH(SUMPRODUCT((СписокЗанятий[ДЕНЬ]=РасписаниеЗанятий[[#Headers],[ВОСКРЕСЕНЬЕ]])*(ROUNDDOWN($B10,10)>=ROUNDDOWN(СписокЗанятий[ВРЕМЯ НАЧАЛА],10))*($B10<=СписокЗанятий[ВРЕМЯ ОКОНЧАНИЯ]),СписокЗанятий[УНИКАЛЬНЫЕ]),СписокЗанятий[УНИКАЛЬНЫЕ],0),2),0)","v":0},{"$f":"IFERROR(INDEX(СписокЗанятий[],MATCH(SUMPRODUCT((СписокЗанятий[ДЕНЬ]=РасписаниеЗанятий[[#Headers],[ПОНЕДЕЛЬНИК]])*(ROUNDDOWN($B10,10)>=ROUNDDOWN(СписокЗанятий[ВРЕМЯ НАЧАЛА],10))*($B10<=СписокЗанятий[ВРЕМЯ ОКОНЧАНИЯ]),СписокЗанятий[УНИКАЛЬНЫЕ]),СписокЗанятий[УНИКАЛЬНЫЕ],0),2),0)","v":0},{"$f":"IFERROR(INDEX(СписокЗанятий[],MATCH(SUMPRODUCT((СписокЗанятий[ДЕНЬ]=РасписаниеЗанятий[[#Headers],[ВТОРНИК]])*(ROUNDDOWN($B10,10)>=ROUNDDOWN(СписокЗанятий[ВРЕМЯ НАЧАЛА],10))*($B10<=СписокЗанятий[ВРЕМЯ ОКОНЧАНИЯ]),СписокЗанятий[УНИКАЛЬНЫЕ]),СписокЗанятий[УНИКАЛЬНЫЕ],0),2),0)","v":0},{"$f":"IFERROR(INDEX(СписокЗанятий[],MATCH(SUMPRODUCT((СписокЗанятий[ДЕНЬ]=РасписаниеЗанятий[[#Headers],[СРЕДА]])*(ROUNDDOWN($B10,10)>=ROUNDDOWN(СписокЗанятий[ВРЕМЯ НАЧАЛА],10))*($B10<=СписокЗанятий[ВРЕМЯ ОКОНЧАНИЯ]),СписокЗанятий[УНИКАЛЬНЫЕ]),СписокЗанятий[УНИКАЛЬНЫЕ],0),2),0)","v":0},{"$f":"IFERROR(INDEX(СписокЗанятий[],MATCH(SUMPRODUCT((СписокЗанятий[ДЕНЬ]=РасписаниеЗанятий[[#Headers],[ЧЕТВЕРГ]])*(ROUNDDOWN($B10,10)>=ROUNDDOWN(СписокЗанятий[ВРЕМЯ НАЧАЛА],10))*($B10<=СписокЗанятий[ВРЕМЯ ОКОНЧАНИЯ]),СписокЗанятий[УНИКАЛЬНЫЕ]),СписокЗанятий[УНИКАЛЬНЫЕ],0),2),0)","v":0},{"$f":"IFERROR(INDEX(СписокЗанятий[],MATCH(SUMPRODUCT((СписокЗанятий[ДЕНЬ]=РасписаниеЗанятий[[#Headers],[ПЯТНИЦА]])*(ROUNDDOWN($B10,10)>=ROUNDDOWN(СписокЗанятий[ВРЕМЯ НАЧАЛА],10))*($B10<=СписокЗанятий[ВРЕМЯ ОКОНЧАНИЯ]),СписокЗанятий[УНИКАЛЬНЫЕ]),СписокЗанятий[УНИКАЛЬНЫЕ],0),2),0)","v":0},{"$f":"IFERROR(INDEX(СписокЗанятий[],MATCH(SUMPRODUCT((СписокЗанятий[ДЕНЬ]=РасписаниеЗанятий[[#Headers],[СУББОТА]])*(ROUNDDOWN($B10,10)>=ROUNDDOWN(СписокЗанятий[ВРЕМЯ НАЧАЛА],10))*($B10<=СписокЗанятий[ВРЕМЯ ОКОНЧАНИЯ]),СписокЗанятий[УНИКАЛЬНЫЕ]),СписокЗанятий[УНИКАЛЬНЫЕ],0),2),0)","v":0}]
[null,"09:45:00",{"$f":"IFERROR(INDEX(СписокЗанятий[],MATCH(SUMPRODUCT((СписокЗанятий[ДЕНЬ]=РасписаниеЗанятий[[#Headers],[ВОСКРЕСЕНЬЕ]])*(ROUNDDOWN($B11,10)>=ROUNDDOWN(СписокЗанятий[ВРЕМЯ НАЧАЛА],10))*($B11<=СписокЗанятий[ВРЕМЯ ОКОНЧАНИЯ]),СписокЗанятий[УНИКАЛЬНЫЕ]),СписокЗанятий[УНИКАЛЬНЫЕ],0),2),0)","v":0},{"$f":"IFERROR(INDEX(СписокЗанятий[],MATCH(SUMPRODUCT((СписокЗанятий[ДЕНЬ]=РасписаниеЗанятий[[#Headers],[ПОНЕДЕЛЬНИК]])*(ROUNDDOWN($B11,10)>=ROUNDDOWN(СписокЗанятий[ВРЕМЯ НАЧАЛА],10))*($B11<=СписокЗанятий[ВРЕМЯ ОКОНЧАНИЯ]),СписокЗанятий[УНИКАЛЬНЫЕ]),СписокЗанятий[УНИКАЛЬНЫЕ],0),2),0)","v":0},{"$f":"IFERROR(INDEX(СписокЗанятий[],MATCH(SUMPRODUCT((СписокЗанятий[ДЕНЬ]=РасписаниеЗанятий[[#Headers],[ВТОРНИК]])*(ROUNDDOWN($B11,10)>=ROUNDDOWN(СписокЗанятий[ВРЕМЯ НАЧАЛА],10))*($B11<=СписокЗанятий[ВРЕМЯ ОКОНЧАНИЯ]),СписокЗанятий[УНИКАЛЬНЫЕ]),СписокЗанятий[УНИКАЛЬНЫЕ],0),2),0)","v":0},{"$f":"IFERROR(INDEX(СписокЗанятий[],MATCH(SUMPRODUCT((СписокЗанятий[ДЕНЬ]=РасписаниеЗанятий[[#Headers],[СРЕДА]])*(ROUNDDOWN($B11,10)>=ROUNDDOWN(СписокЗанятий[ВРЕМЯ НАЧАЛА],10))*($B11<=СписокЗанятий[ВРЕМЯ ОКОНЧАНИЯ]),СписокЗанятий[УНИКАЛЬНЫЕ]),СписокЗанятий[УНИКАЛЬНЫЕ],0),2),0)","v":0},{"$f":"IFERROR(INDEX(СписокЗанятий[],MATCH(SUMPRODUCT((СписокЗанятий[ДЕНЬ]=РасписаниеЗанятий[[#Headers],[ЧЕТВЕРГ]])*(ROUNDDOWN($B11,10)>=ROUNDDOWN(СписокЗанятий[ВРЕМЯ НАЧАЛА],10))*($B11<=СписокЗанятий[ВРЕМЯ ОКОНЧАНИЯ]),СписокЗанятий[УНИКАЛЬНЫЕ]),СписокЗанятий[УНИКАЛЬНЫЕ],0),2),0)","v":0},{"$f":"IFERROR(INDEX(СписокЗанятий[],MATCH(SUMPRODUCT((СписокЗанятий[ДЕНЬ]=РасписаниеЗанятий[[#Headers],[ПЯТНИЦА]])*(ROUNDDOWN($B11,10)>=ROUNDDOWN(СписокЗанятий[ВРЕМЯ НАЧАЛА],10))*($B11<=СписокЗанятий[ВРЕМЯ ОКОНЧАНИЯ]),СписокЗанятий[УНИКАЛЬНЫЕ]),СписокЗанятий[УНИКАЛЬНЫЕ],0),2),0)","v":0},{"$f":"IFERROR(INDEX(СписокЗанятий[],MATCH(SUMPRODUCT((СписокЗанятий[ДЕНЬ]=РасписаниеЗанятий[[#Headers],[СУББОТА]])*(ROUNDDOWN($B11,10)>=ROUNDDOWN(СписокЗанятий[ВРЕМЯ НАЧАЛА],10))*($B11<=СписокЗанятий[ВРЕМЯ ОКОНЧАНИЯ]),СписокЗанятий[УНИКАЛЬНЫЕ]),СписокЗанятий[УНИКАЛЬНЫЕ],0),2),0)","v":0}]
[null,"10:00:00",{"$f":"IFERROR(INDEX(СписокЗанятий[],MATCH(SUMPRODUCT((СписокЗанятий[ДЕНЬ]=РасписаниеЗанятий[[#Headers],[ВОСКРЕСЕНЬЕ]])*(ROUNDDOWN($B12,10)>=ROUNDDOWN(СписокЗанятий[ВРЕМЯ НАЧАЛА],10))*($B12<=СписокЗанятий[ВРЕМЯ ОКОНЧАНИЯ]),СписокЗанятий[УНИКАЛЬНЫЕ]),СписокЗанятий[УНИКАЛЬНЫЕ],0),2),0)","v":0},{"$f":"IFERROR(INDEX(СписокЗанятий[],MATCH(SUMPRODUCT((СписокЗанятий[ДЕНЬ]=РасписаниеЗанятий[[#Headers],[ПОНЕДЕЛЬНИК]])*(ROUNDDOWN($B12,10)>=ROUNDDOWN(СписокЗанятий[ВРЕМЯ НАЧАЛА],10))*($B12<=СписокЗанятий[ВРЕМЯ ОКОНЧАНИЯ]),СписокЗанятий[УНИКАЛЬНЫЕ]),СписокЗанятий[УНИКАЛЬНЫЕ],0),2),0)","v":0},{"$f":"IFERROR(INDEX(СписокЗанятий[],MATCH(SUMPRODUCT((СписокЗанятий[ДЕНЬ]=РасписаниеЗанятий[[#Headers],[ВТОРНИК]])*(ROUNDDOWN($B12,10)>=ROUNDDOWN(СписокЗанятий[ВРЕМЯ НАЧАЛА],10))*($B12<=СписокЗанятий[ВРЕМЯ ОКОНЧАНИЯ]),СписокЗанятий[УНИКАЛЬНЫЕ]),СписокЗанятий[УНИКАЛЬНЫЕ],0),2),0)","v":0},{"$f":"IFERROR(INDEX(СписокЗанятий[],MATCH(SUMPRODUCT((СписокЗанятий[ДЕНЬ]=РасписаниеЗанятий[[#Headers],[СРЕДА]])*(ROUNDDOWN($B12,10)>=ROUNDDOWN(СписокЗанятий[ВРЕМЯ НАЧАЛА],10))*($B12<=СписокЗанятий[ВРЕМЯ ОКОНЧАНИЯ]),СписокЗанятий[УНИКАЛЬНЫЕ]),СписокЗанятий[УНИКАЛЬНЫЕ],0),2),0)","v":0},{"$f":"IFERROR(INDEX(СписокЗанятий[],MATCH(SUMPRODUCT((СписокЗанятий[ДЕНЬ]=РасписаниеЗанятий[[#Headers],[ЧЕТВЕРГ]])*(ROUNDDOWN($B12,10)>=ROUNDDOWN(СписокЗанятий[ВРЕМЯ НАЧАЛА],10))*($B12<=СписокЗанятий[ВРЕМЯ ОКОНЧАНИЯ]),СписокЗанятий[УНИКАЛЬНЫЕ]),СписокЗанятий[УНИКАЛЬНЫЕ],0),2),0)","v":0},{"$f":"IFERROR(INDEX(СписокЗанятий[],MATCH(SUMPRODUCT((СписокЗанятий[ДЕНЬ]=РасписаниеЗанятий[[#Headers],[ПЯТНИЦА]])*(ROUNDDOWN($B12,10)>=ROUNDDOWN(СписокЗанятий[ВРЕМЯ НАЧАЛА],10))*($B12<=СписокЗанятий[ВРЕМЯ ОКОНЧАНИЯ]),СписокЗанятий[УНИКАЛЬНЫЕ]),СписокЗанятий[УНИКАЛЬНЫЕ],0),2),0)","v":0},{"$f":"IFERROR(INDEX(СписокЗанятий[],MATCH(SUMPRODUCT((СписокЗанятий[ДЕНЬ]=РасписаниеЗанятий[[#Headers],[СУББОТА]])*(ROUNDDOWN($B12,10)>=ROUNDDOWN(СписокЗанятий[ВРЕМЯ НАЧАЛА],10))*($B12<=СписокЗанятий[ВРЕМЯ ОКОНЧАНИЯ]),СписокЗанятий[УНИКАЛЬНЫЕ]),СписокЗанятий[УНИКАЛЬНЫЕ],0),2),0)","v":0}]
[null,"10:15:00",{"$f":"IFERROR(INDEX(СписокЗанятий[],MATCH(SUMPRODUCT((СписокЗанятий[ДЕНЬ]=РасписаниеЗанятий[[#Headers],[ВОСКРЕСЕНЬЕ]])*(ROUNDDOWN($B13,10)>=ROUNDDOWN(СписокЗанятий[ВРЕМЯ НАЧАЛА],10))*($B13<=СписокЗанятий[ВРЕМЯ ОКОНЧАНИЯ]),СписокЗанятий[УНИКАЛЬНЫЕ]),СписокЗанятий[УНИКАЛЬНЫЕ],0),2),0)","v":0},{"$f":"IFERROR(INDEX(СписокЗанятий[],MATCH(SUMPRODUCT((СписокЗанятий[ДЕНЬ]=РасписаниеЗанятий[[#Headers],[ПОНЕДЕЛЬНИК]])*(ROUNDDOWN($B13,10)>=ROUNDDOWN(СписокЗанятий[ВРЕМЯ НАЧАЛА],10))*($B13<=СписокЗанятий[ВРЕМЯ ОКОНЧАНИЯ]),СписокЗанятий[УНИКАЛЬНЫЕ]),СписокЗанятий[УНИКАЛЬНЫЕ],0),2),0)","v":0},{"$f":"IFERROR(INDEX(СписокЗанятий[],MATCH(SUMPRODUCT((СписокЗанятий[ДЕНЬ]=РасписаниеЗанятий[[#Headers],[ВТОРНИК]])*(ROUNDDOWN($B13,10)>=ROUNDDOWN(СписокЗанятий[ВРЕМЯ НАЧАЛА],10))*($B13<=СписокЗанятий[ВРЕМЯ ОКОНЧАНИЯ]),СписокЗанятий[УНИКАЛЬНЫЕ]),СписокЗанятий[УНИКАЛЬНЫЕ],0),2),0)","v":0},{"$f":"IFERROR(INDEX(СписокЗанятий[],MATCH(SUMPRODUCT((СписокЗанятий[ДЕНЬ]=РасписаниеЗанятий[[#Headers],[СРЕДА]])*(ROUNDDOWN($B13,10)>=ROUNDDOWN(СписокЗанятий[ВРЕМЯ НАЧАЛА],10))*($B13<=СписокЗанятий[ВРЕМЯ ОКОНЧАНИЯ]),СписокЗанятий[УНИКАЛЬНЫЕ]),СписокЗанятий[УНИКАЛЬНЫЕ],0),2),0)","v":0},{"$f":"IFERROR(INDEX(СписокЗанятий[],MATCH(SUMPRODUCT((СписокЗанятий[ДЕНЬ]=РасписаниеЗанятий[[#Headers],[ЧЕТВЕРГ]])*(ROUNDDOWN($B13,10)>=ROUNDDOWN(СписокЗанятий[ВРЕМЯ НАЧАЛА],10))*($B13<=СписокЗанятий[ВРЕМЯ ОКОНЧАНИЯ]),СписокЗанятий[УНИКАЛЬНЫЕ]),СписокЗанятий[УНИКАЛЬНЫЕ],0),2),0)","v":0},{"$f":"IFERROR(INDEX(СписокЗанятий[],MATCH(SUMPRODUCT((СписокЗанятий[ДЕНЬ]=РасписаниеЗанятий[[#Headers],[ПЯТНИЦА]])*(ROUNDDOWN($B13,10)>=ROUNDDOWN(СписокЗанятий[ВРЕМЯ НАЧАЛА],10))*($B13<=СписокЗанятий[ВРЕМЯ ОКОНЧАНИЯ]),СписокЗанятий[УНИКАЛЬНЫЕ]),СписокЗанятий[УНИКАЛЬНЫЕ],0),2),0)","v":0},{"$f":"IFERROR(INDEX(СписокЗанятий[],MATCH(SUMPRODUCT((СписокЗанятий[ДЕНЬ]=РасписаниеЗанятий[[#Headers],[СУББОТА]])*(ROUNDDOWN($B13,10)>=ROUNDDOWN(СписокЗанятий[ВРЕМЯ НАЧАЛА],10))*($B13<=СписокЗанятий[ВРЕМЯ ОКОНЧАНИЯ]),СписокЗанятий[УНИКАЛЬНЫЕ]),СписокЗанятий[УНИКАЛЬНЫЕ],0),2),0)","v":0}]
[null,"10:30:00",{"$f":"IFERROR(INDEX(СписокЗанятий[],MATCH(SUMPRODUCT((СписокЗанятий[ДЕНЬ]=РасписаниеЗанятий[[#Headers],[ВОСКРЕСЕНЬЕ]])*(ROUNDDOWN($B14,10)>=ROUNDDOWN(СписокЗанятий[ВРЕМЯ НАЧАЛА],10))*($B14<=СписокЗанятий[ВРЕМЯ ОКОНЧАНИЯ]),СписокЗанятий[УНИКАЛЬНЫЕ]),СписокЗанятий[УНИКАЛЬНЫЕ],0),2),0)","v":0},{"$f":"IFERROR(INDEX(СписокЗанятий[],MATCH(SUMPRODUCT((СписокЗанятий[ДЕНЬ]=РасписаниеЗанятий[[#Headers],[ПОНЕДЕЛЬНИК]])*(ROUNDDOWN($B14,10)>=ROUNDDOWN(СписокЗанятий[ВРЕМЯ НАЧАЛА],10))*($B14<=СписокЗанятий[ВРЕМЯ ОКОНЧАНИЯ]),СписокЗанятий[УНИКАЛЬНЫЕ]),СписокЗанятий[УНИКАЛЬНЫЕ],0),2),0)","v":0},{"$f":"IFERROR(INDEX(СписокЗанятий[],MATCH(SUMPRODUCT((СписокЗанятий[ДЕНЬ]=РасписаниеЗанятий[[#Headers],[ВТОРНИК]])*(ROUNDDOWN($B14,10)>=ROUNDDOWN(СписокЗанятий[ВРЕМЯ НАЧАЛА],10))*($B14<=СписокЗанятий[ВРЕМЯ ОКОНЧАНИЯ]),СписокЗанятий[УНИКАЛЬНЫЕ]),СписокЗанятий[УНИКАЛЬНЫЕ],0),2),0)","v":0},{"$f":"IFERROR(INDEX(СписокЗанятий[],MATCH(SUMPRODUCT((СписокЗанятий[ДЕНЬ]=РасписаниеЗанятий[[#Headers],[СРЕДА]])*(ROUNDDOWN($B14,10)>=ROUNDDOWN(СписокЗанятий[ВРЕМЯ НАЧАЛА],10))*($B14<=СписокЗанятий[ВРЕМЯ ОКОНЧАНИЯ]),СписокЗанятий[УНИКАЛЬНЫЕ]),СписокЗанятий[УНИКАЛЬНЫЕ],0),2),0)","v":0},{"$f":"IFERROR(INDEX(СписокЗанятий[],MATCH(SUMPRODUCT((СписокЗанятий[ДЕНЬ]=РасписаниеЗанятий[[#Headers],[ЧЕТВЕРГ]])*(ROUNDDOWN($B14,10)>=ROUNDDOWN(СписокЗанятий[ВРЕМЯ НАЧАЛА],10))*($B14<=СписокЗанятий[ВРЕМЯ ОКОНЧАНИЯ]),СписокЗанятий[УНИКАЛЬНЫЕ]),СписокЗанятий[УНИКАЛЬНЫЕ],0),2),0)","v":0},{"$f":"IFERROR(INDEX(СписокЗанятий[],MATCH(SUMPRODUCT((СписокЗанятий[ДЕНЬ]=РасписаниеЗанятий[[#Headers],[ПЯТНИЦА]])*(ROUNDDOWN($B14,10)>=ROUNDDOWN(СписокЗанятий[ВРЕМЯ НАЧАЛА],10))*($B14<=СписокЗанятий[ВРЕМЯ ОКОНЧАНИЯ]),СписокЗанятий[УНИКАЛЬНЫЕ]),СписокЗанятий[УНИКАЛЬНЫЕ],0),2),0)","v":0},{"$f":"IFERROR(INDEX(СписокЗанятий[],MATCH(SUMPRODUCT((СписокЗанятий[ДЕНЬ]=РасписаниеЗанятий[[#Headers],[СУББОТА]])*(ROUNDDOWN($B14,10)>=ROUNDDOWN(СписокЗанятий[ВРЕМЯ НАЧАЛА],10))*($B14<=СписокЗанятий[ВРЕМЯ ОКОНЧАНИЯ]),СписокЗанятий[УНИКАЛЬНЫЕ]),СписокЗанятий[УНИКАЛЬНЫЕ],0),2),0)","v":0}]
[null,"10:45:00",{"$f":"IFERROR(INDEX(СписокЗанятий[],MATCH(SUMPRODUCT((СписокЗанятий[ДЕНЬ]=РасписаниеЗанятий[[#Headers],[ВОСКРЕСЕНЬЕ]])*(ROUNDDOWN($B15,10)>=ROUNDDOWN(СписокЗанятий[ВРЕМЯ НАЧАЛА],10))*($B15<=СписокЗанятий[ВРЕМЯ ОКОНЧАНИЯ]),СписокЗанятий[УНИКАЛЬНЫЕ]),СписокЗанятий[УНИКАЛЬНЫЕ],0),2),0)","v":0},{"$f":"IFERROR(INDEX(СписокЗанятий[],MATCH(SUMPRODUCT((СписокЗанятий[ДЕНЬ]=РасписаниеЗанятий[[#Headers],[ПОНЕДЕЛЬНИК]])*(ROUNDDOWN($B15,10)>=ROUNDDOWN(СписокЗанятий[ВРЕМЯ НАЧАЛА],10))*($B15<=СписокЗанятий[ВРЕМЯ ОКОНЧАНИЯ]),СписокЗанятий[УНИКАЛЬНЫЕ]),СписокЗанятий[УНИКАЛЬНЫЕ],0),2),0)","v":0},{"$f":"IFERROR(INDEX(СписокЗанятий[],MATCH(SUMPRODUCT((СписокЗанятий[ДЕНЬ]=РасписаниеЗанятий[[#Headers],[ВТОРНИК]])*(ROUNDDOWN($B15,10)>=ROUNDDOWN(СписокЗанятий[ВРЕМЯ НАЧАЛА],10))*($B15<=СписокЗанятий[ВРЕМЯ ОКОНЧАНИЯ]),СписокЗанятий[УНИКАЛЬНЫЕ]),СписокЗанятий[УНИКАЛЬНЫЕ],0),2),0)","v":0},{"$f":"IFERROR(INDEX(СписокЗанятий[],MATCH(SUMPRODUCT((СписокЗанятий[ДЕНЬ]=РасписаниеЗанятий[[#Headers],[СРЕДА]])*(ROUNDDOWN($B15,10)>=ROUNDDOWN(СписокЗанятий[ВРЕМЯ НАЧАЛА],10))*($B15<=СписокЗанятий[ВРЕМЯ ОКОНЧАНИЯ]),СписокЗанятий[УНИКАЛЬНЫЕ]),СписокЗанятий[УНИКАЛЬНЫЕ],0),2),0)","v":0},{"$f":"IFERROR(INDEX(СписокЗанятий[],MATCH(SUMPRODUCT((СписокЗанятий[ДЕНЬ]=РасписаниеЗанятий[[#Headers],[ЧЕТВЕРГ]])*(ROUNDDOWN($B15,10)>=ROUNDDOWN(СписокЗанятий[ВРЕМЯ НАЧАЛА],10))*($B15<=СписокЗанятий[ВРЕМЯ ОКОНЧАНИЯ]),СписокЗанятий[УНИКАЛЬНЫЕ]),СписокЗанятий[УНИКАЛЬНЫЕ],0),2),0)","v":0},{"$f":"IFERROR(INDEX(СписокЗанятий[],MATCH(SUMPRODUCT((СписокЗанятий[ДЕНЬ]=РасписаниеЗанятий[[#Headers],[ПЯТНИЦА]])*(ROUNDDOWN($B15,10)>=ROUNDDOWN(СписокЗанятий[ВРЕМЯ НАЧАЛА],10))*($B15<=СписокЗанятий[ВРЕМЯ ОКОНЧАНИЯ]),СписокЗанятий[УНИКАЛЬНЫЕ]),СписокЗанятий[УНИКАЛЬНЫЕ],0),2),0)","v":0},{"$f":"IFERROR(INDEX(СписокЗанятий[],MATCH(SUMPRODUCT((СписокЗанятий[ДЕНЬ]=РасписаниеЗанятий[[#Headers],[СУББОТА]])*(ROUNDDOWN($B15,10)>=ROUNDDOWN(СписокЗанятий[ВРЕМЯ НАЧАЛА],10))*($B15<=СписокЗанятий[ВРЕМЯ ОКОНЧАНИЯ]),СписокЗанятий[УНИКАЛЬНЫЕ]),СписокЗанятий[УНИКАЛЬНЫЕ],0),2),0)","v":0}]
[null,"11:00:00",{"$f":"IFERROR(INDEX(СписокЗанятий[],MATCH(SUMPRODUCT((СписокЗанятий[ДЕНЬ]=РасписаниеЗанятий[[#Headers],[ВОСКРЕСЕНЬЕ]])*(ROUNDDOWN($B16,10)>=ROUNDDOWN(СписокЗанятий[ВРЕМЯ НАЧАЛА],10))*($B16<=СписокЗанятий[ВРЕМЯ ОКОНЧАНИЯ]),СписокЗанятий[УНИКАЛЬНЫЕ]),СписокЗанятий[УНИКАЛЬНЫЕ],0),2),0)","v":0},{"$f":"IFERROR(INDEX(СписокЗанятий[],MATCH(SUMPRODUCT((СписокЗанятий[ДЕНЬ]=РасписаниеЗанятий[[#Headers],[ПОНЕДЕЛЬНИК]])*(ROUNDDOWN($B16,10)>=ROUNDDOWN(СписокЗанятий[ВРЕМЯ НАЧАЛА],10))*($B16<=СписокЗанятий[ВРЕМЯ ОКОНЧАНИЯ]),СписокЗанятий[УНИКАЛЬНЫЕ]),СписокЗанятий[УНИКАЛЬНЫЕ],0),2),0)","v":0},{"$f":"IFERROR(INDEX(СписокЗанятий[],MATCH(SUMPRODUCT((СписокЗанятий[ДЕНЬ]=РасписаниеЗанятий[[#Headers],[ВТОРНИК]])*(ROUNDDOWN($B16,10)>=ROUNDDOWN(СписокЗанятий[ВРЕМЯ НАЧАЛА],10))*($B16<=СписокЗанятий[ВРЕМЯ ОКОНЧАНИЯ]),СписокЗанятий[УНИКАЛЬНЫЕ]),СписокЗанятий[УНИКАЛЬНЫЕ],0),2),0)","v":"ФИЗ"},{"$f":"IFERROR(INDEX(СписокЗанятий[],MATCH(SUMPRODUCT((СписокЗанятий[ДЕНЬ]=РасписаниеЗанятий[[#Headers],[СРЕДА]])*(ROUNDDOWN($B16,10)>=ROUNDDOWN(СписокЗанятий[ВРЕМЯ НАЧАЛА],10))*($B16<=СписокЗанятий[ВРЕМЯ ОКОНЧАНИЯ]),СписокЗанятий[УНИКАЛЬНЫЕ]),СписокЗанятий[УНИКАЛЬНЫЕ],0),2),0)","v":0},{"$f":"IFERROR(INDEX(СписокЗанятий[],MATCH(SUMPRODUCT((СписокЗанятий[ДЕНЬ]=РасписаниеЗанятий[[#Headers],[ЧЕТВЕРГ]])*(ROUNDDOWN($B16,10)>=ROUNDDOWN(СписокЗанятий[ВРЕМЯ НАЧАЛА],10))*($B16<=СписокЗанятий[ВРЕМЯ ОКОНЧАНИЯ]),СписокЗанятий[УНИКАЛЬНЫЕ]),СписокЗанятий[УНИКАЛЬНЫЕ],0),2),0)","v":"ФИЗ"},{"$f":"IFERROR(INDEX(СписокЗанятий[],MATCH(SUMPRODUCT((СписокЗанятий[ДЕНЬ]=РасписаниеЗанятий[[#Headers],[ПЯТНИЦА]])*(ROUNDDOWN($B16,10)>=ROUNDDOWN(СписокЗанятий[ВРЕМЯ НАЧАЛА],10))*($B16<=СписокЗанятий[ВРЕМЯ ОКОНЧАНИЯ]),СписокЗанятий[УНИКАЛЬНЫЕ]),СписокЗанятий[УНИКАЛЬНЫЕ],0),2),0)","v":0},{"$f":"IFERROR(INDEX(СписокЗанятий[],MATCH(SUMPRODUCT((СписокЗанятий[ДЕНЬ]=РасписаниеЗанятий[[#Headers],[СУББОТА]])*(ROUNDDOWN($B16,10)>=ROUNDDOWN(СписокЗанятий[ВРЕМЯ НАЧАЛА],10))*($B16<=СписокЗанятий[ВРЕМЯ ОКОНЧАНИЯ]),СписокЗанятий[УНИКАЛЬНЫЕ]),СписокЗанятий[УНИКАЛЬНЫЕ],0),2),0)","v":0}]
[null,"11:15:00",{"$f":"IFERROR(INDEX(СписокЗанятий[],MATCH(SUMPRODUCT((СписокЗанятий[ДЕНЬ]=РасписаниеЗанятий[[#Headers],[ВОСКРЕСЕНЬЕ]])*(ROUNDDOWN($B17,10)>=ROUNDDOWN(СписокЗанятий[ВРЕМЯ НАЧАЛА],10))*($B17<=СписокЗанятий[ВРЕМЯ ОКОНЧАНИЯ]),СписокЗанятий[УНИКАЛЬНЫЕ]),СписокЗанятий[УНИКАЛЬНЫЕ],0),2),0)","v":0},{"$f":"IFERROR(INDEX(СписокЗанятий[],MATCH(SUMPRODUCT((СписокЗанятий[ДЕНЬ]=РасписаниеЗанятий[[#Headers],[ПОНЕДЕЛЬНИК]])*(ROUNDDOWN($B17,10)>=ROUNDDOWN(СписокЗанятий[ВРЕМЯ НАЧАЛА],10))*($B17<=СписокЗанятий[ВРЕМЯ ОКОНЧАНИЯ]),СписокЗанятий[УНИКАЛЬНЫЕ]),СписокЗанятий[УНИКАЛЬНЫЕ],0),2),0)","v":0},{"$f":"IFERROR(INDEX(СписокЗанятий[],MATCH(SUMPRODUCT((СписокЗанятий[ДЕНЬ]=РасписаниеЗанятий[[#Headers],[ВТОРНИК]])*(ROUNDDOWN($B17,10)>=ROUNDDOWN(СписокЗанятий[ВРЕМЯ НАЧАЛА],10))*($B17<=СписокЗанятий[ВРЕМЯ ОКОНЧАНИЯ]),СписокЗанятий[УНИКАЛЬНЫЕ]),СписокЗанятий[УНИКАЛЬНЫЕ],0),2),0)","v":"ФИЗ"},{"$f":"IFERROR(INDEX(СписокЗанятий[],MATCH(SUMPRODUCT((СписокЗанятий[ДЕНЬ]=РасписаниеЗанятий[[#Headers],[СРЕДА]])*(ROUNDDOWN($B17,10)>=ROUNDDOWN(СписокЗанятий[ВРЕМЯ НАЧАЛА],10))*($B17<=СписокЗанятий[ВРЕМЯ ОКОНЧАНИЯ]),СписокЗанятий[УНИКАЛЬНЫЕ]),СписокЗанятий[УНИКАЛЬНЫЕ],0),2),0)","v":0},{"$f":"IFERROR(INDEX(СписокЗанятий[],MATCH(SUMPRODUCT((СписокЗанятий[ДЕНЬ]=РасписаниеЗанятий[[#Headers],[ЧЕТВЕРГ]])*(ROUNDDOWN($B17,10)>=ROUNDDOWN(СписокЗанятий[ВРЕМЯ НАЧАЛА],10))*($B17<=СписокЗанятий[ВРЕМЯ ОКОНЧАНИЯ]),СписокЗанятий[УНИКАЛЬНЫЕ]),СписокЗанятий[УНИКАЛЬНЫЕ],0),2),0)","v":"ФИЗ"},{"$f":"IFERROR(INDEX(СписокЗанятий[],MATCH(SUMPRODUCT((СписокЗанятий[ДЕНЬ]=РасписаниеЗанятий[[#Headers],[ПЯТНИЦА]])*(ROUNDDOWN($B17,10)>=ROUNDDOWN(СписокЗанятий[ВРЕМЯ НАЧАЛА],10))*($B17<=СписокЗанятий[ВРЕМЯ ОКОНЧАНИЯ]),СписокЗанятий[УНИКАЛЬНЫЕ]),СписокЗанятий[УНИКАЛЬНЫЕ],0),2),0)","v":0},{"$f":"IFERROR(INDEX(СписокЗанятий[],MATCH(SUMPRODUCT((СписокЗанятий[ДЕНЬ]=РасписаниеЗанятий[[#Headers],[СУББОТА]])*(ROUNDDOWN($B17,10)>=ROUNDDOWN(СписокЗанятий[ВРЕМЯ НАЧАЛА],10))*($B17<=СписокЗанятий[ВРЕМЯ ОКОНЧАНИЯ]),СписокЗанятий[УНИКАЛЬНЫЕ]),СписокЗанятий[УНИКАЛЬНЫЕ],0),2),0)","v":0}]
[null,"11:30:00",{"$f":"IFERROR(INDEX(СписокЗанятий[],MATCH(SUMPRODUCT((СписокЗанятий[ДЕНЬ]=РасписаниеЗанятий[[#Headers],[ВОСКРЕСЕНЬЕ]])*(ROUNDDOWN($B18,10)>=ROUNDDOWN(СписокЗанятий[ВРЕМЯ НАЧАЛА],10))*($B18<=СписокЗанятий[ВРЕМЯ ОКОНЧАНИЯ]),СписокЗанятий[УНИКАЛЬНЫЕ]),СписокЗанятий[УНИКАЛЬНЫЕ],0),2),0)","v":0},{"$f":"IFERROR(INDEX(СписокЗанятий[],MATCH(SUMPRODUCT((СписокЗанятий[ДЕНЬ]=РасписаниеЗанятий[[#Headers],[ПОНЕДЕЛЬНИК]])*(ROUNDDOWN($B18,10)>=ROUNDDOWN(СписокЗанятий[ВРЕМЯ НАЧАЛА],10))*($B18<=СписокЗанятий[ВРЕМЯ ОКОНЧАНИЯ]),СписокЗанятий[УНИКАЛЬНЫЕ]),СписокЗанятий[УНИКАЛЬНЫЕ],0),2),0)","v":0},{"$f":"IFERROR(INDEX(СписокЗанятий[],MATCH(SUMPRODUCT((СписокЗанятий[ДЕНЬ]=РасписаниеЗанятий[[#Headers],[ВТОРНИК]])*(ROUNDDOWN($B18,10)>=ROUNDDOWN(СписокЗанятий[ВРЕМЯ НАЧАЛА],10))*($B18<=СписокЗанятий[ВРЕМЯ ОКОНЧАНИЯ]),СписокЗанятий[УНИКАЛЬНЫЕ]),СписокЗанятий[УНИКАЛЬНЫЕ],0),2),0)","v":"ФИЗ"},{"$f":"IFERROR(INDEX(СписокЗанятий[],MATCH(SUMPRODUCT((СписокЗанятий[ДЕНЬ]=РасписаниеЗанятий[[#Headers],[СРЕДА]])*(ROUNDDOWN($B18,10)>=ROUNDDOWN(СписокЗанятий[ВРЕМЯ НАЧАЛА],10))*($B18<=СписокЗанятий[ВРЕМЯ ОКОНЧАНИЯ]),СписокЗанятий[УНИКАЛЬНЫЕ]),СписокЗанятий[УНИКАЛЬНЫЕ],0),2),0)","v":0},{"$f":"IFERROR(INDEX(СписокЗанятий[],MATCH(SUMPRODUCT((СписокЗанятий[ДЕНЬ]=РасписаниеЗанятий[[#Headers],[ЧЕТВЕРГ]])*(ROUNDDOWN($B18,10)>=ROUNDDOWN(СписокЗанятий[ВРЕМЯ НАЧАЛА],10))*($B18<=СписокЗанятий[ВРЕМЯ ОКОНЧАНИЯ]),СписокЗанятий[УНИКАЛЬНЫЕ]),СписокЗанятий[УНИКАЛЬНЫЕ],0),2),0)","v":"ФИЗ"},{"$f":"IFERROR(INDEX(СписокЗанятий[],MATCH(SUMPRODUCT((СписокЗанятий[ДЕНЬ]=РасписаниеЗанятий[[#Headers],[ПЯТНИЦА]])*(ROUNDDOWN($B18,10)>=ROUNDDOWN(СписокЗанятий[ВРЕМЯ НАЧАЛА],10))*($B18<=СписокЗанятий[ВРЕМЯ ОКОНЧАНИЯ]),СписокЗанятий[УНИКАЛЬНЫЕ]),СписокЗанятий[УНИКАЛЬНЫЕ],0),2),0)","v":0},{"$f":"IFERROR(INDEX(СписокЗанятий[],MATCH(SUMPRODUCT((СписокЗанятий[ДЕНЬ]=РасписаниеЗанятий[[#Headers],[СУББОТА]])*(ROUNDDOWN($B18,10)>=ROUNDDOWN(СписокЗанятий[ВРЕМЯ НАЧАЛА],10))*($B18<=СписокЗанятий[ВРЕМЯ ОКОНЧАНИЯ]),СписокЗанятий[УНИКАЛЬНЫЕ]),СписокЗанятий[УНИКАЛЬНЫЕ],0),2),0)","v":0}]
[null,"11:45:00",{"$f":"IFERROR(INDEX(СписокЗанятий[],MATCH(SUMPRODUCT((СписокЗанятий[ДЕНЬ]=РасписаниеЗанятий[[#Headers],[ВОСКРЕСЕНЬЕ]])*(ROUNDDOWN($B19,10)>=ROUNDDOWN(СписокЗанятий[ВРЕМЯ НАЧАЛА],10))*($B19<=СписокЗанятий[ВРЕМЯ ОКОНЧАНИЯ]),СписокЗанятий[УНИКАЛЬНЫЕ]),СписокЗанятий[УНИКАЛЬНЫЕ],0),2),0)","v":0},{"$f":"IFERROR(INDEX(СписокЗанятий[],MATCH(SUMPRODUCT((СписокЗанятий[ДЕНЬ]=РасписаниеЗанятий[[#Headers],[ПОНЕДЕЛЬНИК]])*(ROUNDDOWN($B19,10)>=ROUNDDOWN(СписокЗанятий[ВРЕМЯ НАЧАЛА],10))*($B19<=СписокЗанятий[ВРЕМЯ ОКОНЧАНИЯ]),СписокЗанятий[УНИКАЛЬНЫЕ]),СписокЗанятий[УНИКАЛЬНЫЕ],0),2),0)","v":0},{"$f":"IFERROR(INDEX(СписокЗанятий[],MATCH(SUMPRODUCT((СписокЗанятий[ДЕНЬ]=РасписаниеЗанятий[[#Headers],[ВТОРНИК]])*(ROUNDDOWN($B19,10)>=ROUNDDOWN(СписокЗанятий[ВРЕМЯ НАЧАЛА],10))*($B19<=СписокЗанятий[ВРЕМЯ ОКОНЧАНИЯ]),СписокЗанятий[УНИКАЛЬНЫЕ]),СписокЗанятий[УНИКАЛЬНЫЕ],0),2),0)","v":"ФИЗ"},{"$f":"IFERROR(INDEX(СписокЗанятий[],MATCH(SUMPRODUCT((СписокЗанятий[ДЕНЬ]=РасписаниеЗанятий[[#Headers],[СРЕДА]])*(ROUNDDOWN($B19,10)>=ROUNDDOWN(СписокЗанятий[ВРЕМЯ НАЧАЛА],10))*($B19<=СписокЗанятий[ВРЕМЯ ОКОНЧАНИЯ]),СписокЗанятий[УНИКАЛЬНЫЕ]),СписокЗанятий[УНИКАЛЬНЫЕ],0),2),0)","v":0},{"$f":"IFERROR(INDEX(СписокЗанятий[],MATCH(SUMPRODUCT((СписокЗанятий[ДЕНЬ]=РасписаниеЗанятий[[#Headers],[ЧЕТВЕРГ]])*(ROUNDDOWN($B19,10)>=ROUNDDOWN(СписокЗанятий[ВРЕМЯ НАЧАЛА],10))*($B19<=СписокЗанятий[ВРЕМЯ ОКОНЧАНИЯ]),СписокЗанятий[УНИКАЛЬНЫЕ]),СписокЗанятий[УНИКАЛЬНЫЕ],0),2),0)","v":"ФИЗ"},{"$f":"IFERROR(INDEX(СписокЗанятий[],MATCH(SUMPRODUCT((СписокЗанятий[ДЕНЬ]=РасписаниеЗанятий[[#Headers],[ПЯТНИЦА]])*(ROUNDDOWN($B19,10)>=ROUNDDOWN(СписокЗанятий[ВРЕМЯ НАЧАЛА],10))*($B19<=СписокЗанятий[ВРЕМЯ ОКОНЧАНИЯ]),СписокЗанятий[УНИКАЛЬНЫЕ]),СписокЗанятий[УНИКАЛЬНЫЕ],0),2),0)","v":0},{"$f":"IFERROR(INDEX(СписокЗанятий[],MATCH(SUMPRODUCT((СписокЗанятий[ДЕНЬ]=РасписаниеЗанятий[[#Headers],[СУББОТА]])*(ROUNDDOWN($B19,10)>=ROUNDDOWN(СписокЗанятий[ВРЕМЯ НАЧАЛА],10))*($B19<=СписокЗанятий[ВРЕМЯ ОКОНЧАНИЯ]),СписокЗанятий[УНИКАЛЬНЫЕ]),СписокЗанятий[УНИКАЛЬНЫЕ],0),2),0)","v":0}]
[null,"12:00:00",{"$f":"IFERROR(INDEX(СписокЗанятий[],MATCH(SUMPRODUCT((СписокЗанятий[ДЕНЬ]=РасписаниеЗанятий[[#Headers],[ВОСКРЕСЕНЬЕ]])*(ROUNDDOWN($B20,10)>=ROUNDDOWN(СписокЗанятий[ВРЕМЯ НАЧАЛА],10))*($B20<=СписокЗанятий[ВРЕМЯ ОКОНЧАНИЯ]),СписокЗанятий[УНИКАЛЬНЫЕ]),СписокЗанятий[УНИКАЛЬНЫЕ],0),2),0)","v":0},{"$f":"IFERROR(INDEX(СписокЗанятий[],MATCH(SUMPRODUCT((СписокЗанятий[ДЕНЬ]=РасписаниеЗанятий[[#Headers],[ПОНЕДЕЛЬНИК]])*(ROUNDDOWN($B20,10)>=ROUNDDOWN(СписокЗанятий[ВРЕМЯ НАЧАЛА],10))*($B20<=СписокЗанятий[ВРЕМЯ ОКОНЧАНИЯ]),СписокЗанятий[УНИКАЛЬНЫЕ]),СписокЗанятий[УНИКАЛЬНЫЕ],0),2),0)","v":0},{"$f":"IFERROR(INDEX(СписокЗанятий[],MATCH(SUMPRODUCT((СписокЗанятий[ДЕНЬ]=РасписаниеЗанятий[[#Headers],[ВТОРНИК]])*(ROUNDDOWN($B20,10)>=ROUNDDOWN(СписокЗанятий[ВРЕМЯ НАЧАЛА],10))*($B20<=СписокЗанятий[ВРЕМЯ ОКОНЧАНИЯ]),СписокЗанятий[УНИКАЛЬНЫЕ]),СписокЗанятий[УНИКАЛЬНЫЕ],0),2),0)","v":"ФИЗ"},{"$f":"IFERROR(INDEX(СписокЗанятий[],MATCH(SUMPRODUCT((СписокЗанятий[ДЕНЬ]=РасписаниеЗанятий[[#Headers],[СРЕДА]])*(ROUNDDOWN($B20,10)>=ROUNDDOWN(СписокЗанятий[ВРЕМЯ НАЧАЛА],10))*($B20<=СписокЗанятий[ВРЕМЯ ОКОНЧАНИЯ]),СписокЗанятий[УНИКАЛЬНЫЕ]),СписокЗанятий[УНИКАЛЬНЫЕ],0),2),0)","v":0},{"$f":"IFERROR(INDEX(СписокЗанятий[],MATCH(SUMPRODUCT((СписокЗанятий[ДЕНЬ]=РасписаниеЗанятий[[#Headers],[ЧЕТВЕРГ]])*(ROUNDDOWN($B20,10)>=ROUNDDOWN(СписокЗанятий[ВРЕМЯ НАЧАЛА],10))*($B20<=СписокЗанятий[ВРЕМЯ ОКОНЧАНИЯ]),СписокЗанятий[УНИКАЛЬНЫЕ]),СписокЗанятий[УНИКАЛЬНЫЕ],0),2),0)","v":"ФИЗ"},{"$f":"IFERROR(INDEX(СписокЗанятий[],MATCH(SUMPRODUCT((СписокЗанятий[ДЕНЬ]=РасписаниеЗанятий[[#Headers],[ПЯТНИЦА]])*(ROUNDDOWN($B20,10)>=ROUNDDOWN(СписокЗанятий[ВРЕМЯ НАЧАЛА],10))*($B20<=СписокЗанятий[ВРЕМЯ ОКОНЧАНИЯ]),СписокЗанятий[УНИКАЛЬНЫЕ]),СписокЗанятий[УНИКАЛЬНЫЕ],0),2),0)","v":0},{"$f":"IFERROR(INDEX(СписокЗанятий[],MATCH(SUMPRODUCT((СписокЗанятий[ДЕНЬ]=РасписаниеЗанятий[[#Headers],[СУББОТА]])*(ROUNDDOWN($B20,10)>=ROUNDDOWN(СписокЗанятий[ВРЕМЯ НАЧАЛА],10))*($B20<=СписокЗанятий[ВРЕМЯ ОКОНЧАНИЯ]),СписокЗанятий[УНИКАЛЬНЫЕ]),СписокЗанятий[УНИКАЛЬНЫЕ],0),2),0)","v":0}]
[null,"12:15:00",{"$f":"IFERROR(INDEX(СписокЗанятий[],MATCH(SUMPRODUCT((СписокЗанятий[ДЕНЬ]=РасписаниеЗанятий[[#Headers],[ВОСКРЕСЕНЬЕ]])*(ROUNDDOWN($B21,10)>=ROUNDDOWN(СписокЗанятий[ВРЕМЯ НАЧАЛА],10))*($B21<=СписокЗанятий[ВРЕМЯ ОКОНЧАНИЯ]),СписокЗанятий[УНИКАЛЬНЫЕ]),СписокЗанятий[УНИКАЛЬНЫЕ],0),2),0)","v":0},{"$f":"IFERROR(INDEX(СписокЗанятий[],MATCH(SUMPRODUCT((СписокЗанятий[ДЕНЬ]=РасписаниеЗанятий[[#Headers],[ПОНЕДЕЛЬНИК]])*(ROUNDDOWN($B21,10)>=ROUNDDOWN(СписокЗанятий[ВРЕМЯ НАЧАЛА],10))*($B21<=СписокЗанятий[ВРЕМЯ ОКОНЧАНИЯ]),СписокЗанятий[УНИКАЛЬНЫЕ]),СписокЗанятий[УНИКАЛЬНЫЕ],0),2),0)","v":0},{"$f":"IFERROR(INDEX(СписокЗанятий[],MATCH(SUMPRODUCT((СписокЗанятий[ДЕНЬ]=РасписаниеЗанятий[[#Headers],[ВТОРНИК]])*(ROUNDDOWN($B21,10)>=ROUNDDOWN(СписокЗанятий[ВРЕМЯ НАЧАЛА],10))*($B21<=СписокЗанятий[ВРЕМЯ ОКОНЧАНИЯ]),СписокЗанятий[УНИКАЛЬНЫЕ]),СписокЗанятий[УНИКАЛЬНЫЕ],0),2),0)","v":0},{"$f":"IFERROR(INDEX(СписокЗанятий[],MATCH(SUMPRODUCT((СписокЗанятий[ДЕНЬ]=РасписаниеЗанятий[[#Headers],[СРЕДА]])*(ROUNDDOWN($B21,10)>=ROUNDDOWN(СписокЗанятий[ВРЕМЯ НАЧАЛА],10))*($B21<=СписокЗанятий[ВРЕМЯ ОКОНЧАНИЯ]),СписокЗанятий[УНИКАЛЬНЫЕ]),СписокЗанятий[УНИКАЛЬНЫЕ],0),2),0)","v":0},{"$f":"IFERROR(INDEX(СписокЗанятий[],MATCH(SUMPRODUCT((СписокЗанятий[ДЕНЬ]=РасписаниеЗанятий[[#Headers],[ЧЕТВЕРГ]])*(ROUNDDOWN($B21,10)>=ROUNDDOWN(СписокЗанятий[ВРЕМЯ НАЧАЛА],10))*($B21<=СписокЗанятий[ВРЕМЯ ОКОНЧАНИЯ]),СписокЗанятий[УНИКАЛЬНЫЕ]),СписокЗанятий[УНИКАЛЬНЫЕ],0),2),0)","v":0},{"$f":"IFERROR(INDEX(СписокЗанятий[],MATCH(SUMPRODUCT((СписокЗанятий[ДЕНЬ]=РасписаниеЗанятий[[#Headers],[ПЯТНИЦА]])*(ROUNDDOWN($B21,10)>=ROUNDDOWN(СписокЗанятий[ВРЕМЯ НАЧАЛА],10))*($B21<=СписокЗанятий[ВРЕМЯ ОКОНЧАНИЯ]),СписокЗанятий[УНИКАЛЬНЫЕ]),СписокЗанятий[УНИКАЛЬНЫЕ],0),2),0)","v":0},{"$f":"IFERROR(INDEX(СписокЗанятий[],MATCH(SUMPRODUCT((СписокЗанятий[ДЕНЬ]=РасписаниеЗанятий[[#Headers],[СУББОТА]])*(ROUNDDOWN($B21,10)>=ROUNDDOWN(СписокЗанятий[ВРЕМЯ НАЧАЛА],10))*($B21<=СписокЗанятий[ВРЕМЯ ОКОНЧАНИЯ]),СписокЗанятий[УНИКАЛЬНЫЕ]),СписокЗанятий[УНИКАЛЬНЫЕ],0),2),0)","v":0}]
[null,"12:30:00",{"$f":"IFERROR(INDEX(СписокЗанятий[],MATCH(SUMPRODUCT((СписокЗанятий[ДЕНЬ]=РасписаниеЗанятий[[#Headers],[ВОСКРЕСЕНЬЕ]])*(ROUNDDOWN($B22,10)>=ROUNDDOWN(СписокЗанятий[ВРЕМЯ НАЧАЛА],10))*($B22<=СписокЗанятий[ВРЕМЯ ОКОНЧАНИЯ]),СписокЗанятий[УНИКАЛЬНЫЕ]),СписокЗанятий[УНИКАЛЬНЫЕ],0),2),0)","v":0},{"$f":"IFERROR(INDEX(СписокЗанятий[],MATCH(SUMPRODUCT((СписокЗанятий[ДЕНЬ]=РасписаниеЗанятий[[#Headers],[ПОНЕДЕЛЬНИК]])*(ROUNDDOWN($B22,10)>=ROUNDDOWN(СписокЗанятий[ВРЕМЯ НАЧАЛА],10))*($B22<=СписокЗанятий[ВРЕМЯ ОКОНЧАНИЯ]),СписокЗанятий[УНИКАЛЬНЫЕ]),СписокЗанятий[УНИКАЛЬНЫЕ],0),2),0)","v":0},{"$f":"IFERROR(INDEX(СписокЗанятий[],MATCH(SUMPRODUCT((СписокЗанятий[ДЕНЬ]=РасписаниеЗанятий[[#Headers],[ВТОРНИК]])*(ROUNDDOWN($B22,10)>=ROUNDDOWN(СписокЗанятий[ВРЕМЯ НАЧАЛА],10))*($B22<=СписокЗанятий[ВРЕМЯ ОКОНЧАНИЯ]),СписокЗанятий[УНИКАЛЬНЫЕ]),СписокЗанятий[УНИКАЛЬНЫЕ],0),2),0)","v":0},{"$f":"IFERROR(INDEX(СписокЗанятий[],MATCH(SUMPRODUCT((СписокЗанятий[ДЕНЬ]=РасписаниеЗанятий[[#Headers],[СРЕДА]])*(ROUNDDOWN($B22,10)>=ROUNDDOWN(СписокЗанятий[ВРЕМЯ НАЧАЛА],10))*($B22<=СписокЗанятий[ВРЕМЯ ОКОНЧАНИЯ]),СписокЗанятий[УНИКАЛЬНЫЕ]),СписокЗанятий[УНИКАЛЬНЫЕ],0),2),0)","v":0},{"$f":"IFERROR(INDEX(СписокЗанятий[],MATCH(SUMPRODUCT((СписокЗанятий[ДЕНЬ]=РасписаниеЗанятий[[#Headers],[ЧЕТВЕРГ]])*(ROUNDDOWN($B22,10)>=ROUNDDOWN(СписокЗанятий[ВРЕМЯ НАЧАЛА],10))*($B22<=СписокЗанятий[ВРЕМЯ ОКОНЧАНИЯ]),СписокЗанятий[УНИКАЛЬНЫЕ]),СписокЗанятий[УНИКАЛЬНЫЕ],0),2),0)","v":0},{"$f":"IFERROR(INDEX(СписокЗанятий[],MATCH(SUMPRODUCT((СписокЗанятий[ДЕНЬ]=РасписаниеЗанятий[[#Headers],[ПЯТНИЦА]])*(ROUNDDOWN($B22,10)>=ROUNDDOWN(СписокЗанятий[ВРЕМЯ НАЧАЛА],10))*($B22<=СписокЗанятий[ВРЕМЯ ОКОНЧАНИЯ]),СписокЗанятий[УНИКАЛЬНЫЕ]),СписокЗанятий[УНИКАЛЬНЫЕ],0),2),0)","v":0},{"$f":"IFERROR(INDEX(СписокЗанятий[],MATCH(SUMPRODUCT((СписокЗанятий[ДЕНЬ]=РасписаниеЗанятий[[#Headers],[СУББОТА]])*(ROUNDDOWN($B22,10)>=ROUNDDOWN(СписокЗанятий[ВРЕМЯ НАЧАЛА],10))*($B22<=СписокЗанятий[ВРЕМЯ ОКОНЧАНИЯ]),СписокЗанятий[УНИКАЛЬНЫЕ]),СписокЗанятий[УНИКАЛЬНЫЕ],0),2),0)","v":0}]
[null,"12:45:00",{"$f":"IFERROR(INDEX(СписокЗанятий[],MATCH(SUMPRODUCT((СписокЗанятий[ДЕНЬ]=РасписаниеЗанятий[[#Headers],[ВОСКРЕСЕНЬЕ]])*(ROUNDDOWN($B23,10)>=ROUNDDOWN(СписокЗанятий[ВРЕМЯ НАЧАЛА],10))*($B23<=СписокЗанятий[ВРЕМЯ ОКОНЧАНИЯ]),СписокЗанятий[УНИКАЛЬНЫЕ]),СписокЗанятий[УНИКАЛЬНЫЕ],0),2),0)","v":0},{"$f":"IFERROR(INDEX(СписокЗанятий[],MATCH(SUMPRODUCT((СписокЗанятий[ДЕНЬ]=РасписаниеЗанятий[[#Headers],[ПОНЕДЕЛЬНИК]])*(ROUNDDOWN($B23,10)>=ROUNDDOWN(СписокЗанятий[ВРЕМЯ НАЧАЛА],10))*($B23<=СписокЗанятий[ВРЕМЯ ОКОНЧАНИЯ]),СписокЗанятий[УНИКАЛЬНЫЕ]),СписокЗанятий[УНИКАЛЬНЫЕ],0),2),0)","v":0},{"$f":"IFERROR(INDEX(СписокЗанятий[],MATCH(SUMPRODUCT((СписокЗанятий[ДЕНЬ]=РасписаниеЗанятий[[#Headers],[ВТОРНИК]])*(ROUNDDOWN($B23,10)>=ROUNDDOWN(СписокЗанятий[ВРЕМЯ НАЧАЛА],10))*($B23<=СписокЗанятий[ВРЕМЯ ОКОНЧАНИЯ]),СписокЗанятий[УНИКАЛЬНЫЕ]),СписокЗанятий[УНИКАЛЬНЫЕ],0),2),0)","v":0},{"$f":"IFERROR(INDEX(СписокЗанятий[],MATCH(SUMPRODUCT((СписокЗанятий[ДЕНЬ]=РасписаниеЗанятий[[#Headers],[СРЕДА]])*(ROUNDDOWN($B23,10)>=ROUNDDOWN(СписокЗанятий[ВРЕМЯ НАЧАЛА],10))*($B23<=СписокЗанятий[ВРЕМЯ ОКОНЧАНИЯ]),СписокЗанятий[УНИКАЛЬНЫЕ]),СписокЗанятий[УНИКАЛЬНЫЕ],0),2),0)","v":0},{"$f":"IFERROR(INDEX(СписокЗанятий[],MATCH(SUMPRODUCT((СписокЗанятий[ДЕНЬ]=РасписаниеЗанятий[[#Headers],[ЧЕТВЕРГ]])*(ROUNDDOWN($B23,10)>=ROUNDDOWN(СписокЗанятий[ВРЕМЯ НАЧАЛА],10))*($B23<=СписокЗанятий[ВРЕМЯ ОКОНЧАНИЯ]),СписокЗанятий[УНИКАЛЬНЫЕ]),СписокЗанятий[УНИКАЛЬНЫЕ],0),2),0)","v":0},{"$f":"IFERROR(INDEX(СписокЗанятий[],MATCH(SUMPRODUCT((СписокЗанятий[ДЕНЬ]=РасписаниеЗанятий[[#Headers],[ПЯТНИЦА]])*(ROUNDDOWN($B23,10)>=ROUNDDOWN(СписокЗанятий[ВРЕМЯ НАЧАЛА],10))*($B23<=СписокЗанятий[ВРЕМЯ ОКОНЧАНИЯ]),СписокЗанятий[УНИКАЛЬНЫЕ]),СписокЗанятий[УНИКАЛЬНЫЕ],0),2),0)","v":0},{"$f":"IFERROR(INDEX(СписокЗанятий[],MATCH(SUMPRODUCT((СписокЗанятий[ДЕНЬ]=РасписаниеЗанятий[[#Headers],[СУББОТА]])*(ROUNDDOWN($B23,10)>=ROUNDDOWN(СписокЗанятий[ВРЕМЯ НАЧАЛА],10))*($B23<=СписокЗанятий[ВРЕМЯ ОКОНЧАНИЯ]),СписокЗанятий[УНИКАЛЬНЫЕ]),СписокЗанятий[УНИКАЛЬНЫЕ],0),2),0)","v":0}]
[null,"13:00:00",{"$f":"IFERROR(INDEX(СписокЗанятий[],MATCH(SUMPRODUCT((СписокЗанятий[ДЕНЬ]=РасписаниеЗанятий[[#Headers],[ВОСКРЕСЕНЬЕ]])*(ROUNDDOWN($B24,10)>=ROUNDDOWN(СписокЗанятий[ВРЕМЯ НАЧАЛА],10))*($B24<=СписокЗанятий[ВРЕМЯ ОКОНЧАНИЯ]),СписокЗанятий[УНИКАЛЬНЫЕ]),СписокЗанятий[УНИКАЛЬНЫЕ],0),2),0)","v":0},{"$f":"IFERROR(INDEX(СписокЗанятий[],MATCH(SUMPRODUCT((СписокЗанятий[ДЕНЬ]=РасписаниеЗанятий[[#Headers],[ПОНЕДЕЛЬНИК]])*(ROUNDDOWN($B24,10)>=ROUNDDOWN(СписокЗанятий[ВРЕМЯ НАЧАЛА],10))*($B24<=СписокЗанятий[ВРЕМЯ ОКОНЧАНИЯ]),СписокЗанятий[УНИКАЛЬНЫЕ]),СписокЗанятий[УНИКАЛЬНЫЕ],0),2),0)","v":"ДОК"},{"$f":"IFERROR(INDEX(СписокЗанятий[],MATCH(SUMPRODUCT((СписокЗанятий[ДЕНЬ]=РасписаниеЗанятий[[#Headers],[ВТОРНИК]])*(ROUNDDOWN($B24,10)>=ROUNDDOWN(СписокЗанятий[ВРЕМЯ НАЧАЛА],10))*($B24<=СписокЗанятий[ВРЕМЯ ОКОНЧАНИЯ]),СписокЗанятий[УНИКАЛЬНЫЕ]),СписокЗанятий[УНИКАЛЬНЫЕ],0),2),0)","v":0},{"$f":"IFERROR(INDEX(СписокЗанятий[],MATCH(SUMPRODUCT((СписокЗанятий[ДЕНЬ]=РасписаниеЗанятий[[#Headers],[СРЕДА]])*(ROUNDDOWN($B24,10)>=ROUNDDOWN(СписокЗанятий[ВРЕМЯ НАЧАЛА],10))*($B24<=СписокЗанятий[ВРЕМЯ ОКОНЧАНИЯ]),СписокЗанятий[УНИКАЛЬНЫЕ]),СписокЗанятий[УНИКАЛЬНЫЕ],0),2),0)","v":"ДОК"},{"$f":"IFERROR(INDEX(СписокЗанятий[],MATCH(SUMPRODUCT((СписокЗанятий[ДЕНЬ]=РасписаниеЗанятий[[#Headers],[ЧЕТВЕРГ]])*(ROUNDDOWN($B24,10)>=ROUNDDOWN(СписокЗанятий[ВРЕМЯ НАЧАЛА],10))*($B24<=СписокЗанятий[ВРЕМЯ ОКОНЧАНИЯ]),СписокЗанятий[УНИКАЛЬНЫЕ]),СписокЗанятий[УНИКАЛЬНЫЕ],0),2),0)","v":0},{"$f":"IFERROR(INDEX(СписокЗанятий[],MATCH(SUMPRODUCT((СписокЗанятий[ДЕНЬ]=РасписаниеЗанятий[[#Headers],[ПЯТНИЦА]])*(ROUNDDOWN($B24,10)>=ROUNDDOWN(СписокЗанятий[ВРЕМЯ НАЧАЛА],10))*($B24<=СписокЗанятий[ВРЕМЯ ОКОНЧАНИЯ]),СписокЗанятий[УНИКАЛЬНЫЕ]),СписокЗанятий[УНИКАЛЬНЫЕ],0),2),0)","v":0},{"$f":"IFERROR(INDEX(СписокЗанятий[],MATCH(SUMPRODUCT((СписокЗанятий[ДЕНЬ]=РасписаниеЗанятий[[#Headers],[СУББОТА]])*(ROUNDDOWN($B24,10)>=ROUNDDOWN(СписокЗанятий[ВРЕМЯ НАЧАЛА],10))*($B24<=СписокЗанятий[ВРЕМЯ ОКОНЧАНИЯ]),СписокЗанятий[УНИКАЛЬНЫЕ]),СписокЗанятий[УНИКАЛЬНЫЕ],0),2),0)","v":0}]
[null,"13:15:00",{"$f":"IFERROR(INDEX(СписокЗанятий[],MATCH(SUMPRODUCT((СписокЗанятий[ДЕНЬ]=РасписаниеЗанятий[[#Headers],[ВОСКРЕСЕНЬЕ]])*(ROUNDDOWN($B25,10)>=ROUNDDOWN(СписокЗанятий[ВРЕМЯ НАЧАЛА],10))*($B25<=СписокЗанятий[ВРЕМЯ ОКОНЧАНИЯ]),СписокЗанятий[УНИКАЛЬНЫЕ]),СписокЗанятий[УНИКАЛЬНЫЕ],0),2),0)","v":0},{"$f":"IFERROR(INDEX(СписокЗанятий[],MATCH(SUMPRODUCT((СписокЗанятий[ДЕНЬ]=РасписаниеЗанятий[[#Headers],[ПОНЕДЕЛЬНИК]])*(ROUNDDOWN($B25,10)>=ROUNDDOWN(СписокЗанятий[ВРЕМЯ НАЧАЛА],10))*($B25<=СписокЗанятий[ВРЕМЯ ОКОНЧАНИЯ]),СписокЗанятий[УНИКАЛЬНЫЕ]),СписокЗанятий[УНИКАЛЬНЫЕ],0),2),0)","v":"ДОК"},{"$f":"IFERROR(INDEX(СписокЗанятий[],MATCH(SUMPRODUCT((СписокЗанятий[ДЕНЬ]=РасписаниеЗанятий[[#Headers],[ВТОРНИК]])*(ROUNDDOWN($B25,10)>=ROUNDDOWN(СписокЗанятий[ВРЕМЯ НАЧАЛА],10))*($B25<=СписокЗанятий[ВРЕМЯ ОКОНЧАНИЯ]),СписокЗанятий[УНИКАЛЬНЫЕ]),СписокЗанятий[УНИКАЛЬНЫЕ],0),2),0)","v":0},{"$f":"IFERROR(INDEX(СписокЗанятий[],MATCH(SUMPRODUCT((СписокЗанятий[ДЕНЬ]=РасписаниеЗанятий[[#Headers],[СРЕДА]])*(ROUNDDOWN($B25,10)>=ROUNDDOWN(СписокЗанятий[ВРЕМЯ НАЧАЛА],10))*($B25<=СписокЗанятий[ВРЕМЯ ОКОНЧАНИЯ]),СписокЗанятий[УНИКАЛЬНЫЕ]),СписокЗанятий[УНИКАЛЬНЫЕ],0),2),0)","v":"ДОК"},{"$f":"IFERROR(INDEX(СписокЗанятий[],MATCH(SUMPRODUCT((СписокЗанятий[ДЕНЬ]=РасписаниеЗанятий[[#Headers],[ЧЕТВЕРГ]])*(ROUNDDOWN($B25,10)>=ROUNDDOWN(СписокЗанятий[ВРЕМЯ НАЧАЛА],10))*($B25<=СписокЗанятий[ВРЕМЯ ОКОНЧАНИЯ]),СписокЗанятий[УНИКАЛЬНЫЕ]),СписокЗанятий[УНИКАЛЬНЫЕ],0),2),0)","v":0},{"$f":"IFERROR(INDEX(СписокЗанятий[],MATCH(SUMPRODUCT((СписокЗанятий[ДЕНЬ]=РасписаниеЗанятий[[#Headers],[ПЯТНИЦА]])*(ROUNDDOWN($B25,10)>=ROUNDDOWN(СписокЗанятий[ВРЕМЯ НАЧАЛА],10))*($B25<=СписокЗанятий[ВРЕМЯ ОКОНЧАНИЯ]),СписокЗанятий[УНИКАЛЬНЫЕ]),СписокЗанятий[УНИКАЛЬНЫЕ],0),2),0)","v":0},{"$f":"IFERROR(INDEX(СписокЗанятий[],MATCH(SUMPRODUCT((СписокЗанятий[ДЕНЬ]=РасписаниеЗанятий[[#Headers],[СУББОТА]])*(ROUNDDOWN($B25,10)>=ROUNDDOWN(СписокЗанятий[ВРЕМЯ НАЧАЛА],10))*($B25<=СписокЗанятий[ВРЕМЯ ОКОНЧАНИЯ]),СписокЗанятий[УНИКАЛЬНЫЕ]),СписокЗанятий[УНИКАЛЬНЫЕ],0),2),0)","v":0}]
[null,"13:30:00",{"$f":"IFERROR(INDEX(СписокЗанятий[],MATCH(SUMPRODUCT((СписокЗанятий[ДЕНЬ]=РасписаниеЗанятий[[#Headers],[ВОСКРЕСЕНЬЕ]])*(ROUNDDOWN($B26,10)>=ROUNDDOWN(СписокЗанятий[ВРЕМЯ НАЧАЛА],10))*($B26<=СписокЗанятий[ВРЕМЯ ОКОНЧАНИЯ]),СписокЗанятий[УНИКАЛЬНЫЕ]),СписокЗанятий[УНИКАЛЬНЫЕ],0),2),0)","v":0},{"$f":"IFERROR(INDEX(СписокЗанятий[],MATCH(SUMPRODUCT((СписокЗанятий[ДЕНЬ]=РасписаниеЗанятий[[#Headers],[ПОНЕДЕЛЬНИК]])*(ROUNDDOWN($B26,10)>=ROUNDDOWN(СписокЗанятий[ВРЕМЯ НАЧАЛА],10))*($B26<=СписокЗанятий[ВРЕМЯ ОКОНЧАНИЯ]),СписокЗанятий[УНИКАЛЬНЫЕ]),СписокЗанятий[УНИКАЛЬНЫЕ],0),2),0)","v":"ДОК"},{"$f":"IFERROR(INDEX(СписокЗанятий[],MATCH(SUMPRODUCT((СписокЗанятий[ДЕНЬ]=РасписаниеЗанятий[[#Headers],[ВТОРНИК]])*(ROUNDDOWN($B26,10)>=ROUNDDOWN(СписокЗанятий[ВРЕМЯ НАЧАЛА],10))*($B26<=СписокЗанятий[ВРЕМЯ ОКОНЧАНИЯ]),СписокЗанятий[УНИКАЛЬНЫЕ]),СписокЗанятий[УНИКАЛЬНЫЕ],0),2),0)","v":0},{"$f":"IFERROR(INDEX(СписокЗанятий[],MATCH(SUMPRODUCT((СписокЗанятий[ДЕНЬ]=РасписаниеЗанятий[[#Headers],[СРЕДА]])*(ROUNDDOWN($B26,10)>=ROUNDDOWN(СписокЗанятий[ВРЕМЯ НАЧАЛА],10))*($B26<=СписокЗанятий[ВРЕМЯ ОКОНЧАНИЯ]),СписокЗанятий[УНИКАЛЬНЫЕ]),СписокЗанятий[УНИКАЛЬНЫЕ],0),2),0)","v":"ДОК"},{"$f":"IFERROR(INDEX(СписокЗанятий[],MATCH(SUMPRODUCT((СписокЗанятий[ДЕНЬ]=РасписаниеЗанятий[[#Headers],[ЧЕТВЕРГ]])*(ROUNDDOWN($B26,10)>=ROUNDDOWN(СписокЗанятий[ВРЕМЯ НАЧАЛА],10))*($B26<=СписокЗанятий[ВРЕМЯ ОКОНЧАНИЯ]),СписокЗанятий[УНИКАЛЬНЫЕ]),СписокЗанятий[УНИКАЛЬНЫЕ],0),2),0)","v":0},{"$f":"IFERROR(INDEX(СписокЗанятий[],MATCH(SUMPRODUCT((СписокЗанятий[ДЕНЬ]=РасписаниеЗанятий[[#Headers],[ПЯТНИЦА]])*(ROUNDDOWN($B26,10)>=ROUNDDOWN(СписокЗанятий[ВРЕМЯ НАЧАЛА],10))*($B26<=СписокЗанятий[ВРЕМЯ ОКОНЧАНИЯ]),СписокЗанятий[УНИКАЛЬНЫЕ]),СписокЗанятий[УНИКАЛЬНЫЕ],0),2),0)","v":0},{"$f":"IFERROR(INDEX(СписокЗанятий[],MATCH(SUMPRODUCT((СписокЗанятий[ДЕНЬ]=РасписаниеЗанятий[[#Headers],[СУББОТА]])*(ROUNDDOWN($B26,10)>=ROUNDDOWN(СписокЗанятий[ВРЕМЯ НАЧАЛА],10))*($B26<=СписокЗанятий[ВРЕМЯ ОКОНЧАНИЯ]),СписокЗанятий[УНИКАЛЬНЫЕ]),СписокЗанятий[УНИКАЛЬНЫЕ],0),2),0)","v":0}]
[null,"13:45:00",{"$f":"IFERROR(INDEX(СписокЗанятий[],MATCH(SUMPRODUCT((СписокЗанятий[ДЕНЬ]=РасписаниеЗанятий[[#Headers],[ВОСКРЕСЕНЬЕ]])*(ROUNDDOWN($B27,10)>=ROUNDDOWN(СписокЗанятий[ВРЕМЯ НАЧАЛА],10))*($B27<=СписокЗанятий[ВРЕМЯ ОКОНЧАНИЯ]),СписокЗанятий[УНИКАЛЬНЫЕ]),СписокЗанятий[УНИКАЛЬНЫЕ],0),2),0)","v":0},{"$f":"IFERROR(INDEX(СписокЗанятий[],MATCH(SUMPRODUCT((СписокЗанятий[ДЕНЬ]=РасписаниеЗанятий[[#Headers],[ПОНЕДЕЛЬНИК]])*(ROUNDDOWN($B27,10)>=ROUNDDOWN(СписокЗанятий[ВРЕМЯ НАЧАЛА],10))*($B27<=СписокЗанятий[ВРЕМЯ ОКОНЧАНИЯ]),СписокЗанятий[УНИКАЛЬНЫЕ]),СписокЗанятий[УНИКАЛЬНЫЕ],0),2),0)","v":"ДОК"},{"$f":"IFERROR(INDEX(СписокЗанятий[],MATCH(SUMPRODUCT((СписокЗанятий[ДЕНЬ]=РасписаниеЗанятий[[#Headers],[ВТОРНИК]])*(ROUNDDOWN($B27,10)>=ROUNDDOWN(СписокЗанятий[ВРЕМЯ НАЧАЛА],10))*($B27<=СписокЗанятий[ВРЕМЯ ОКОНЧАНИЯ]),СписокЗанятий[УНИКАЛЬНЫЕ]),СписокЗанятий[УНИКАЛЬНЫЕ],0),2),0)","v":0},{"$f":"IFERROR(INDEX(СписокЗанятий[],MATCH(SUMPRODUCT((СписокЗанятий[ДЕНЬ]=РасписаниеЗанятий[[#Headers],[СРЕДА]])*(ROUNDDOWN($B27,10)>=ROUNDDOWN(СписокЗанятий[ВРЕМЯ НАЧАЛА],10))*($B27<=СписокЗанятий[ВРЕМЯ ОКОНЧАНИЯ]),СписокЗанятий[УНИКАЛЬНЫЕ]),СписокЗанятий[УНИКАЛЬНЫЕ],0),2),0)","v":"ДОК"},{"$f":"IFERROR(INDEX(СписокЗанятий[],MATCH(SUMPRODUCT((СписокЗанятий[ДЕНЬ]=РасписаниеЗанятий[[#Headers],[ЧЕТВЕРГ]])*(ROUNDDOWN($B27,10)>=ROUNDDOWN(СписокЗанятий[ВРЕМЯ НАЧАЛА],10))*($B27<=СписокЗанятий[ВРЕМЯ ОКОНЧАНИЯ]),СписокЗанятий[УНИКАЛЬНЫЕ]),СписокЗанятий[УНИКАЛЬНЫЕ],0),2),0)","v":0},{"$f":"IFERROR(INDEX(СписокЗанятий[],MATCH(SUMPRODUCT((СписокЗанятий[ДЕНЬ]=РасписаниеЗанятий[[#Headers],[ПЯТНИЦА]])*(ROUNDDOWN($B27,10)>=ROUNDDOWN(СписокЗанятий[ВРЕМЯ НАЧАЛА],10))*($B27<=СписокЗанятий[ВРЕМЯ ОКОНЧАНИЯ]),СписокЗанятий[УНИКАЛЬНЫЕ]),СписокЗанятий[УНИКАЛЬНЫЕ],0),2),0)","v":0},{"$f":"IFERROR(INDEX(СписокЗанятий[],MATCH(SUMPRODUCT((СписокЗанятий[ДЕНЬ]=РасписаниеЗанятий[[#Headers],[СУББОТА]])*(ROUNDDOWN($B27,10)>=ROUNDDOWN(СписокЗанятий[ВРЕМЯ НАЧАЛА],10))*($B27<=СписокЗанятий[ВРЕМЯ ОКОНЧАНИЯ]),СписокЗанятий[УНИКАЛЬНЫЕ]),СписокЗанятий[УНИКАЛЬНЫЕ],0),2),0)","v":0}]
[null,"14:00:00",{"$f":"IFERROR(INDEX(СписокЗанятий[],MATCH(SUMPRODUCT((СписокЗанятий[ДЕНЬ]=РасписаниеЗанятий[[#Headers],[ВОСКРЕСЕНЬЕ]])*(ROUNDDOWN($B28,10)>=ROUNDDOWN(СписокЗанятий[ВРЕМЯ НАЧАЛА],10))*($B28<=СписокЗанятий[ВРЕМЯ ОКОНЧАНИЯ]),СписокЗанятий[УНИКАЛЬНЫЕ]),СписокЗанятий[УНИКАЛЬНЫЕ],0),2),0)","v":0},{"$f":"IFERROR(INDEX(СписокЗанятий[],MATCH(SUMPRODUCT((СписокЗанятий[ДЕНЬ]=РасписаниеЗанятий[[#Headers],[ПОНЕДЕЛЬНИК]])*(ROUNDDOWN($B28,10)>=ROUNDDOWN(СписокЗанятий[ВРЕМЯ НАЧАЛА],10))*($B28<=СписокЗанятий[ВРЕМЯ ОКОНЧАНИЯ]),СписокЗанятий[УНИКАЛЬНЫЕ]),СписокЗанятий[УНИКАЛЬНЫЕ],0),2),0)","v":"ДОК"},{"$f":"IFERROR(INDEX(СписокЗанятий[],MATCH(SUMPRODUCT((СписокЗанятий[ДЕНЬ]=РасписаниеЗанятий[[#Headers],[ВТОРНИК]])*(ROUNDDOWN($B28,10)>=ROUNDDOWN(СписокЗанятий[ВРЕМЯ НАЧАЛА],10))*($B28<=СписокЗанятий[ВРЕМЯ ОКОНЧАНИЯ]),СписокЗанятий[УНИКАЛЬНЫЕ]),СписокЗанятий[УНИКАЛЬНЫЕ],0),2),0)","v":0},{"$f":"IFERROR(INDEX(СписокЗанятий[],MATCH(SUMPRODUCT((СписокЗанятий[ДЕНЬ]=РасписаниеЗанятий[[#Headers],[СРЕДА]])*(ROUNDDOWN($B28,10)>=ROUNDDOWN(СписокЗанятий[ВРЕМЯ НАЧАЛА],10))*($B28<=СписокЗанятий[ВРЕМЯ ОКОНЧАНИЯ]),СписокЗанятий[УНИКАЛЬНЫЕ]),СписокЗанятий[УНИКАЛЬНЫЕ],0),2),0)","v":"ДОК"},{"$f":"IFERROR(INDEX(СписокЗанятий[],MATCH(SUMPRODUCT((СписокЗанятий[ДЕНЬ]=РасписаниеЗанятий[[#Headers],[ЧЕТВЕРГ]])*(ROUNDDOWN($B28,10)>=ROUNDDOWN(СписокЗанятий[ВРЕМЯ НАЧАЛА],10))*($B28<=СписокЗанятий[ВРЕМЯ ОКОНЧАНИЯ]),СписокЗанятий[УНИКАЛЬНЫЕ]),СписокЗанятий[УНИКАЛЬНЫЕ],0),2),0)","v":0},{"$f":"IFERROR(INDEX(СписокЗанятий[],MATCH(SUMPRODUCT((СписокЗанятий[ДЕНЬ]=РасписаниеЗанятий[[#Headers],[ПЯТНИЦА]])*(ROUNDDOWN($B28,10)>=ROUNDDOWN(СписокЗанятий[ВРЕМЯ НАЧАЛА],10))*($B28<=СписокЗанятий[ВРЕМЯ ОКОНЧАНИЯ]),СписокЗанятий[УНИКАЛЬНЫЕ]),СписокЗанятий[УНИКАЛЬНЫЕ],0),2),0)","v":0},{"$f":"IFERROR(INDEX(СписокЗанятий[],MATCH(SUMPRODUCT((СписокЗанятий[ДЕНЬ]=РасписаниеЗанятий[[#Headers],[СУББОТА]])*(ROUNDDOWN($B28,10)>=ROUNDDOWN(СписокЗанятий[ВРЕМЯ НАЧАЛА],10))*($B28<=СписокЗанятий[ВРЕМЯ ОКОНЧАНИЯ]),СписокЗанятий[УНИКАЛЬНЫЕ]),СписокЗанятий[УНИКАЛЬНЫЕ],0),2),0)","v":0}]
[null,"14:15:00",{"$f":"IFERROR(INDEX(СписокЗанятий[],MATCH(SUMPRODUCT((СписокЗанятий[ДЕНЬ]=РасписаниеЗанятий[[#Headers],[ВОСКРЕСЕНЬЕ]])*(ROUNDDOWN($B29,10)>=ROUNDDOWN(СписокЗанятий[ВРЕМЯ НАЧАЛА],10))*($B29<=СписокЗанятий[ВРЕМЯ ОКОНЧАНИЯ]),СписокЗанятий[УНИКАЛЬНЫЕ]),СписокЗанятий[УНИКАЛЬНЫЕ],0),2),0)","v":0},{"$f":"IFERROR(INDEX(СписокЗанятий[],MATCH(SUMPRODUCT((СписокЗанятий[ДЕНЬ]=РасписаниеЗанятий[[#Headers],[ПОНЕДЕЛЬНИК]])*(ROUNDDOWN($B29,10)>=ROUNDDOWN(СписокЗанятий[ВРЕМЯ НАЧАЛА],10))*($B29<=СписокЗанятий[ВРЕМЯ ОКОНЧАНИЯ]),СписокЗанятий[УНИКАЛЬНЫЕ]),СписокЗанятий[УНИКАЛЬНЫЕ],0),2),0)","v":0},{"$f":"IFERROR(INDEX(СписокЗанятий[],MATCH(SUMPRODUCT((СписокЗанятий[ДЕНЬ]=РасписаниеЗанятий[[#Headers],[ВТОРНИК]])*(ROUNDDOWN($B29,10)>=ROUNDDOWN(СписокЗанятий[ВРЕМЯ НАЧАЛА],10))*($B29<=СписокЗанятий[ВРЕМЯ ОКОНЧАНИЯ]),СписокЗанятий[УНИКАЛЬНЫЕ]),СписокЗанятий[УНИКАЛЬНЫЕ],0),2),0)","v":0},{"$f":"IFERROR(INDEX(СписокЗанятий[],MATCH(SUMPRODUCT((СписокЗанятий[ДЕНЬ]=РасписаниеЗанятий[[#Headers],[СРЕДА]])*(ROUNDDOWN($B29,10)>=ROUNDDOWN(СписокЗанятий[ВРЕМЯ НАЧАЛА],10))*($B29<=СписокЗанятий[ВРЕМЯ ОКОНЧАНИЯ]),СписокЗанятий[УНИКАЛЬНЫЕ]),СписокЗанятий[УНИКАЛЬНЫЕ],0),2),0)","v":0},{"$f":"IFERROR(INDEX(СписокЗанятий[],MATCH(SUMPRODUCT((СписокЗанятий[ДЕНЬ]=РасписаниеЗанятий[[#Headers],[ЧЕТВЕРГ]])*(ROUNDDOWN($B29,10)>=ROUNDDOWN(СписокЗанятий[ВРЕМЯ НАЧАЛА],10))*($B29<=СписокЗанятий[ВРЕМЯ ОКОНЧАНИЯ]),СписокЗанятий[УНИКАЛЬНЫЕ]),СписокЗанятий[УНИКАЛЬНЫЕ],0),2),0)","v":0},{"$f":"IFERROR(INDEX(СписокЗанятий[],MATCH(SUMPRODUCT((СписокЗанятий[ДЕНЬ]=РасписаниеЗанятий[[#Headers],[ПЯТНИЦА]])*(ROUNDDOWN($B29,10)>=ROUNDDOWN(СписокЗанятий[ВРЕМЯ НАЧАЛА],10))*($B29<=СписокЗанятий[ВРЕМЯ ОКОНЧАНИЯ]),СписокЗанятий[УНИКАЛЬНЫЕ]),СписокЗанятий[УНИКАЛЬНЫЕ],0),2),0)","v":0},{"$f":"IFERROR(INDEX(СписокЗанятий[],MATCH(SUMPRODUCT((СписокЗанятий[ДЕНЬ]=РасписаниеЗанятий[[#Headers],[СУББОТА]])*(ROUNDDOWN($B29,10)>=ROUNDDOWN(СписокЗанятий[ВРЕМЯ НАЧАЛА],10))*($B29<=СписокЗанятий[ВРЕМЯ ОКОНЧАНИЯ]),СписокЗанятий[УНИКАЛЬНЫЕ]),СписокЗанятий[УНИКАЛЬНЫЕ],0),2),0)","v":0}]
[null,"14:30:00",{"$f":"IFERROR(INDEX(СписокЗанятий[],MATCH(SUMPRODUCT((СписокЗанятий[ДЕНЬ]=РасписаниеЗанятий[[#Headers],[ВОСКРЕСЕНЬЕ]])*(ROUNDDOWN($B30,10)>=ROUNDDOWN(СписокЗанятий[ВРЕМЯ НАЧАЛА],10))*($B30<=СписокЗанятий[ВРЕМЯ ОКОНЧАНИЯ]),СписокЗанятий[УНИКАЛЬНЫЕ]),СписокЗанятий[УНИКАЛЬНЫЕ],0),2),0)","v":0},{"$f":"IFERROR(INDEX(СписокЗанятий[],MATCH(SUMPRODUCT((СписокЗанятий[ДЕНЬ]=РасписаниеЗанятий[[#Headers],[ПОНЕДЕЛЬНИК]])*(ROUNDDOWN($B30,10)>=ROUNDDOWN(СписокЗанятий[ВРЕМЯ НАЧАЛА],10))*($B30<=СписокЗанятий[ВРЕМЯ ОКОНЧАНИЯ]),СписокЗанятий[УНИКАЛЬНЫЕ]),СписокЗанятий[УНИКАЛЬНЫЕ],0),2),0)","v":0},{"$f":"IFERROR(INDEX(СписокЗанятий[],MATCH(SUMPRODUCT((СписокЗанятий[ДЕНЬ]=РасписаниеЗанятий[[#Headers],[ВТОРНИК]])*(ROUNDDOWN($B30,10)>=ROUNDDOWN(СписокЗанятий[ВРЕМЯ НАЧАЛА],10))*($B30<=СписокЗанятий[ВРЕМЯ ОКОНЧАНИЯ]),СписокЗанятий[УНИКАЛЬНЫЕ]),СписокЗанятий[УНИКАЛЬНЫЕ],0),2),0)","v":0},{"$f":"IFERROR(INDEX(СписокЗанятий[],MATCH(SUMPRODUCT((СписокЗанятий[ДЕНЬ]=РасписаниеЗанятий[[#Headers],[СРЕДА]])*(ROUNDDOWN($B30,10)>=ROUNDDOWN(СписокЗанятий[ВРЕМЯ НАЧАЛА],10))*($B30<=СписокЗанятий[ВРЕМЯ ОКОНЧАНИЯ]),СписокЗанятий[УНИКАЛЬНЫЕ]),СписокЗанятий[УНИКАЛЬНЫЕ],0),2),0)","v":0},{"$f":"IFERROR(INDEX(СписокЗанятий[],MATCH(SUMPRODUCT((СписокЗанятий[ДЕНЬ]=РасписаниеЗанятий[[#Headers],[ЧЕТВЕРГ]])*(ROUNDDOWN($B30,10)>=ROUNDDOWN(СписокЗанятий[ВРЕМЯ НАЧАЛА],10))*($B30<=СписокЗанятий[ВРЕМЯ ОКОНЧАНИЯ]),СписокЗанятий[УНИКАЛЬНЫЕ]),СписокЗанятий[УНИКАЛЬНЫЕ],0),2),0)","v":0},{"$f":"IFERROR(INDEX(СписокЗанятий[],MATCH(SUMPRODUCT((СписокЗанятий[ДЕНЬ]=РасписаниеЗанятий[[#Headers],[ПЯТНИЦА]])*(ROUNDDOWN($B30,10)>=ROUNDDOWN(СписокЗанятий[ВРЕМЯ НАЧАЛА],10))*($B30<=СписокЗанятий[ВРЕМЯ ОКОНЧАНИЯ]),СписокЗанятий[УНИКАЛЬНЫЕ]),СписокЗанятий[УНИКАЛЬНЫЕ],0),2),0)","v":0},{"$f":"IFERROR(INDEX(СписокЗанятий[],MATCH(SUMPRODUCT((СписокЗанятий[ДЕНЬ]=РасписаниеЗанятий[[#Headers],[СУББОТА]])*(ROUNDDOWN($B30,10)>=ROUNDDOWN(СписокЗанятий[ВРЕМЯ НАЧАЛА],10))*($B30<=СписокЗанятий[ВРЕМЯ ОКОНЧАНИЯ]),СписокЗанятий[УНИКАЛЬНЫЕ]),СписокЗанятий[УНИКАЛЬНЫЕ],0),2),0)","v":0}]
[null,"14:45:00",{"$f":"IFERROR(INDEX(СписокЗанятий[],MATCH(SUMPRODUCT((СписокЗанятий[ДЕНЬ]=РасписаниеЗанятий[[#Headers],[ВОСКРЕСЕНЬЕ]])*(ROUNDDOWN($B31,10)>=ROUNDDOWN(СписокЗанятий[ВРЕМЯ НАЧАЛА],10))*($B31<=СписокЗанятий[ВРЕМЯ ОКОНЧАНИЯ]),СписокЗанятий[УНИКАЛЬНЫЕ]),СписокЗанятий[УНИКАЛЬНЫЕ],0),2),0)","v":0},{"$f":"IFERROR(INDEX(СписокЗанятий[],MATCH(SUMPRODUCT((СписокЗанятий[ДЕНЬ]=РасписаниеЗанятий[[#Headers],[ПОНЕДЕЛЬНИК]])*(ROUNDDOWN($B31,10)>=ROUNDDOWN(СписокЗанятий[ВРЕМЯ НАЧАЛА],10))*($B31<=СписокЗанятий[ВРЕМЯ ОКОНЧАНИЯ]),СписокЗанятий[УНИКАЛЬНЫЕ]),СписокЗанятий[УНИКАЛЬНЫЕ],0),2),0)","v":0},{"$f":"IFERROR(INDEX(СписокЗанятий[],MATCH(SUMPRODUCT((СписокЗанятий[ДЕНЬ]=РасписаниеЗанятий[[#Headers],[ВТОРНИК]])*(ROUNDDOWN($B31,10)>=ROUNDDOWN(СписокЗанятий[ВРЕМЯ НАЧАЛА],10))*($B31<=СписокЗанятий[ВРЕМЯ ОКОНЧАНИЯ]),СписокЗанятий[УНИКАЛЬНЫЕ]),СписокЗанятий[УНИКАЛЬНЫЕ],0),2),0)","v":0},{"$f":"IFERROR(INDEX(СписокЗанятий[],MATCH(SUMPRODUCT((СписокЗанятий[ДЕНЬ]=РасписаниеЗанятий[[#Headers],[СРЕДА]])*(ROUNDDOWN($B31,10)>=ROUNDDOWN(СписокЗанятий[ВРЕМЯ НАЧАЛА],10))*($B31<=СписокЗанятий[ВРЕМЯ ОКОНЧАНИЯ]),СписокЗанятий[УНИКАЛЬНЫЕ]),СписокЗанятий[УНИКАЛЬНЫЕ],0),2),0)","v":0},{"$f":"IFERROR(INDEX(СписокЗанятий[],MATCH(SUMPRODUCT((СписокЗанятий[ДЕНЬ]=РасписаниеЗанятий[[#Headers],[ЧЕТВЕРГ]])*(ROUNDDOWN($B31,10)>=ROUNDDOWN(СписокЗанятий[ВРЕМЯ НАЧАЛА],10))*($B31<=СписокЗанятий[ВРЕМЯ ОКОНЧАНИЯ]),СписокЗанятий[УНИКАЛЬНЫЕ]),СписокЗанятий[УНИКАЛЬНЫЕ],0),2),0)","v":0},{"$f":"IFERROR(INDEX(СписокЗанятий[],MATCH(SUMPRODUCT((СписокЗанятий[ДЕНЬ]=РасписаниеЗанятий[[#Headers],[ПЯТНИЦА]])*(ROUNDDOWN($B31,10)>=ROUNDDOWN(СписокЗанятий[ВРЕМЯ НАЧАЛА],10))*($B31<=СписокЗанятий[ВРЕМЯ ОКОНЧАНИЯ]),СписокЗанятий[УНИКАЛЬНЫЕ]),СписокЗанятий[УНИКАЛЬНЫЕ],0),2),0)","v":0},{"$f":"IFERROR(INDEX(СписокЗанятий[],MATCH(SUMPRODUCT((СписокЗанятий[ДЕНЬ]=РасписаниеЗанятий[[#Headers],[СУББОТА]])*(ROUNDDOWN($B31,10)>=ROUNDDOWN(СписокЗанятий[ВРЕМЯ НАЧАЛА],10))*($B31<=СписокЗанятий[ВРЕМЯ ОКОНЧАНИЯ]),СписокЗанятий[УНИКАЛЬНЫЕ]),СписокЗанятий[УНИКАЛЬНЫЕ],0),2),0)","v":0}]
[null,"15:00:00",{"$f":"IFERROR(INDEX(СписокЗанятий[],MATCH(SUMPRODUCT((СписокЗанятий[ДЕНЬ]=РасписаниеЗанятий[[#Headers],[ВОСКРЕСЕНЬЕ]])*(ROUNDDOWN($B32,10)>=ROUNDDOWN(СписокЗанятий[ВРЕМЯ НАЧАЛА],10))*($B32<=СписокЗанятий[ВРЕМЯ ОКОНЧАНИЯ]),СписокЗанятий[УНИКАЛЬНЫЕ]),СписокЗанятий[УНИКАЛЬНЫЕ],0),2),0)","v":0},{"$f":"IFERROR(INDEX(СписокЗанятий[],MATCH(SUMPRODUCT((СписокЗанятий[ДЕНЬ]=РасписаниеЗанятий[[#Headers],[ПОНЕДЕЛЬНИК]])*(ROUNDDOWN($B32,10)>=ROUNDDOWN(СписокЗанятий[ВРЕМЯ НАЧАЛА],10))*($B32<=СписокЗанятий[ВРЕМЯ ОКОНЧАНИЯ]),СписокЗанятий[УНИКАЛЬНЫЕ]),СписокЗанятий[УНИКАЛЬНЫЕ],0),2),0)","v":0},{"$f":"IFERROR(INDEX(СписокЗанятий[],MATCH(SUMPRODUCT((СписокЗанятий[ДЕНЬ]=РасписаниеЗанятий[[#Headers],[ВТОРНИК]])*(ROUNDDOWN($B32,10)>=ROUNDDOWN(СписокЗанятий[ВРЕМЯ НАЧАЛА],10))*($B32<=СписокЗанятий[ВРЕМЯ ОКОНЧАНИЯ]),СписокЗанятий[УНИКАЛЬНЫЕ]),СписокЗанятий[УНИКАЛЬНЫЕ],0),2),0)","v":0},{"$f":"IFERROR(INDEX(СписокЗанятий[],MATCH(SUMPRODUCT((СписокЗанятий[ДЕНЬ]=РасписаниеЗанятий[[#Headers],[СРЕДА]])*(ROUNDDOWN($B32,10)>=ROUNDDOWN(СписокЗанятий[ВРЕМЯ НАЧАЛА],10))*($B32<=СписокЗанятий[ВРЕМЯ ОКОНЧАНИЯ]),СписокЗанятий[УНИКАЛЬНЫЕ]),СписокЗанятий[УНИКАЛЬНЫЕ],0),2),0)","v":0},{"$f":"IFERROR(INDEX(СписокЗанятий[],MATCH(SUMPRODUCT((СписокЗанятий[ДЕНЬ]=РасписаниеЗанятий[[#Headers],[ЧЕТВЕРГ]])*(ROUNDDOWN($B32,10)>=ROUNDDOWN(СписокЗанятий[ВРЕМЯ НАЧАЛА],10))*($B32<=СписокЗанятий[ВРЕМЯ ОКОНЧАНИЯ]),СписокЗанятий[УНИКАЛЬНЫЕ]),СписокЗанятий[УНИКАЛЬНЫЕ],0),2),0)","v":0},{"$f":"IFERROR(INDEX(СписокЗанятий[],MATCH(SUMPRODUCT((СписокЗанятий[ДЕНЬ]=РасписаниеЗанятий[[#Headers],[ПЯТНИЦА]])*(ROUNDDOWN($B32,10)>=ROUNDDOWN(СписокЗанятий[ВРЕМЯ НАЧАЛА],10))*($B32<=СписокЗанятий[ВРЕМЯ ОКОНЧАНИЯ]),СписокЗанятий[УНИКАЛЬНЫЕ]),СписокЗанятий[УНИКАЛЬНЫЕ],0),2),0)","v":0},{"$f":"IFERROR(INDEX(СписокЗанятий[],MATCH(SUMPRODUCT((СписокЗанятий[ДЕНЬ]=РасписаниеЗанятий[[#Headers],[СУББОТА]])*(ROUNDDOWN($B32,10)>=ROUNDDOWN(СписокЗанятий[ВРЕМЯ НАЧАЛА],10))*($B32<=СписокЗанятий[ВРЕМЯ ОКОНЧАНИЯ]),СписокЗанятий[УНИКАЛЬНЫЕ]),СписокЗанятий[УНИКАЛЬНЫЕ],0),2),0)","v":0}]
[null,"15:15:00",{"$f":"IFERROR(INDEX(СписокЗанятий[],MATCH(SUMPRODUCT((СписокЗанятий[ДЕНЬ]=РасписаниеЗанятий[[#Headers],[ВОСКРЕСЕНЬЕ]])*(ROUNDDOWN($B33,10)>=ROUNDDOWN(СписокЗанятий[ВРЕМЯ НАЧАЛА],10))*($B33<=СписокЗанятий[ВРЕМЯ ОКОНЧАНИЯ]),СписокЗанятий[УНИКАЛЬНЫЕ]),СписокЗанятий[УНИКАЛЬНЫЕ],0),2),0)","v":0},{"$f":"IFERROR(INDEX(СписокЗанятий[],MATCH(SUMPRODUCT((СписокЗанятий[ДЕНЬ]=РасписаниеЗанятий[[#Headers],[ПОНЕДЕЛЬНИК]])*(ROUNDDOWN($B33,10)>=ROUNDDOWN(СписокЗанятий[ВРЕМЯ НАЧАЛА],10))*($B33<=СписокЗанятий[ВРЕМЯ ОКОНЧАНИЯ]),СписокЗанятий[УНИКАЛЬНЫЕ]),СписокЗанятий[УНИКАЛЬНЫЕ],0),2),0)","v":0},{"$f":"IFERROR(INDEX(СписокЗанятий[],MATCH(SUMPRODUCT((СписокЗанятий[ДЕНЬ]=РасписаниеЗанятий[[#Headers],[ВТОРНИК]])*(ROUNDDOWN($B33,10)>=ROUNDDOWN(СписокЗанятий[ВРЕМЯ НАЧАЛА],10))*($B33<=СписокЗанятий[ВРЕМЯ ОКОНЧАНИЯ]),СписокЗанятий[УНИКАЛЬНЫЕ]),СписокЗанятий[УНИКАЛЬНЫЕ],0),2),0)","v":0},{"$f":"IFERROR(INDEX(СписокЗанятий[],MATCH(SUMPRODUCT((СписокЗанятий[ДЕНЬ]=РасписаниеЗанятий[[#Headers],[СРЕДА]])*(ROUNDDOWN($B33,10)>=ROUNDDOWN(СписокЗанятий[ВРЕМЯ НАЧАЛА],10))*($B33<=СписокЗанятий[ВРЕМЯ ОКОНЧАНИЯ]),СписокЗанятий[УНИКАЛЬНЫЕ]),СписокЗанятий[УНИКАЛЬНЫЕ],0),2),0)","v":0},{"$f":"IFERROR(INDEX(СписокЗанятий[],MATCH(SUMPRODUCT((СписокЗанятий[ДЕНЬ]=РасписаниеЗанятий[[#Headers],[ЧЕТВЕРГ]])*(ROUNDDOWN($B33,10)>=ROUNDDOWN(СписокЗанятий[ВРЕМЯ НАЧАЛА],10))*($B33<=СписокЗанятий[ВРЕМЯ ОКОНЧАНИЯ]),СписокЗанятий[УНИКАЛЬНЫЕ]),СписокЗанятий[УНИКАЛЬНЫЕ],0),2),0)","v":0},{"$f":"IFERROR(INDEX(СписокЗанятий[],MATCH(SUMPRODUCT((СписокЗанятий[ДЕНЬ]=РасписаниеЗанятий[[#Headers],[ПЯТНИЦА]])*(ROUNDDOWN($B33,10)>=ROUNDDOWN(СписокЗанятий[ВРЕМЯ НАЧАЛА],10))*($B33<=СписокЗанятий[ВРЕМЯ ОКОНЧАНИЯ]),СписокЗанятий[УНИКАЛЬНЫЕ]),СписокЗанятий[УНИКАЛЬНЫЕ],0),2),0)","v":0},{"$f":"IFERROR(INDEX(СписокЗанятий[],MATCH(SUMPRODUCT((СписокЗанятий[ДЕНЬ]=РасписаниеЗанятий[[#Headers],[СУББОТА]])*(ROUNDDOWN($B33,10)>=ROUNDDOWN(СписокЗанятий[ВРЕМЯ НАЧАЛА],10))*($B33<=СписокЗанятий[ВРЕМЯ ОКОНЧАНИЯ]),СписокЗанятий[УНИКАЛЬНЫЕ]),СписокЗанятий[УНИКАЛЬНЫЕ],0),2),0)","v":0}]
[null,"15:30:00",{"$f":"IFERROR(INDEX(СписокЗанятий[],MATCH(SUMPRODUCT((СписокЗанятий[ДЕНЬ]=РасписаниеЗанятий[[#Headers],[ВОСКРЕСЕНЬЕ]])*(ROUNDDOWN($B34,10)>=ROUNDDOWN(СписокЗанятий[ВРЕМЯ НАЧАЛА],10))*($B34<=СписокЗанятий[ВРЕМЯ ОКОНЧАНИЯ]),СписокЗанятий[УНИКАЛЬНЫЕ]),СписокЗанятий[УНИКАЛЬНЫЕ],0),2),0)","v":0},{"$f":"IFERROR(INDEX(СписокЗанятий[],MATCH(SUMPRODUCT((СписокЗанятий[ДЕНЬ]=РасписаниеЗанятий[[#Headers],[ПОНЕДЕЛЬНИК]])*(ROUNDDOWN($B34,10)>=ROUNDDOWN(СписокЗанятий[ВРЕМЯ НАЧАЛА],10))*($B34<=СписокЗанятий[ВРЕМЯ ОКОНЧАНИЯ]),СписокЗанятий[УНИКАЛЬНЫЕ]),СписокЗанятий[УНИКАЛЬНЫЕ],0),2),0)","v":0},{"$f":"IFERROR(INDEX(СписокЗанятий[],MATCH(SUMPRODUCT((СписокЗанятий[ДЕНЬ]=РасписаниеЗанятий[[#Headers],[ВТОРНИК]])*(ROUNDDOWN($B34,10)>=ROUNDDOWN(СписокЗанятий[ВРЕМЯ НАЧАЛА],10))*($B34<=СписокЗанятий[ВРЕМЯ ОКОНЧАНИЯ]),СписокЗанятий[УНИКАЛЬНЫЕ]),СписокЗанятий[УНИКАЛЬНЫЕ],0),2),0)","v":0},{"$f":"IFERROR(INDEX(СписокЗанятий[],MATCH(SUMPRODUCT((СписокЗанятий[ДЕНЬ]=РасписаниеЗанятий[[#Headers],[СРЕДА]])*(ROUNDDOWN($B34,10)>=ROUNDDOWN(СписокЗанятий[ВРЕМЯ НАЧАЛА],10))*($B34<=СписокЗанятий[ВРЕМЯ ОКОНЧАНИЯ]),СписокЗанятий[УНИКАЛЬНЫЕ]),СписокЗанятий[УНИКАЛЬНЫЕ],0),2),0)","v":0},{"$f":"IFERROR(INDEX(СписокЗанятий[],MATCH(SUMPRODUCT((СписокЗанятий[ДЕНЬ]=РасписаниеЗанятий[[#Headers],[ЧЕТВЕРГ]])*(ROUNDDOWN($B34,10)>=ROUNDDOWN(СписокЗанятий[ВРЕМЯ НАЧАЛА],10))*($B34<=СписокЗанятий[ВРЕМЯ ОКОНЧАНИЯ]),СписокЗанятий[УНИКАЛЬНЫЕ]),СписокЗанятий[УНИКАЛЬНЫЕ],0),2),0)","v":0},{"$f":"IFERROR(INDEX(СписокЗанятий[],MATCH(SUMPRODUCT((СписокЗанятий[ДЕНЬ]=РасписаниеЗанятий[[#Headers],[ПЯТНИЦА]])*(ROUNDDOWN($B34,10)>=ROUNDDOWN(СписокЗанятий[ВРЕМЯ НАЧАЛА],10))*($B34<=СписокЗанятий[ВРЕМЯ ОКОНЧАНИЯ]),СписокЗанятий[УНИКАЛЬНЫЕ]),СписокЗанятий[УНИКАЛЬНЫЕ],0),2),0)","v":0},{"$f":"IFERROR(INDEX(СписокЗанятий[],MATCH(SUMPRODUCT((СписокЗанятий[ДЕНЬ]=РасписаниеЗанятий[[#Headers],[СУББОТА]])*(ROUNDDOWN($B34,10)>=ROUNDDOWN(СписокЗанятий[ВРЕМЯ НАЧАЛА],10))*($B34<=СписокЗанятий[ВРЕМЯ ОКОНЧАНИЯ]),СписокЗанятий[УНИКАЛЬНЫЕ]),СписокЗанятий[УНИКАЛЬНЫЕ],0),2),0)","v":0}]
[null,"15:45:00",{"$f":"IFERROR(INDEX(СписокЗанятий[],MATCH(SUMPRODUCT((СписокЗанятий[ДЕНЬ]=РасписаниеЗанятий[[#Headers],[ВОСКРЕСЕНЬЕ]])*(ROUNDDOWN($B35,10)>=ROUNDDOWN(СписокЗанятий[ВРЕМЯ НАЧАЛА],10))*($B35<=СписокЗанятий[ВРЕМЯ ОКОНЧАНИЯ]),СписокЗанятий[УНИКАЛЬНЫЕ]),СписокЗанятий[УНИКАЛЬНЫЕ],0),2),0)","v":0},{"$f":"IFERROR(INDEX(СписокЗанятий[],MATCH(SUMPRODUCT((СписокЗанятий[ДЕНЬ]=РасписаниеЗанятий[[#Headers],[ПОНЕДЕЛЬНИК]])*(ROUNDDOWN($B35,10)>=ROUNDDOWN(СписокЗанятий[ВРЕМЯ НАЧАЛА],10))*($B35<=СписокЗанятий[ВРЕМЯ ОКОНЧАНИЯ]),СписокЗанятий[УНИКАЛЬНЫЕ]),СписокЗанятий[УНИКАЛЬНЫЕ],0),2),0)","v":0},{"$f":"IFERROR(INDEX(СписокЗанятий[],MATCH(SUMPRODUCT((СписокЗанятий[ДЕНЬ]=РасписаниеЗанятий[[#Headers],[ВТОРНИК]])*(ROUNDDOWN($B35,10)>=ROUNDDOWN(СписокЗанятий[ВРЕМЯ НАЧАЛА],10))*($B35<=СписокЗанятий[ВРЕМЯ ОКОНЧАНИЯ]),СписокЗанятий[УНИКАЛЬНЫЕ]),СписокЗанятий[УНИКАЛЬНЫЕ],0),2),0)","v":0},{"$f":"IFERROR(INDEX(СписокЗанятий[],MATCH(SUMPRODUCT((СписокЗанятий[ДЕНЬ]=РасписаниеЗанятий[[#Headers],[СРЕДА]])*(ROUNDDOWN($B35,10)>=ROUNDDOWN(СписокЗанятий[ВРЕМЯ НАЧАЛА],10))*($B35<=СписокЗанятий[ВРЕМЯ ОКОНЧАНИЯ]),СписокЗанятий[УНИКАЛЬНЫЕ]),СписокЗанятий[УНИКАЛЬНЫЕ],0),2),0)","v":0},{"$f":"IFERROR(INDEX(СписокЗанятий[],MATCH(SUMPRODUCT((СписокЗанятий[ДЕНЬ]=РасписаниеЗанятий[[#Headers],[ЧЕТВЕРГ]])*(ROUNDDOWN($B35,10)>=ROUNDDOWN(СписокЗанятий[ВРЕМЯ НАЧАЛА],10))*($B35<=СписокЗанятий[ВРЕМЯ ОКОНЧАНИЯ]),СписокЗанятий[УНИКАЛЬНЫЕ]),СписокЗанятий[УНИКАЛЬНЫЕ],0),2),0)","v":0},{"$f":"IFERROR(INDEX(СписокЗанятий[],MATCH(SUMPRODUCT((СписокЗанятий[ДЕНЬ]=РасписаниеЗанятий[[#Headers],[ПЯТНИЦА]])*(ROUNDDOWN($B35,10)>=ROUNDDOWN(СписокЗанятий[ВРЕМЯ НАЧАЛА],10))*($B35<=СписокЗанятий[ВРЕМЯ ОКОНЧАНИЯ]),СписокЗанятий[УНИКАЛЬНЫЕ]),СписокЗанятий[УНИКАЛЬНЫЕ],0),2),0)","v":0},{"$f":"IFERROR(INDEX(СписокЗанятий[],MATCH(SUMPRODUCT((СписокЗанятий[ДЕНЬ]=РасписаниеЗанятий[[#Headers],[СУББОТА]])*(ROUNDDOWN($B35,10)>=ROUNDDOWN(СписокЗанятий[ВРЕМЯ НАЧАЛА],10))*($B35<=СписокЗанятий[ВРЕМЯ ОКОНЧАНИЯ]),СписокЗанятий[УНИКАЛЬНЫЕ]),СписокЗанятий[УНИКАЛЬНЫЕ],0),2),0)","v":0}]
[null,"16:00:00",{"$f":"IFERROR(INDEX(СписокЗанятий[],MATCH(SUMPRODUCT((СписокЗанятий[ДЕНЬ]=РасписаниеЗанятий[[#Headers],[ВОСКРЕСЕНЬЕ]])*(ROUNDDOWN($B36,10)>=ROUNDDOWN(СписокЗанятий[ВРЕМЯ НАЧАЛА],10))*($B36<=СписокЗанятий[ВРЕМЯ ОКОНЧАНИЯ]),СписокЗанятий[УНИКАЛЬНЫЕ]),СписокЗанятий[УНИКАЛЬНЫЕ],0),2),0)","v":0},{"$f":"IFERROR(INDEX(СписокЗанятий[],MATCH(SUMPRODUCT((СписокЗанятий[ДЕНЬ]=РасписаниеЗанятий[[#Headers],[ПОНЕДЕЛЬНИК]])*(ROUNDDOWN($B36,10)>=ROUNDDOWN(СписокЗанятий[ВРЕМЯ НАЧАЛА],10))*($B36<=СписокЗанятий[ВРЕМЯ ОКОНЧАНИЯ]),СписокЗанятий[УНИКАЛЬНЫЕ]),СписокЗанятий[УНИКАЛЬНЫЕ],0),2),0)","v":"ОРИС"},{"$f":"IFERROR(INDEX(СписокЗанятий[],MATCH(SUMPRODUCT((СписокЗанятий[ДЕНЬ]=РасписаниеЗанятий[[#Headers],[ВТОРНИК]])*(ROUNDDOWN($B36,10)>=ROUNDDOWN(СписокЗанятий[ВРЕМЯ НАЧАЛА],10))*($B36<=СписокЗанятий[ВРЕМЯ ОКОНЧАНИЯ]),СписокЗанятий[УНИКАЛЬНЫЕ]),СписокЗанятий[УНИКАЛЬНЫЕ],0),2),0)","v":0},{"$f":"IFERROR(INDEX(СписокЗанятий[],MATCH(SUMPRODUCT((СписокЗанятий[ДЕНЬ]=РасписаниеЗанятий[[#Headers],[СРЕДА]])*(ROUNDDOWN($B36,10)>=ROUNDDOWN(СписокЗанятий[ВРЕМЯ НАЧАЛА],10))*($B36<=СписокЗанятий[ВРЕМЯ ОКОНЧАНИЯ]),СписокЗанятий[УНИКАЛЬНЫЕ]),СписокЗанятий[УНИКАЛЬНЫЕ],0),2),0)","v":0},{"$f":"IFERROR(INDEX(СписокЗанятий[],MATCH(SUMPRODUCT((СписокЗанятий[ДЕНЬ]=РасписаниеЗанятий[[#Headers],[ЧЕТВЕРГ]])*(ROUNDDOWN($B36,10)>=ROUNDDOWN(СписокЗанятий[ВРЕМЯ НАЧАЛА],10))*($B36<=СписокЗанятий[ВРЕМЯ ОКОНЧАНИЯ]),СписокЗанятий[УНИКАЛЬНЫЕ]),СписокЗанятий[УНИКАЛЬНЫЕ],0),2),0)","v":0},{"$f":"IFERROR(INDEX(СписокЗанятий[],MATCH(SUMPRODUCT((СписокЗанятий[ДЕНЬ]=РасписаниеЗанятий[[#Headers],[ПЯТНИЦА]])*(ROUNDDOWN($B36,10)>=ROUNDDOWN(СписокЗанятий[ВРЕМЯ НАЧАЛА],10))*($B36<=СписокЗанятий[ВРЕМЯ ОКОНЧАНИЯ]),СписокЗанятий[УНИКАЛЬНЫЕ]),СписокЗанятий[УНИКАЛЬНЫЕ],0),2),0)","v":0},{"$f":"IFERROR(INDEX(СписокЗанятий[],MATCH(SUMPRODUCT((СписокЗанятий[ДЕНЬ]=РасписаниеЗанятий[[#Headers],[СУББОТА]])*(ROUNDDOWN($B36,10)>=ROUNDDOWN(СписокЗанятий[ВРЕМЯ НАЧАЛА],10))*($B36<=СписокЗанятий[ВРЕМЯ ОКОНЧАНИЯ]),СписокЗанятий[УНИКАЛЬНЫЕ]),СписокЗанятий[УНИКАЛЬНЫЕ],0),2),0)","v":0}]
[null,{"$f":"B36+Приращение","v":"16:15:00"},{"$f":"IFERROR(INDEX(СписокЗанятий[],MATCH(SUMPRODUCT((СписокЗанятий[ДЕНЬ]=РасписаниеЗанятий[[#Headers],[ВОСКРЕСЕНЬЕ]])*(ROUNDDOWN($B37,10)>=ROUNDDOWN(СписокЗанятий[ВРЕМЯ НАЧАЛА],10))*($B37<=СписокЗанятий[ВРЕМЯ ОКОНЧАНИЯ]),СписокЗанятий[УНИКАЛЬНЫЕ]),СписокЗанятий[УНИКАЛЬНЫЕ],0),2),0)","v":0},{"$f":"IFERROR(INDEX(СписокЗанятий[],MATCH(SUMPRODUCT((СписокЗанятий[ДЕНЬ]=РасписаниеЗанятий[[#Headers],[ПОНЕДЕЛЬНИК]])*(ROUNDDOWN($B37,10)>=ROUNDDOWN(СписокЗанятий[ВРЕМЯ НАЧАЛА],10))*($B37<=СписокЗанятий[ВРЕМЯ ОКОНЧАНИЯ]),СписокЗанятий[УНИКАЛЬНЫЕ]),СписокЗанятий[УНИКАЛЬНЫЕ],0),2),0)","v":"ОРИС"},{"$f":"IFERROR(INDEX(СписокЗанятий[],MATCH(SUMPRODUCT((СписокЗанятий[ДЕНЬ]=РасписаниеЗанятий[[#Headers],[ВТОРНИК]])*(ROUNDDOWN($B37,10)>=ROUNDDOWN(СписокЗанятий[ВРЕМЯ НАЧАЛА],10))*($B37<=СписокЗанятий[ВРЕМЯ ОКОНЧАНИЯ]),СписокЗанятий[УНИКАЛЬНЫЕ]),СписокЗанятий[УНИКАЛЬНЫЕ],0),2),0)","v":0},{"$f":"IFERROR(INDEX(СписокЗанятий[],MATCH(SUMPRODUCT((СписокЗанятий[ДЕНЬ]=РасписаниеЗанятий[[#Headers],[СРЕДА]])*(ROUNDDOWN($B37,10)>=ROUNDDOWN(СписокЗанятий[ВРЕМЯ НАЧАЛА],10))*($B37<=СписокЗанятий[ВРЕМЯ ОКОНЧАНИЯ]),СписокЗанятий[УНИКАЛЬНЫЕ]),СписокЗанятий[УНИКАЛЬНЫЕ],0),2),0)","v":0},{"$f":"IFERROR(INDEX(СписокЗанятий[],MATCH(SUMPRODUCT((СписокЗанятий[ДЕНЬ]=РасписаниеЗанятий[[#Headers],[ЧЕТВЕРГ]])*(ROUNDDOWN($B37,10)>=ROUNDDOWN(СписокЗанятий[ВРЕМЯ НАЧАЛА],10))*($B37<=СписокЗанятий[ВРЕМЯ ОКОНЧАНИЯ]),СписокЗанятий[УНИКАЛЬНЫЕ]),СписокЗанятий[УНИКАЛЬНЫЕ],0),2),0)","v":0},{"$f":"IFERROR(INDEX(СписокЗанятий[],MATCH(SUMPRODUCT((СписокЗанятий[ДЕНЬ]=РасписаниеЗанятий[[#Headers],[ПЯТНИЦА]])*(ROUNDDOWN($B37,10)>=ROUNDDOWN(СписокЗанятий[ВРЕМЯ НАЧАЛА],10))*($B37<=СписокЗанятий[ВРЕМЯ ОКОНЧАНИЯ]),СписокЗанятий[УНИКАЛЬНЫЕ]),СписокЗанятий[УНИКАЛЬНЫЕ],0),2),0)","v":0},{"$f":"IFERROR(INDEX(СписокЗанятий[],MATCH(SUMPRODUCT((СписокЗанятий[ДЕНЬ]=РасписаниеЗанятий[[#Headers],[СУББОТА]])*(ROUNDDOWN($B37,10)>=ROUNDDOWN(СписокЗанятий[ВРЕМЯ НАЧАЛА],10))*($B37<=СписокЗанятий[ВРЕМЯ ОКОНЧАНИЯ]),СписокЗанятий[УНИКАЛЬНЫЕ]),СписокЗанятий[УНИКАЛЬНЫЕ],0),2),0)","v":0}]
[null,"16:30:00",{"$f":"IFERROR(INDEX(СписокЗанятий[],MATCH(SUMPRODUCT((СписокЗанятий[ДЕНЬ]=РасписаниеЗанятий[[#Headers],[ВОСКРЕСЕНЬЕ]])*(ROUNDDOWN($B38,10)>=ROUNDDOWN(СписокЗанятий[ВРЕМЯ НАЧАЛА],10))*($B38<=СписокЗанятий[ВРЕМЯ ОКОНЧАНИЯ]),СписокЗанятий[УНИКАЛЬНЫЕ]),СписокЗанятий[УНИКАЛЬНЫЕ],0),2),0)","v":0},{"$f":"IFERROR(INDEX(СписокЗанятий[],MATCH(SUMPRODUCT((СписокЗанятий[ДЕНЬ]=РасписаниеЗанятий[[#Headers],[ПОНЕДЕЛЬНИК]])*(ROUNDDOWN($B38,10)>=ROUNDDOWN(СписокЗанятий[ВРЕМЯ НАЧАЛА],10))*($B38<=СписокЗанятий[ВРЕМЯ ОКОНЧАНИЯ]),СписокЗанятий[УНИКАЛЬНЫЕ]),СписокЗанятий[УНИКАЛЬНЫЕ],0),2),0)","v":"ОРИС"},{"$f":"IFERROR(INDEX(СписокЗанятий[],MATCH(SUMPRODUCT((СписокЗанятий[ДЕНЬ]=РасписаниеЗанятий[[#Headers],[ВТОРНИК]])*(ROUNDDOWN($B38,10)>=ROUNDDOWN(СписокЗанятий[ВРЕМЯ НАЧАЛА],10))*($B38<=СписокЗанятий[ВРЕМЯ ОКОНЧАНИЯ]),СписокЗанятий[УНИКАЛЬНЫЕ]),СписокЗанятий[УНИКАЛЬНЫЕ],0),2),0)","v":0},{"$f":"IFERROR(INDEX(СписокЗанятий[],MATCH(SUMPRODUCT((СписокЗанятий[ДЕНЬ]=РасписаниеЗанятий[[#Headers],[СРЕДА]])*(ROUNDDOWN($B38,10)>=ROUNDDOWN(СписокЗанятий[ВРЕМЯ НАЧАЛА],10))*($B38<=СписокЗанятий[ВРЕМЯ ОКОНЧАНИЯ]),СписокЗанятий[УНИКАЛЬНЫЕ]),СписокЗанятий[УНИКАЛЬНЫЕ],0),2),0)","v":0},{"$f":"IFERROR(INDEX(СписокЗанятий[],MATCH(SUMPRODUCT((СписокЗанятий[ДЕНЬ]=РасписаниеЗанятий[[#Headers],[ЧЕТВЕРГ]])*(ROUNDDOWN($B38,10)>=ROUNDDOWN(СписокЗанятий[ВРЕМЯ НАЧАЛА],10))*($B38<=СписокЗанятий[ВРЕМЯ ОКОНЧАНИЯ]),СписокЗанятий[УНИКАЛЬНЫЕ]),СписокЗанятий[УНИКАЛЬНЫЕ],0),2),0)","v":0},{"$f":"IFERROR(INDEX(СписокЗанятий[],MATCH(SUMPRODUCT((СписокЗанятий[ДЕНЬ]=РасписаниеЗанятий[[#Headers],[ПЯТНИЦА]])*(ROUNDDOWN($B38,10)>=ROUNDDOWN(СписокЗанятий[ВРЕМЯ НАЧАЛА],10))*($B38<=СписокЗанятий[ВРЕМЯ ОКОНЧАНИЯ]),СписокЗанятий[УНИКАЛЬНЫЕ]),СписокЗанятий[УНИКАЛЬНЫЕ],0),2),0)","v":0},{"$f":"IFERROR(INDEX(СписокЗанятий[],MATCH(SUMPRODUCT((СписокЗанятий[ДЕНЬ]=РасписаниеЗанятий[[#Headers],[СУББОТА]])*(ROUNDDOWN($B38,10)>=ROUNDDOWN(СписокЗанятий[ВРЕМЯ НАЧАЛА],10))*($B38<=СписокЗанятий[ВРЕМЯ ОКОНЧАНИЯ]),СписокЗанятий[УНИКАЛЬНЫЕ]),СписокЗанятий[УНИКАЛЬНЫЕ],0),2),0)","v":0}]
[null,"16:45:00",{"$f":"IFERROR(INDEX(СписокЗанятий[],MATCH(SUMPRODUCT((СписокЗанятий[ДЕНЬ]=РасписаниеЗанятий[[#Headers],[ВОСКРЕСЕНЬЕ]])*(ROUNDDOWN($B39,10)>=ROUNDDOWN(СписокЗанятий[ВРЕМЯ НАЧАЛА],10))*($B39<=СписокЗанятий[ВРЕМЯ ОКОНЧАНИЯ]),СписокЗанятий[УНИКАЛЬНЫЕ]),СписокЗанятий[УНИКАЛЬНЫЕ],0),2),0)","v":0},{"$f":"IFERROR(INDEX(СписокЗанятий[],MATCH(SUMPRODUCT((СписокЗанятий[ДЕНЬ]=РасписаниеЗанятий[[#Headers],[ПОНЕДЕЛЬНИК]])*(ROUNDDOWN($B39,10)>=ROUNDDOWN(СписокЗанятий[ВРЕМЯ НАЧАЛА],10))*($B39<=СписокЗанятий[ВРЕМЯ ОКОНЧАНИЯ]),СписокЗанятий[УНИКАЛЬНЫЕ]),СписокЗанятий[УНИКАЛЬНЫЕ],0),2),0)","v":"ОРИС"},{"$f":"IFERROR(INDEX(СписокЗанятий[],MATCH(SUMPRODUCT((СписокЗанятий[ДЕНЬ]=РасписаниеЗанятий[[#Headers],[ВТОРНИК]])*(ROUNDDOWN($B39,10)>=ROUNDDOWN(СписокЗанятий[ВРЕМЯ НАЧАЛА],10))*($B39<=СписокЗанятий[ВРЕМЯ ОКОНЧАНИЯ]),СписокЗанятий[УНИКАЛЬНЫЕ]),СписокЗанятий[УНИКАЛЬНЫЕ],0),2),0)","v":0},{"$f":"IFERROR(INDEX(СписокЗанятий[],MATCH(SUMPRODUCT((СписокЗанятий[ДЕНЬ]=РасписаниеЗанятий[[#Headers],[СРЕДА]])*(ROUNDDOWN($B39,10)>=ROUNDDOWN(СписокЗанятий[ВРЕМЯ НАЧАЛА],10))*($B39<=СписокЗанятий[ВРЕМЯ ОКОНЧАНИЯ]),СписокЗанятий[УНИКАЛЬНЫЕ]),СписокЗанятий[УНИКАЛЬНЫЕ],0),2),0)","v":0},{"$f":"IFERROR(INDEX(СписокЗанятий[],MATCH(SUMPRODUCT((СписокЗанятий[ДЕНЬ]=РасписаниеЗанятий[[#Headers],[ЧЕТВЕРГ]])*(ROUNDDOWN($B39,10)>=ROUNDDOWN(СписокЗанятий[ВРЕМЯ НАЧАЛА],10))*($B39<=СписокЗанятий[ВРЕМЯ ОКОНЧАНИЯ]),СписокЗанятий[УНИКАЛЬНЫЕ]),СписокЗанятий[УНИКАЛЬНЫЕ],0),2),0)","v":0},{"$f":"IFERROR(INDEX(СписокЗанятий[],MATCH(SUMPRODUCT((СписокЗанятий[ДЕНЬ]=РасписаниеЗанятий[[#Headers],[ПЯТНИЦА]])*(ROUNDDOWN($B39,10)>=ROUNDDOWN(СписокЗанятий[ВРЕМЯ НАЧАЛА],10))*($B39<=СписокЗанятий[ВРЕМЯ ОКОНЧАНИЯ]),СписокЗанятий[УНИКАЛЬНЫЕ]),СписокЗанятий[УНИКАЛЬНЫЕ],0),2),0)","v":0},{"$f":"IFERROR(INDEX(СписокЗанятий[],MATCH(SUMPRODUCT((СписокЗанятий[ДЕНЬ]=РасписаниеЗанятий[[#Headers],[СУББОТА]])*(ROUNDDOWN($B39,10)>=ROUNDDOWN(СписокЗанятий[ВРЕМЯ НАЧАЛА],10))*($B39<=СписокЗанятий[ВРЕМЯ ОКОНЧАНИЯ]),СписокЗанятий[УНИКАЛЬНЫЕ]),СписокЗанятий[УНИКАЛЬНЫЕ],0),2),0)","v":0}]
[null,"17:00:00",{"$f":"IFERROR(INDEX(СписокЗанятий[],MATCH(SUMPRODUCT((СписокЗанятий[ДЕНЬ]=РасписаниеЗанятий[[#Headers],[ВОСКРЕСЕНЬЕ]])*(ROUNDDOWN($B40,10)>=ROUNDDOWN(СписокЗанятий[ВРЕМЯ НАЧАЛА],10))*($B40<=СписокЗанятий[ВРЕМЯ ОКОНЧАНИЯ]),СписокЗанятий[УНИКАЛЬНЫЕ]),СписокЗанятий[УНИКАЛЬНЫЕ],0),2),0)","v":0},{"$f":"IFERROR(INDEX(СписокЗанятий[],MATCH(SUMPRODUCT((СписокЗанятий[ДЕНЬ]=РасписаниеЗанятий[[#Headers],[ПОНЕДЕЛЬНИК]])*(ROUNDDOWN($B40,10)>=ROUNDDOWN(СписокЗанятий[ВРЕМЯ НАЧАЛА],10))*($B40<=СписокЗанятий[ВРЕМЯ ОКОНЧАНИЯ]),СписокЗанятий[УНИКАЛЬНЫЕ]),СписокЗанятий[УНИКАЛЬНЫЕ],0),2),0)","v":"ОРИС"},{"$f":"IFERROR(INDEX(СписокЗанятий[],MATCH(SUMPRODUCT((СписокЗанятий[ДЕНЬ]=РасписаниеЗанятий[[#Headers],[ВТОРНИК]])*(ROUNDDOWN($B40,10)>=ROUNDDOWN(СписокЗанятий[ВРЕМЯ НАЧАЛА],10))*($B40<=СписокЗанятий[ВРЕМЯ ОКОНЧАНИЯ]),СписокЗанятий[УНИКАЛЬНЫЕ]),СписокЗанятий[УНИКАЛЬНЫЕ],0),2),0)","v":0},{"$f":"IFERROR(INDEX(СписокЗанятий[],MATCH(SUMPRODUCT((СписокЗанятий[ДЕНЬ]=РасписаниеЗанятий[[#Headers],[СРЕДА]])*(ROUNDDOWN($B40,10)>=ROUNDDOWN(СписокЗанятий[ВРЕМЯ НАЧАЛА],10))*($B40<=СписокЗанятий[ВРЕМЯ ОКОНЧАНИЯ]),СписокЗанятий[УНИКАЛЬНЫЕ]),СписокЗанятий[УНИКАЛЬНЫЕ],0),2),0)","v":0},{"$f":"IFERROR(INDEX(СписокЗанятий[],MATCH(SUMPRODUCT((СписокЗанятий[ДЕНЬ]=РасписаниеЗанятий[[#Headers],[ЧЕТВЕРГ]])*(ROUNDDOWN($B40,10)>=ROUNDDOWN(СписокЗанятий[ВРЕМЯ НАЧАЛА],10))*($B40<=СписокЗанятий[ВРЕМЯ ОКОНЧАНИЯ]),СписокЗанятий[УНИКАЛЬНЫЕ]),СписокЗанятий[УНИКАЛЬНЫЕ],0),2),0)","v":0},{"$f":"IFERROR(INDEX(СписокЗанятий[],MATCH(SUMPRODUCT((СписокЗанятий[ДЕНЬ]=РасписаниеЗанятий[[#Headers],[ПЯТНИЦА]])*(ROUNDDOWN($B40,10)>=ROUNDDOWN(СписокЗанятий[ВРЕМЯ НАЧАЛА],10))*($B40<=СписокЗанятий[ВРЕМЯ ОКОНЧАНИЯ]),СписокЗанятий[УНИКАЛЬНЫЕ]),СписокЗанятий[УНИКАЛЬНЫЕ],0),2),0)","v":0},{"$f":"IFERROR(INDEX(СписокЗанятий[],MATCH(SUMPRODUCT((СписокЗанятий[ДЕНЬ]=РасписаниеЗанятий[[#Headers],[СУББОТА]])*(ROUNDDOWN($B40,10)>=ROUNDDOWN(СписокЗанятий[ВРЕМЯ НАЧАЛА],10))*($B40<=СписокЗанятий[ВРЕМЯ ОКОНЧАНИЯ]),СписокЗанятий[УНИКАЛЬНЫЕ]),СписокЗанятий[УНИКАЛЬНЫЕ],0),2),0)","v":0}]
[null,"17:15:00",{"$f":"IFERROR(INDEX(СписокЗанятий[],MATCH(SUMPRODUCT((СписокЗанятий[ДЕНЬ]=РасписаниеЗанятий[[#Headers],[ВОСКРЕСЕНЬЕ]])*(ROUNDDOWN($B41,10)>=ROUNDDOWN(СписокЗанятий[ВРЕМЯ НАЧАЛА],10))*($B41<=СписокЗанятий[ВРЕМЯ ОКОНЧАНИЯ]),СписокЗанятий[УНИКАЛЬНЫЕ]),СписокЗанятий[УНИКАЛЬНЫЕ],0),2),0)","v":0},{"$f":"IFERROR(INDEX(СписокЗанятий[],MATCH(SUMPRODUCT((СписокЗанятий[ДЕНЬ]=РасписаниеЗанятий[[#Headers],[ПОНЕДЕЛЬНИК]])*(ROUNDDOWN($B41,10)>=ROUNDDOWN(СписокЗанятий[ВРЕМЯ НАЧАЛА],10))*($B41<=СписокЗанятий[ВРЕМЯ ОКОНЧАНИЯ]),СписокЗанятий[УНИКАЛЬНЫЕ]),СписокЗанятий[УНИКАЛЬНЫЕ],0),2),0)","v":0},{"$f":"IFERROR(INDEX(СписокЗанятий[],MATCH(SUMPRODUCT((СписокЗанятий[ДЕНЬ]=РасписаниеЗанятий[[#Headers],[ВТОРНИК]])*(ROUNDDOWN($B41,10)>=ROUNDDOWN(СписокЗанятий[ВРЕМЯ НАЧАЛА],10))*($B41<=СписокЗанятий[ВРЕМЯ ОКОНЧАНИЯ]),СписокЗанятий[УНИКАЛЬНЫЕ]),СписокЗанятий[УНИКАЛЬНЫЕ],0),2),0)","v":0},{"$f":"IFERROR(INDEX(СписокЗанятий[],MATCH(SUMPRODUCT((СписокЗанятий[ДЕНЬ]=РасписаниеЗанятий[[#Headers],[СРЕДА]])*(ROUNDDOWN($B41,10)>=ROUNDDOWN(СписокЗанятий[ВРЕМЯ НАЧАЛА],10))*($B41<=СписокЗанятий[ВРЕМЯ ОКОНЧАНИЯ]),СписокЗанятий[УНИКАЛЬНЫЕ]),СписокЗанятий[УНИКАЛЬНЫЕ],0),2),0)","v":0},{"$f":"IFERROR(INDEX(СписокЗанятий[],MATCH(SUMPRODUCT((СписокЗанятий[ДЕНЬ]=РасписаниеЗанятий[[#Headers],[ЧЕТВЕРГ]])*(ROUNDDOWN($B41,10)>=ROUNDDOWN(СписокЗанятий[ВРЕМЯ НАЧАЛА],10))*($B41<=СписокЗанятий[ВРЕМЯ ОКОНЧАНИЯ]),СписокЗанятий[УНИКАЛЬНЫЕ]),СписокЗанятий[УНИКАЛЬНЫЕ],0),2),0)","v":0},{"$f":"IFERROR(INDEX(СписокЗанятий[],MATCH(SUMPRODUCT((СписокЗанятий[ДЕНЬ]=РасписаниеЗанятий[[#Headers],[ПЯТНИЦА]])*(ROUNDDOWN($B41,10)>=ROUNDDOWN(СписокЗанятий[ВРЕМЯ НАЧАЛА],10))*($B41<=СписокЗанятий[ВРЕМЯ ОКОНЧАНИЯ]),СписокЗанятий[УНИКАЛЬНЫЕ]),СписокЗанятий[УНИКАЛЬНЫЕ],0),2),0)","v":0},{"$f":"IFERROR(INDEX(СписокЗанятий[],MATCH(SUMPRODUCT((СписокЗанятий[ДЕНЬ]=РасписаниеЗанятий[[#Headers],[СУББОТА]])*(ROUNDDOWN($B41,10)>=ROUNDDOWN(СписокЗанятий[ВРЕМЯ НАЧАЛА],10))*($B41<=СписокЗанятий[ВРЕМЯ ОКОНЧАНИЯ]),СписокЗанятий[УНИКАЛЬНЫЕ]),СписокЗанятий[УНИКАЛЬНЫЕ],0),2),0)","v":0}]
[null,"17:30:00",{"$f":"IFERROR(INDEX(СписокЗанятий[],MATCH(SUMPRODUCT((СписокЗанятий[ДЕНЬ]=РасписаниеЗанятий[[#Headers],[ВОСКРЕСЕНЬЕ]])*(ROUNDDOWN($B42,10)>=ROUNDDOWN(СписокЗанятий[ВРЕМЯ НАЧАЛА],10))*($B42<=СписокЗанятий[ВРЕМЯ ОКОНЧАНИЯ]),СписокЗанятий[УНИКАЛЬНЫЕ]),СписокЗанятий[УНИКАЛЬНЫЕ],0),2),0)","v":0},{"$f":"IFERROR(INDEX(СписокЗанятий[],MATCH(SUMPRODUCT((СписокЗанятий[ДЕНЬ]=РасписаниеЗанятий[[#Headers],[ПОНЕДЕЛЬНИК]])*(ROUNDDOWN($B42,10)>=ROUNDDOWN(СписокЗанятий[ВРЕМЯ НАЧАЛА],10))*($B42<=СписокЗанятий[ВРЕМЯ ОКОНЧАНИЯ]),СписокЗанятий[УНИКАЛЬНЫЕ]),СписокЗанятий[УНИКАЛЬНЫЕ],0),2),0)","v":0},{"$f":"IFERROR(INDEX(СписокЗанятий[],MATCH(SUMPRODUCT((СписокЗанятий[ДЕНЬ]=РасписаниеЗанятий[[#Headers],[ВТОРНИК]])*(ROUNDDOWN($B42,10)>=ROUNDDOWN(СписокЗанятий[ВРЕМЯ НАЧАЛА],10))*($B42<=СписокЗанятий[ВРЕМЯ ОКОНЧАНИЯ]),СписокЗанятий[УНИКАЛЬНЫЕ]),СписокЗанятий[УНИКАЛЬНЫЕ],0),2),0)","v":0},{"$f":"IFERROR(INDEX(СписокЗанятий[],MATCH(SUMPRODUCT((СписокЗанятий[ДЕНЬ]=РасписаниеЗанятий[[#Headers],[СРЕДА]])*(ROUNDDOWN($B42,10)>=ROUNDDOWN(СписокЗанятий[ВРЕМЯ НАЧАЛА],10))*($B42<=СписокЗанятий[ВРЕМЯ ОКОНЧАНИЯ]),СписокЗанятий[УНИКАЛЬНЫЕ]),СписокЗанятий[УНИКАЛЬНЫЕ],0),2),0)","v":0},{"$f":"IFERROR(INDEX(СписокЗанятий[],MATCH(SUMPRODUCT((СписокЗанятий[ДЕНЬ]=РасписаниеЗанятий[[#Headers],[ЧЕТВЕРГ]])*(ROUNDDOWN($B42,10)>=ROUNDDOWN(СписокЗанятий[ВРЕМЯ НАЧАЛА],10))*($B42<=СписокЗанятий[ВРЕМЯ ОКОНЧАНИЯ]),СписокЗанятий[УНИКАЛЬНЫЕ]),СписокЗанятий[УНИКАЛЬНЫЕ],0),2),0)","v":0},{"$f":"IFERROR(INDEX(СписокЗанятий[],MATCH(SUMPRODUCT((СписокЗанятий[ДЕНЬ]=РасписаниеЗанятий[[#Headers],[ПЯТНИЦА]])*(ROUNDDOWN($B42,10)>=ROUNDDOWN(СписокЗанятий[ВРЕМЯ НАЧАЛА],10))*($B42<=СписокЗанятий[ВРЕМЯ ОКОНЧАНИЯ]),СписокЗанятий[УНИКАЛЬНЫЕ]),СписокЗанятий[УНИКАЛЬНЫЕ],0),2),0)","v":0},{"$f":"IFERROR(INDEX(СписокЗанятий[],MATCH(SUMPRODUCT((СписокЗанятий[ДЕНЬ]=РасписаниеЗанятий[[#Headers],[СУББОТА]])*(ROUNDDOWN($B42,10)>=ROUNDDOWN(СписокЗанятий[ВРЕМЯ НАЧАЛА],10))*($B42<=СписокЗанятий[ВРЕМЯ ОКОНЧАНИЯ]),СписокЗанятий[УНИКАЛЬНЫЕ]),СписокЗанятий[УНИКАЛЬНЫЕ],0),2),0)","v":0}]
[null,"17:45:00",{"$f":"IFERROR(INDEX(СписокЗанятий[],MATCH(SUMPRODUCT((СписокЗанятий[ДЕНЬ]=РасписаниеЗанятий[[#Headers],[ВОСКРЕСЕНЬЕ]])*(ROUNDDOWN($B43,10)>=ROUNDDOWN(СписокЗанятий[ВРЕМЯ НАЧАЛА],10))*($B43<=СписокЗанятий[ВРЕМЯ ОКОНЧАНИЯ]),СписокЗанятий[УНИКАЛЬНЫЕ]),СписокЗанятий[УНИКАЛЬНЫЕ],0),2),0)","v":0},{"$f":"IFERROR(INDEX(СписокЗанятий[],MATCH(SUMPRODUCT((СписокЗанятий[ДЕНЬ]=РасписаниеЗанятий[[#Headers],[ПОНЕДЕЛЬНИК]])*(ROUNDDOWN($B43,10)>=ROUNDDOWN(СписокЗанятий[ВРЕМЯ НАЧАЛА],10))*($B43<=СписокЗанятий[ВРЕМЯ ОКОНЧАНИЯ]),СписокЗанятий[УНИКАЛЬНЫЕ]),СписокЗанятий[УНИКАЛЬНЫЕ],0),2),0)","v":0},{"$f":"IFERROR(INDEX(СписокЗанятий[],MATCH(SUMPRODUCT((СписокЗанятий[ДЕНЬ]=РасписаниеЗанятий[[#Headers],[ВТОРНИК]])*(ROUNDDOWN($B43,10)>=ROUNDDOWN(СписокЗанятий[ВРЕМЯ НАЧАЛА],10))*($B43<=СписокЗанятий[ВРЕМЯ ОКОНЧАНИЯ]),СписокЗанятий[УНИКАЛЬНЫЕ]),СписокЗанятий[УНИКАЛЬНЫЕ],0),2),0)","v":0},{"$f":"IFERROR(INDEX(СписокЗанятий[],MATCH(SUMPRODUCT((СписокЗанятий[ДЕНЬ]=РасписаниеЗанятий[[#Headers],[СРЕДА]])*(ROUNDDOWN($B43,10)>=ROUNDDOWN(СписокЗанятий[ВРЕМЯ НАЧАЛА],10))*($B43<=СписокЗанятий[ВРЕМЯ ОКОНЧАНИЯ]),СписокЗанятий[УНИКАЛЬНЫЕ]),СписокЗанятий[УНИКАЛЬНЫЕ],0),2),0)","v":0},{"$f":"IFERROR(INDEX(СписокЗанятий[],MATCH(SUMPRODUCT((СписокЗанятий[ДЕНЬ]=РасписаниеЗанятий[[#Headers],[ЧЕТВЕРГ]])*(ROUNDDOWN($B43,10)>=ROUNDDOWN(СписокЗанятий[ВРЕМЯ НАЧАЛА],10))*($B43<=СписокЗанятий[ВРЕМЯ ОКОНЧАНИЯ]),СписокЗанятий[УНИКАЛЬНЫЕ]),СписокЗанятий[УНИКАЛЬНЫЕ],0),2),0)","v":0},{"$f":"IFERROR(INDEX(СписокЗанятий[],MATCH(SUMPRODUCT((СписокЗанятий[ДЕНЬ]=РасписаниеЗанятий[[#Headers],[ПЯТНИЦА]])*(ROUNDDOWN($B43,10)>=ROUNDDOWN(СписокЗанятий[ВРЕМЯ НАЧАЛА],10))*($B43<=СписокЗанятий[ВРЕМЯ ОКОНЧАНИЯ]),СписокЗанятий[УНИКАЛЬНЫЕ]),СписокЗанятий[УНИКАЛЬНЫЕ],0),2),0)","v":0},{"$f":"IFERROR(INDEX(СписокЗанятий[],MATCH(SUMPRODUCT((СписокЗанятий[ДЕНЬ]=РасписаниеЗанятий[[#Headers],[СУББОТА]])*(ROUNDDOWN($B43,10)>=ROUNDDOWN(СписокЗанятий[ВРЕМЯ НАЧАЛА],10))*($B43<=СписокЗанятий[ВРЕМЯ ОКОНЧАНИЯ]),СписокЗанятий[УНИКАЛЬНЫЕ]),СписокЗанятий[УНИКАЛЬНЫЕ],0),2),0)","v":0}]
[null,"18:00:00",{"$f":"IFERROR(INDEX(СписокЗанятий[],MATCH(SUMPRODUCT((СписокЗанятий[ДЕНЬ]=РасписаниеЗанятий[[#Headers],[ВОСКРЕСЕНЬЕ]])*(ROUNDDOWN($B44,10)>=ROUNDDOWN(СписокЗанятий[ВРЕМЯ НАЧАЛА],10))*($B44<=СписокЗанятий[ВРЕМЯ ОКОНЧАНИЯ]),СписокЗанятий[УНИКАЛЬНЫЕ]),СписокЗанятий[УНИКАЛЬНЫЕ],0),2),0)","v":0},{"$f":"IFERROR(INDEX(СписокЗанятий[],MATCH(SUMPRODUCT((СписокЗанятий[ДЕНЬ]=РасписаниеЗанятий[[#Headers],[ПОНЕДЕЛЬНИК]])*(ROUNDDOWN($B44,10)>=ROUNDDOWN(СписокЗанятий[ВРЕМЯ НАЧАЛА],10))*($B44<=СписокЗанятий[ВРЕМЯ ОКОНЧАНИЯ]),СписокЗанятий[УНИКАЛЬНЫЕ]),СписокЗанятий[УНИКАЛЬНЫЕ],0),2),0)","v":0},{"$f":"IFERROR(INDEX(СписокЗанятий[],MATCH(SUMPRODUCT((СписокЗанятий[ДЕНЬ]=РасписаниеЗанятий[[#Headers],[ВТОРНИК]])*(ROUNDDOWN($B44,10)>=ROUNDDOWN(СписокЗанятий[ВРЕМЯ НАЧАЛА],10))*($B44<=СписокЗанятий[ВРЕМЯ ОКОНЧАНИЯ]),СписокЗанятий[УНИКАЛЬНЫЕ]),СписокЗанятий[УНИКАЛЬНЫЕ],0),2),0)","v":0},{"$f":"IFERROR(INDEX(СписокЗанятий[],MATCH(SUMPRODUCT((СписокЗанятий[ДЕНЬ]=РасписаниеЗанятий[[#Headers],[СРЕДА]])*(ROUNDDOWN($B44,10)>=ROUNDDOWN(СписокЗанятий[ВРЕМЯ НАЧАЛА],10))*($B44<=СписокЗанятий[ВРЕМЯ ОКОНЧАНИЯ]),СписокЗанятий[УНИКАЛЬНЫЕ]),СписокЗанятий[УНИКАЛЬНЫЕ],0),2),0)","v":0},{"$f":"IFERROR(INDEX(СписокЗанятий[],MATCH(SUMPRODUCT((СписокЗанятий[ДЕНЬ]=РасписаниеЗанятий[[#Headers],[ЧЕТВЕРГ]])*(ROUNDDOWN($B44,10)>=ROUNDDOWN(СписокЗанятий[ВРЕМЯ НАЧАЛА],10))*($B44<=СписокЗанятий[ВРЕМЯ ОКОНЧАНИЯ]),СписокЗанятий[УНИКАЛЬНЫЕ]),СписокЗанятий[УНИКАЛЬНЫЕ],0),2),0)","v":0},{"$f":"IFERROR(INDEX(СписокЗанятий[],MATCH(SUMPRODUCT((СписокЗанятий[ДЕНЬ]=РасписаниеЗанятий[[#Headers],[ПЯТНИЦА]])*(ROUNDDOWN($B44,10)>=ROUNDDOWN(СписокЗанятий[ВРЕМЯ НАЧАЛА],10))*($B44<=СписокЗанятий[ВРЕМЯ ОКОНЧАНИЯ]),СписокЗанятий[УНИКАЛЬНЫЕ]),СписокЗанятий[УНИКАЛЬНЫЕ],0),2),0)","v":0},{"$f":"IFERROR(INDEX(СписокЗанятий[],MATCH(SUMPRODUCT((СписокЗанятий[ДЕНЬ]=РасписаниеЗанятий[[#Headers],[СУББОТА]])*(ROUNDDOWN($B44,10)>=ROUNDDOWN(СписокЗанятий[ВРЕМЯ НАЧАЛА],10))*($B44<=СписокЗанятий[ВРЕМЯ ОКОНЧАНИЯ]),СписокЗанятий[УНИКАЛЬНЫЕ]),СписокЗанятий[УНИКАЛЬНЫЕ],0),2),0)","v":0}]
[null,"18:15:00",{"$f":"IFERROR(INDEX(СписокЗанятий[],MATCH(SUMPRODUCT((СписокЗанятий[ДЕНЬ]=РасписаниеЗанятий[[#Headers],[ВОСКРЕСЕНЬЕ]])*(ROUNDDOWN($B45,10)>=ROUNDDOWN(СписокЗанятий[ВРЕМЯ НАЧАЛА],10))*($B45<=СписокЗанятий[ВРЕМЯ ОКОНЧАНИЯ]),СписокЗанятий[УНИКАЛЬНЫЕ]),СписокЗанятий[УНИКАЛЬНЫЕ],0),2),0)","v":0},{"$f":"IFERROR(INDEX(СписокЗанятий[],MATCH(SUMPRODUCT((СписокЗанятий[ДЕНЬ]=РасписаниеЗанятий[[#Headers],[ПОНЕДЕЛЬНИК]])*(ROUNDDOWN($B45,10)>=ROUNDDOWN(СписокЗанятий[ВРЕМЯ НАЧАЛА],10))*($B45<=СписокЗанятий[ВРЕМЯ ОКОНЧАНИЯ]),СписокЗанятий[УНИКАЛЬНЫЕ]),СписокЗанятий[УНИКАЛЬНЫЕ],0),2),0)","v":0},{"$f":"IFERROR(INDEX(СписокЗанятий[],MATCH(SUMPRODUCT((СписокЗанятий[ДЕНЬ]=РасписаниеЗанятий[[#Headers],[ВТОРНИК]])*(ROUNDDOWN($B45,10)>=ROUNDDOWN(СписокЗанятий[ВРЕМЯ НАЧАЛА],10))*($B45<=СписокЗанятий[ВРЕМЯ ОКОНЧАНИЯ]),СписокЗанятий[УНИКАЛЬНЫЕ]),СписокЗанятий[УНИКАЛЬНЫЕ],0),2),0)","v":0},{"$f":"IFERROR(INDEX(СписокЗанятий[],MATCH(SUMPRODUCT((СписокЗанятий[ДЕНЬ]=РасписаниеЗанятий[[#Headers],[СРЕДА]])*(ROUNDDOWN($B45,10)>=ROUNDDOWN(СписокЗанятий[ВРЕМЯ НАЧАЛА],10))*($B45<=СписокЗанятий[ВРЕМЯ ОКОНЧАНИЯ]),СписокЗанятий[УНИКАЛЬНЫЕ]),СписокЗанятий[УНИКАЛЬНЫЕ],0),2),0)","v":0},{"$f":"IFERROR(INDEX(СписокЗанятий[],MATCH(SUMPRODUCT((СписокЗанятий[ДЕНЬ]=РасписаниеЗанятий[[#Headers],[ЧЕТВЕРГ]])*(ROUNDDOWN($B45,10)>=ROUNDDOWN(СписокЗанятий[ВРЕМЯ НАЧАЛА],10))*($B45<=СписокЗанятий[ВРЕМЯ ОКОНЧАНИЯ]),СписокЗанятий[УНИКАЛЬНЫЕ]),СписокЗанятий[УНИКАЛЬНЫЕ],0),2),0)","v":0},{"$f":"IFERROR(INDEX(СписокЗанятий[],MATCH(SUMPRODUCT((СписокЗанятий[ДЕНЬ]=РасписаниеЗанятий[[#Headers],[ПЯТНИЦА]])*(ROUNDDOWN($B45,10)>=ROUNDDOWN(СписокЗанятий[ВРЕМЯ НАЧАЛА],10))*($B45<=СписокЗанятий[ВРЕМЯ ОКОНЧАНИЯ]),СписокЗанятий[УНИКАЛЬНЫЕ]),СписокЗанятий[УНИКАЛЬНЫЕ],0),2),0)","v":0},{"$f":"IFERROR(INDEX(СписокЗанятий[],MATCH(SUMPRODUCT((СписокЗанятий[ДЕНЬ]=РасписаниеЗанятий[[#Headers],[СУББОТА]])*(ROUNDDOWN($B45,10)>=ROUNDDOWN(СписокЗанятий[ВРЕМЯ НАЧАЛА],10))*($B45<=СписокЗанятий[ВРЕМЯ ОКОНЧАНИЯ]),СписокЗанятий[УНИКАЛЬНЫЕ]),СписокЗанятий[УНИКАЛЬНЫЕ],0),2),0)","v":0}]
[null,"18:30:00",{"$f":"IFERROR(INDEX(СписокЗанятий[],MATCH(SUMPRODUCT((СписокЗанятий[ДЕНЬ]=РасписаниеЗанятий[[#Headers],[ВОСКРЕСЕНЬЕ]])*(ROUNDDOWN($B46,10)>=ROUNDDOWN(СписокЗанятий[ВРЕМЯ НАЧАЛА],10))*($B46<=СписокЗанятий[ВРЕМЯ ОКОНЧАНИЯ]),СписокЗанятий[УНИКАЛЬНЫЕ]),СписокЗанятий[УНИКАЛЬНЫЕ],0),2),0)","v":0},{"$f":"IFERROR(INDEX(СписокЗанятий[],MATCH(SUMPRODUCT((СписокЗанятий[ДЕНЬ]=РасписаниеЗанятий[[#Headers],[ПОНЕДЕЛЬНИК]])*(ROUNDDOWN($B46,10)>=ROUNDDOWN(СписокЗанятий[ВРЕМЯ НАЧАЛА],10))*($B46<=СписокЗанятий[ВРЕМЯ ОКОНЧАНИЯ]),СписокЗанятий[УНИКАЛЬНЫЕ]),СписокЗанятий[УНИКАЛЬНЫЕ],0),2),0)","v":0},{"$f":"IFERROR(INDEX(СписокЗанятий[],MATCH(SUMPRODUCT((СписокЗанятий[ДЕНЬ]=РасписаниеЗанятий[[#Headers],[ВТОРНИК]])*(ROUNDDOWN($B46,10)>=ROUNDDOWN(СписокЗанятий[ВРЕМЯ НАЧАЛА],10))*($B46<=СписокЗанятий[ВРЕМЯ ОКОНЧАНИЯ]),СписокЗанятий[УНИКАЛЬНЫЕ]),СписокЗанятий[УНИКАЛЬНЫЕ],0),2),0)","v":0},{"$f":"IFERROR(INDEX(СписокЗанятий[],MATCH(SUMPRODUCT((СписокЗанятий[ДЕНЬ]=РасписаниеЗанятий[[#Headers],[СРЕДА]])*(ROUNDDOWN($B46,10)>=ROUNDDOWN(СписокЗанятий[ВРЕМЯ НАЧАЛА],10))*($B46<=СписокЗанятий[ВРЕМЯ ОКОНЧАНИЯ]),СписокЗанятий[УНИКАЛЬНЫЕ]),СписокЗанятий[УНИКАЛЬНЫЕ],0),2),0)","v":0},{"$f":"IFERROR(INDEX(СписокЗанятий[],MATCH(SUMPRODUCT((СписокЗанятий[ДЕНЬ]=РасписаниеЗанятий[[#Headers],[ЧЕТВЕРГ]])*(ROUNDDOWN($B46,10)>=ROUNDDOWN(СписокЗанятий[ВРЕМЯ НАЧАЛА],10))*($B46<=СписокЗанятий[ВРЕМЯ ОКОНЧАНИЯ]),СписокЗанятий[УНИКАЛЬНЫЕ]),СписокЗанятий[УНИКАЛЬНЫЕ],0),2),0)","v":0},{"$f":"IFERROR(INDEX(СписокЗанятий[],MATCH(SUMPRODUCT((СписокЗанятий[ДЕНЬ]=РасписаниеЗанятий[[#Headers],[ПЯТНИЦА]])*(ROUNDDOWN($B46,10)>=ROUNDDOWN(СписокЗанятий[ВРЕМЯ НАЧАЛА],10))*($B46<=СписокЗанятий[ВРЕМЯ ОКОНЧАНИЯ]),СписокЗанятий[УНИКАЛЬНЫЕ]),СписокЗанятий[УНИКАЛЬНЫЕ],0),2),0)","v":0},{"$f":"IFERROR(INDEX(СписокЗанятий[],MATCH(SUMPRODUCT((СписокЗанятий[ДЕНЬ]=РасписаниеЗанятий[[#Headers],[СУББОТА]])*(ROUNDDOWN($B46,10)>=ROUNDDOWN(СписокЗанятий[ВРЕМЯ НАЧАЛА],10))*($B46<=СписокЗанятий[ВРЕМЯ ОКОНЧАНИЯ]),СписокЗанятий[УНИКАЛЬНЫЕ]),СписокЗанятий[УНИКАЛЬНЫЕ],0),2),0)","v":0}]
[null,"18:45:00",{"$f":"IFERROR(INDEX(СписокЗанятий[],MATCH(SUMPRODUCT((СписокЗанятий[ДЕНЬ]=РасписаниеЗанятий[[#Headers],[ВОСКРЕСЕНЬЕ]])*(ROUNDDOWN($B47,10)>=ROUNDDOWN(СписокЗанятий[ВРЕМЯ НАЧАЛА],10))*($B47<=СписокЗанятий[ВРЕМЯ ОКОНЧАНИЯ]),СписокЗанятий[УНИКАЛЬНЫЕ]),СписокЗанятий[УНИКАЛЬНЫЕ],0),2),0)","v":0},{"$f":"IFERROR(INDEX(СписокЗанятий[],MATCH(SUMPRODUCT((СписокЗанятий[ДЕНЬ]=РасписаниеЗанятий[[#Headers],[ПОНЕДЕЛЬНИК]])*(ROUNDDOWN($B47,10)>=ROUNDDOWN(СписокЗанятий[ВРЕМЯ НАЧАЛА],10))*($B47<=СписокЗанятий[ВРЕМЯ ОКОНЧАНИЯ]),СписокЗанятий[УНИКАЛЬНЫЕ]),СписокЗанятий[УНИКАЛЬНЫЕ],0),2),0)","v":0},{"$f":"IFERROR(INDEX(СписокЗанятий[],MATCH(SUMPRODUCT((СписокЗанятий[ДЕНЬ]=РасписаниеЗанятий[[#Headers],[ВТОРНИК]])*(ROUNDDOWN($B47,10)>=ROUNDDOWN(СписокЗанятий[ВРЕМЯ НАЧАЛА],10))*($B47<=СписокЗанятий[ВРЕМЯ ОКОНЧАНИЯ]),СписокЗанятий[УНИКАЛЬНЫЕ]),СписокЗанятий[УНИКАЛЬНЫЕ],0),2),0)","v":0},{"$f":"IFERROR(INDEX(СписокЗанятий[],MATCH(SUMPRODUCT((СписокЗанятий[ДЕНЬ]=РасписаниеЗанятий[[#Headers],[СРЕДА]])*(ROUNDDOWN($B47,10)>=ROUNDDOWN(СписокЗанятий[ВРЕМЯ НАЧАЛА],10))*($B47<=СписокЗанятий[ВРЕМЯ ОКОНЧАНИЯ]),СписокЗанятий[УНИКАЛЬНЫЕ]),СписокЗанятий[УНИКАЛЬНЫЕ],0),2),0)","v":0},{"$f":"IFERROR(INDEX(СписокЗанятий[],MATCH(SUMPRODUCT((СписокЗанятий[ДЕНЬ]=РасписаниеЗанятий[[#Headers],[ЧЕТВЕРГ]])*(ROUNDDOWN($B47,10)>=ROUNDDOWN(СписокЗанятий[ВРЕМЯ НАЧАЛА],10))*($B47<=СписокЗанятий[ВРЕМЯ ОКОНЧАНИЯ]),СписокЗанятий[УНИКАЛЬНЫЕ]),СписокЗанятий[УНИКАЛЬНЫЕ],0),2),0)","v":0},{"$f":"IFERROR(INDEX(СписокЗанятий[],MATCH(SUMPRODUCT((СписокЗанятий[ДЕНЬ]=РасписаниеЗанятий[[#Headers],[ПЯТНИЦА]])*(ROUNDDOWN($B47,10)>=ROUNDDOWN(СписокЗанятий[ВРЕМЯ НАЧАЛА],10))*($B47<=СписокЗанятий[ВРЕМЯ ОКОНЧАНИЯ]),СписокЗанятий[УНИКАЛЬНЫЕ]),СписокЗанятий[УНИКАЛЬНЫЕ],0),2),0)","v":0},{"$f":"IFERROR(INDEX(СписокЗанятий[],MATCH(SUMPRODUCT((СписокЗанятий[ДЕНЬ]=РасписаниеЗанятий[[#Headers],[СУББОТА]])*(ROUNDDOWN($B47,10)>=ROUNDDOWN(СписокЗанятий[ВРЕМЯ НАЧАЛА],10))*($B47<=СписокЗанятий[ВРЕМЯ ОКОНЧАНИЯ]),СписокЗанятий[УНИКАЛЬНЫЕ]),СписокЗанятий[УНИКАЛЬНЫЕ],0),2),0)","v":0}]
[null,"19:00:00",{"$f":"IFERROR(INDEX(СписокЗанятий[],MATCH(SUMPRODUCT((СписокЗанятий[ДЕНЬ]=РасписаниеЗанятий[[#Headers],[ВОСКРЕСЕНЬЕ]])*(ROUNDDOWN($B48,10)>=ROUNDDOWN(СписокЗанятий[ВРЕМЯ НАЧАЛА],10))*($B48<=СписокЗанятий[ВРЕМЯ ОКОНЧАНИЯ]),СписокЗанятий[УНИКАЛЬНЫЕ]),СписокЗанятий[УНИКАЛЬНЫЕ],0),2),0)","v":0},{"$f":"IFERROR(INDEX(СписокЗанятий[],MATCH(SUMPRODUCT((СписокЗанятий[ДЕНЬ]=РасписаниеЗанятий[[#Headers],[ПОНЕДЕЛЬНИК]])*(ROUNDDOWN($B48,10)>=ROUNDDOWN(СписокЗанятий[ВРЕМЯ НАЧАЛА],10))*($B48<=СписокЗанятий[ВРЕМЯ ОКОНЧАНИЯ]),СписокЗанятий[УНИКАЛЬНЫЕ]),СписокЗанятий[УНИКАЛЬНЫЕ],0),2),0)","v":0},{"$f":"IFERROR(INDEX(СписокЗанятий[],MATCH(SUMPRODUCT((СписокЗанятий[ДЕНЬ]=РасписаниеЗанятий[[#Headers],[ВТОРНИК]])*(ROUNDDOWN($B48,10)>=ROUNDDOWN(СписокЗанятий[ВРЕМЯ НАЧАЛА],10))*($B48<=СписокЗанятий[ВРЕМЯ ОКОНЧАНИЯ]),СписокЗанятий[УНИКАЛЬНЫЕ]),СписокЗанятий[УНИКАЛЬНЫЕ],0),2),0)","v":0},{"$f":"IFERROR(INDEX(СписокЗанятий[],MATCH(SUMPRODUCT((СписокЗанятий[ДЕНЬ]=РасписаниеЗанятий[[#Headers],[СРЕДА]])*(ROUNDDOWN($B48,10)>=ROUNDDOWN(СписокЗанятий[ВРЕМЯ НАЧАЛА],10))*($B48<=СписокЗанятий[ВРЕМЯ ОКОНЧАНИЯ]),СписокЗанятий[УНИКАЛЬНЫЕ]),СписокЗанятий[УНИКАЛЬНЫЕ],0),2),0)","v":0},{"$f":"IFERROR(INDEX(СписокЗанятий[],MATCH(SUMPRODUCT((СписокЗанятий[ДЕНЬ]=РасписаниеЗанятий[[#Headers],[ЧЕТВЕРГ]])*(ROUNDDOWN($B48,10)>=ROUNDDOWN(СписокЗанятий[ВРЕМЯ НАЧАЛА],10))*($B48<=СписокЗанятий[ВРЕМЯ ОКОНЧАНИЯ]),СписокЗанятий[УНИКАЛЬНЫЕ]),СписокЗанятий[УНИКАЛЬНЫЕ],0),2),0)","v":0},{"$f":"IFERROR(INDEX(СписокЗанятий[],MATCH(SUMPRODUCT((СписокЗанятий[ДЕНЬ]=РасписаниеЗанятий[[#Headers],[ПЯТНИЦА]])*(ROUNDDOWN($B48,10)>=ROUNDDOWN(СписокЗанятий[ВРЕМЯ НАЧАЛА],10))*($B48<=СписокЗанятий[ВРЕМЯ ОКОНЧАНИЯ]),СписокЗанятий[УНИКАЛЬНЫЕ]),СписокЗанятий[УНИКАЛЬНЫЕ],0),2),0)","v":0},{"$f":"IFERROR(INDEX(СписокЗанятий[],MATCH(SUMPRODUCT((СписокЗанятий[ДЕНЬ]=РасписаниеЗанятий[[#Headers],[СУББОТА]])*(ROUNDDOWN($B48,10)>=ROUNDDOWN(СписокЗанятий[ВРЕМЯ НАЧАЛА],10))*($B48<=СписокЗанятий[ВРЕМЯ ОКОНЧАНИЯ]),СписокЗанятий[УНИКАЛЬНЫЕ]),СписокЗанятий[УНИКАЛЬНЫЕ],0),2),0)","v":0}]
[null,"19:15:00",{"$f":"IFERROR(INDEX(СписокЗанятий[],MATCH(SUMPRODUCT((СписокЗанятий[ДЕНЬ]=РасписаниеЗанятий[[#Headers],[ВОСКРЕСЕНЬЕ]])*(ROUNDDOWN($B49,10)>=ROUNDDOWN(СписокЗанятий[ВРЕМЯ НАЧАЛА],10))*($B49<=СписокЗанятий[ВРЕМЯ ОКОНЧАНИЯ]),СписокЗанятий[УНИКАЛЬНЫЕ]),СписокЗанятий[УНИКАЛЬНЫЕ],0),2),0)","v":0},{"$f":"IFERROR(INDEX(СписокЗанятий[],MATCH(SUMPRODUCT((СписокЗанятий[ДЕНЬ]=РасписаниеЗанятий[[#Headers],[ПОНЕДЕЛЬНИК]])*(ROUNDDOWN($B49,10)>=ROUNDDOWN(СписокЗанятий[ВРЕМЯ НАЧАЛА],10))*($B49<=СписокЗанятий[ВРЕМЯ ОКОНЧАНИЯ]),СписокЗанятий[УНИКАЛЬНЫЕ]),СписокЗанятий[УНИКАЛЬНЫЕ],0),2),0)","v":0},{"$f":"IFERROR(INDEX(СписокЗанятий[],MATCH(SUMPRODUCT((СписокЗанятий[ДЕНЬ]=РасписаниеЗанятий[[#Headers],[ВТОРНИК]])*(ROUNDDOWN($B49,10)>=ROUNDDOWN(СписокЗанятий[ВРЕМЯ НАЧАЛА],10))*($B49<=СписокЗанятий[ВРЕМЯ ОКОНЧАНИЯ]),СписокЗанятий[УНИКАЛЬНЫЕ]),СписокЗанятий[УНИКАЛЬНЫЕ],0),2),0)","v":0},{"$f":"IFERROR(INDEX(СписокЗанятий[],MATCH(SUMPRODUCT((СписокЗанятий[ДЕНЬ]=РасписаниеЗанятий[[#Headers],[СРЕДА]])*(ROUNDDOWN($B49,10)>=ROUNDDOWN(СписокЗанятий[ВРЕМЯ НАЧАЛА],10))*($B49<=СписокЗанятий[ВРЕМЯ ОКОНЧАНИЯ]),СписокЗанятий[УНИКАЛЬНЫЕ]),СписокЗанятий[УНИКАЛЬНЫЕ],0),2),0)","v":0},{"$f":"IFERROR(INDEX(СписокЗанятий[],MATCH(SUMPRODUCT((СписокЗанятий[ДЕНЬ]=РасписаниеЗанятий[[#Headers],[ЧЕТВЕРГ]])*(ROUNDDOWN($B49,10)>=ROUNDDOWN(СписокЗанятий[ВРЕМЯ НАЧАЛА],10))*($B49<=СписокЗанятий[ВРЕМЯ ОКОНЧАНИЯ]),СписокЗанятий[УНИКАЛЬНЫЕ]),СписокЗанятий[УНИКАЛЬНЫЕ],0),2),0)","v":0},{"$f":"IFERROR(INDEX(СписокЗанятий[],MATCH(SUMPRODUCT((СписокЗанятий[ДЕНЬ]=РасписаниеЗанятий[[#Headers],[ПЯТНИЦА]])*(ROUNDDOWN($B49,10)>=ROUNDDOWN(СписокЗанятий[ВРЕМЯ НАЧАЛА],10))*($B49<=СписокЗанятий[ВРЕМЯ ОКОНЧАНИЯ]),СписокЗанятий[УНИКАЛЬНЫЕ]),СписокЗанятий[УНИКАЛЬНЫЕ],0),2),0)","v":0},{"$f":"IFERROR(INDEX(СписокЗанятий[],MATCH(SUMPRODUCT((СписокЗанятий[ДЕНЬ]=РасписаниеЗанятий[[#Headers],[СУББОТА]])*(ROUNDDOWN($B49,10)>=ROUNDDOWN(СписокЗанятий[ВРЕМЯ НАЧАЛА],10))*($B49<=СписокЗанятий[ВРЕМЯ ОКОНЧАНИЯ]),СписокЗанятий[УНИКАЛЬНЫЕ]),СписокЗанятий[УНИКАЛЬНЫЕ],0),2),0)","v":0}]
[null,"19:30:00",{"$f":"IFERROR(INDEX(СписокЗанятий[],MATCH(SUMPRODUCT((СписокЗанятий[ДЕНЬ]=РасписаниеЗанятий[[#Headers],[ВОСКРЕСЕНЬЕ]])*(ROUNDDOWN($B50,10)>=ROUNDDOWN(СписокЗанятий[ВРЕМЯ НАЧАЛА],10))*($B50<=СписокЗанятий[ВРЕМЯ ОКОНЧАНИЯ]),СписокЗанятий[УНИКАЛЬНЫЕ]),СписокЗанятий[УНИКАЛЬНЫЕ],0),2),0)","v":0},{"$f":"IFERROR(INDEX(СписокЗанятий[],MATCH(SUMPRODUCT((СписокЗанятий[ДЕНЬ]=РасписаниеЗанятий[[#Headers],[ПОНЕДЕЛЬНИК]])*(ROUNDDOWN($B50,10)>=ROUNDDOWN(СписокЗанятий[ВРЕМЯ НАЧАЛА],10))*($B50<=СписокЗанятий[ВРЕМЯ ОКОНЧАНИЯ]),СписокЗанятий[УНИКАЛЬНЫЕ]),СписокЗанятий[УНИКАЛЬНЫЕ],0),2),0)","v":0},{"$f":"IFERROR(INDEX(СписокЗанятий[],MATCH(SUMPRODUCT((СписокЗанятий[ДЕНЬ]=РасписаниеЗанятий[[#Headers],[ВТОРНИК]])*(ROUNDDOWN($B50,10)>=ROUNDDOWN(СписокЗанятий[ВРЕМЯ НАЧАЛА],10))*($B50<=СписокЗанятий[ВРЕМЯ ОКОНЧАНИЯ]),СписокЗанятий[УНИКАЛЬНЫЕ]),СписокЗанятий[УНИКАЛЬНЫЕ],0),2),0)","v":0},{"$f":"IFERROR(INDEX(СписокЗанятий[],MATCH(SUMPRODUCT((СписокЗанятий[ДЕНЬ]=РасписаниеЗанятий[[#Headers],[СРЕДА]])*(ROUNDDOWN($B50,10)>=ROUNDDOWN(СписокЗанятий[ВРЕМЯ НАЧАЛА],10))*($B50<=СписокЗанятий[ВРЕМЯ ОКОНЧАНИЯ]),СписокЗанятий[УНИКАЛЬНЫЕ]),СписокЗанятий[УНИКАЛЬНЫЕ],0),2),0)","v":0},{"$f":"IFERROR(INDEX(СписокЗанятий[],MATCH(SUMPRODUCT((СписокЗанятий[ДЕНЬ]=РасписаниеЗанятий[[#Headers],[ЧЕТВЕРГ]])*(ROUNDDOWN($B50,10)>=ROUNDDOWN(СписокЗанятий[ВРЕМЯ НАЧАЛА],10))*($B50<=СписокЗанятий[ВРЕМЯ ОКОНЧАНИЯ]),СписокЗанятий[УНИКАЛЬНЫЕ]),СписокЗанятий[УНИКАЛЬНЫЕ],0),2),0)","v":0},{"$f":"IFERROR(INDEX(СписокЗанятий[],MATCH(SUMPRODUCT((СписокЗанятий[ДЕНЬ]=РасписаниеЗанятий[[#Headers],[ПЯТНИЦА]])*(ROUNDDOWN($B50,10)>=ROUNDDOWN(СписокЗанятий[ВРЕМЯ НАЧАЛА],10))*($B50<=СписокЗанятий[ВРЕМЯ ОКОНЧАНИЯ]),СписокЗанятий[УНИКАЛЬНЫЕ]),СписокЗанятий[УНИКАЛЬНЫЕ],0),2),0)","v":0},{"$f":"IFERROR(INDEX(СписокЗанятий[],MATCH(SUMPRODUCT((СписокЗанятий[ДЕНЬ]=РасписаниеЗанятий[[#Headers],[СУББОТА]])*(ROUNDDOWN($B50,10)>=ROUNDDOWN(СписокЗанятий[ВРЕМЯ НАЧАЛА],10))*($B50<=СписокЗанятий[ВРЕМЯ ОКОНЧАНИЯ]),СписокЗанятий[УНИКАЛЬНЫЕ]),СписокЗанятий[УНИКАЛЬНЫЕ],0),2),0)","v":0}]
[null,"19:45:00",{"$f":"IFERROR(INDEX(СписокЗанятий[],MATCH(SUMPRODUCT((СписокЗанятий[ДЕНЬ]=РасписаниеЗанятий[[#Headers],[ВОСКРЕСЕНЬЕ]])*(ROUNDDOWN($B51,10)>=ROUNDDOWN(СписокЗанятий[ВРЕМЯ НАЧАЛА],10))*($B51<=СписокЗанятий[ВРЕМЯ ОКОНЧАНИЯ]),СписокЗанятий[УНИКАЛЬНЫЕ]),СписокЗанятий[УНИКАЛЬНЫЕ],0),2),0)","v":0},{"$f":"IFERROR(INDEX(СписокЗанятий[],MATCH(SUMPRODUCT((СписокЗанятий[ДЕНЬ]=РасписаниеЗанятий[[#Headers],[ПОНЕДЕЛЬНИК]])*(ROUNDDOWN($B51,10)>=ROUNDDOWN(СписокЗанятий[ВРЕМЯ НАЧАЛА],10))*($B51<=СписокЗанятий[ВРЕМЯ ОКОНЧАНИЯ]),СписокЗанятий[УНИКАЛЬНЫЕ]),СписокЗанятий[УНИКАЛЬНЫЕ],0),2),0)","v":0},{"$f":"IFERROR(INDEX(СписокЗанятий[],MATCH(SUMPRODUCT((СписокЗанятий[ДЕНЬ]=РасписаниеЗанятий[[#Headers],[ВТОРНИК]])*(ROUNDDOWN($B51,10)>=ROUNDDOWN(СписокЗанятий[ВРЕМЯ НАЧАЛА],10))*($B51<=СписокЗанятий[ВРЕМЯ ОКОНЧАНИЯ]),СписокЗанятий[УНИКАЛЬНЫЕ]),СписокЗанятий[УНИКАЛЬНЫЕ],0),2),0)","v":0},{"$f":"IFERROR(INDEX(СписокЗанятий[],MATCH(SUMPRODUCT((СписокЗанятий[ДЕНЬ]=РасписаниеЗанятий[[#Headers],[СРЕДА]])*(ROUNDDOWN($B51,10)>=ROUNDDOWN(СписокЗанятий[ВРЕМЯ НАЧАЛА],10))*($B51<=СписокЗанятий[ВРЕМЯ ОКОНЧАНИЯ]),СписокЗанятий[УНИКАЛЬНЫЕ]),СписокЗанятий[УНИКАЛЬНЫЕ],0),2),0)","v":0},{"$f":"IFERROR(INDEX(СписокЗанятий[],MATCH(SUMPRODUCT((СписокЗанятий[ДЕНЬ]=РасписаниеЗанятий[[#Headers],[ЧЕТВЕРГ]])*(ROUNDDOWN($B51,10)>=ROUNDDOWN(СписокЗанятий[ВРЕМЯ НАЧАЛА],10))*($B51<=СписокЗанятий[ВРЕМЯ ОКОНЧАНИЯ]),СписокЗанятий[УНИКАЛЬНЫЕ]),СписокЗанятий[УНИКАЛЬНЫЕ],0),2),0)","v":0},{"$f":"IFERROR(INDEX(СписокЗанятий[],MATCH(SUMPRODUCT((СписокЗанятий[ДЕНЬ]=РасписаниеЗанятий[[#Headers],[ПЯТНИЦА]])*(ROUNDDOWN($B51,10)>=ROUNDDOWN(СписокЗанятий[ВРЕМЯ НАЧАЛА],10))*($B51<=СписокЗанятий[ВРЕМЯ ОКОНЧАНИЯ]),СписокЗанятий[УНИКАЛЬНЫЕ]),СписокЗанятий[УНИКАЛЬНЫЕ],0),2),0)","v":0},{"$f":"IFERROR(INDEX(СписокЗанятий[],MATCH(SUMPRODUCT((СписокЗанятий[ДЕНЬ]=РасписаниеЗанятий[[#Headers],[СУББОТА]])*(ROUNDDOWN($B51,10)>=ROUNDDOWN(СписокЗанятий[ВРЕМЯ НАЧАЛА],10))*($B51<=СписокЗанятий[ВРЕМЯ ОКОНЧАНИЯ]),СписокЗанятий[УНИКАЛЬНЫЕ]),СписокЗанятий[УНИКАЛЬНЫЕ],0),2),0)","v":0}]
[null,"20:00:00",{"$f":"IFERROR(INDEX(СписокЗанятий[],MATCH(SUMPRODUCT((СписокЗанятий[ДЕНЬ]=РасписаниеЗанятий[[#Headers],[ВОСКРЕСЕНЬЕ]])*(ROUNDDOWN($B52,10)>=ROUNDDOWN(СписокЗанятий[ВРЕМЯ НАЧАЛА],10))*($B52<=СписокЗанятий[ВРЕМЯ ОКОНЧАНИЯ]),СписокЗанятий[УНИКАЛЬНЫЕ]),СписокЗанятий[УНИКАЛЬНЫЕ],0),2),0)","v":0},{"$f":"IFERROR(INDEX(СписокЗанятий[],MATCH(SUMPRODUCT((СписокЗанятий[ДЕНЬ]=РасписаниеЗанятий[[#Headers],[ПОНЕДЕЛЬНИК]])*(ROUNDDOWN($B52,10)>=ROUNDDOWN(СписокЗанятий[ВРЕМЯ НАЧАЛА],10))*($B52<=СписокЗанятий[ВРЕМЯ ОКОНЧАНИЯ]),СписокЗанятий[УНИКАЛЬНЫЕ]),СписокЗанятий[УНИКАЛЬНЫЕ],0),2),0)","v":0},{"$f":"IFERROR(INDEX(СписокЗанятий[],MATCH(SUMPRODUCT((СписокЗанятий[ДЕНЬ]=РасписаниеЗанятий[[#Headers],[ВТОРНИК]])*(ROUNDDOWN($B52,10)>=ROUNDDOWN(СписокЗанятий[ВРЕМЯ НАЧАЛА],10))*($B52<=СписокЗанятий[ВРЕМЯ ОКОНЧАНИЯ]),СписокЗанятий[УНИКАЛЬНЫЕ]),СписокЗанятий[УНИКАЛЬНЫЕ],0),2),0)","v":0},{"$f":"IFERROR(INDEX(СписокЗанятий[],MATCH(SUMPRODUCT((СписокЗанятий[ДЕНЬ]=РасписаниеЗанятий[[#Headers],[СРЕДА]])*(ROUNDDOWN($B52,10)>=ROUNDDOWN(СписокЗанятий[ВРЕМЯ НАЧАЛА],10))*($B52<=СписокЗанятий[ВРЕМЯ ОКОНЧАНИЯ]),СписокЗанятий[УНИКАЛЬНЫЕ]),СписокЗанятий[УНИКАЛЬНЫЕ],0),2),0)","v":0},{"$f":"IFERROR(INDEX(СписокЗанятий[],MATCH(SUMPRODUCT((СписокЗанятий[ДЕНЬ]=РасписаниеЗанятий[[#Headers],[ЧЕТВЕРГ]])*(ROUNDDOWN($B52,10)>=ROUNDDOWN(СписокЗанятий[ВРЕМЯ НАЧАЛА],10))*($B52<=СписокЗанятий[ВРЕМЯ ОКОНЧАНИЯ]),СписокЗанятий[УНИКАЛЬНЫЕ]),СписокЗанятий[УНИКАЛЬНЫЕ],0),2),0)","v":0},{"$f":"IFERROR(INDEX(СписокЗанятий[],MATCH(SUMPRODUCT((СписокЗанятий[ДЕНЬ]=РасписаниеЗанятий[[#Headers],[ПЯТНИЦА]])*(ROUNDDOWN($B52,10)>=ROUNDDOWN(СписокЗанятий[ВРЕМЯ НАЧАЛА],10))*($B52<=СписокЗанятий[ВРЕМЯ ОКОНЧАНИЯ]),СписокЗанятий[УНИКАЛЬНЫЕ]),СписокЗанятий[УНИКАЛЬНЫЕ],0),2),0)","v":0},{"$f":"IFERROR(INDEX(СписокЗанятий[],MATCH(SUMPRODUCT((СписокЗанятий[ДЕНЬ]=РасписаниеЗанятий[[#Headers],[СУББОТА]])*(ROUNDDOWN($B52,10)>=ROUNDDOWN(СписокЗанятий[ВРЕМЯ НАЧАЛА],10))*($B52<=СписокЗанятий[ВРЕМЯ ОКОНЧАНИЯ]),СписокЗанятий[УНИКАЛЬНЫЕ]),СписокЗанятий[УНИКАЛЬНЫЕ],0),2),0)","v":0}]
[null,"20:15:00",{"$f":"IFERROR(INDEX(СписокЗанятий[],MATCH(SUMPRODUCT((СписокЗанятий[ДЕНЬ]=РасписаниеЗанятий[[#Headers],[ВОСКРЕСЕНЬЕ]])*(ROUNDDOWN($B53,10)>=ROUNDDOWN(СписокЗанятий[ВРЕМЯ НАЧАЛА],10))*($B53<=СписокЗанятий[ВРЕМЯ ОКОНЧАНИЯ]),СписокЗанятий[УНИКАЛЬНЫЕ]),СписокЗанятий[УНИКАЛЬНЫЕ],0),2),0)","v":0},{"$f":"IFERROR(INDEX(СписокЗанятий[],MATCH(SUMPRODUCT((СписокЗанятий[ДЕНЬ]=РасписаниеЗанятий[[#Headers],[ПОНЕДЕЛЬНИК]])*(ROUNDDOWN($B53,10)>=ROUNDDOWN(СписокЗанятий[ВРЕМЯ НАЧАЛА],10))*($B53<=СписокЗанятий[ВРЕМЯ ОКОНЧАНИЯ]),СписокЗанятий[УНИКАЛЬНЫЕ]),СписокЗанятий[УНИКАЛЬНЫЕ],0),2),0)","v":0},{"$f":"IFERROR(INDEX(СписокЗанятий[],MATCH(SUMPRODUCT((СписокЗанятий[ДЕНЬ]=РасписаниеЗанятий[[#Headers],[ВТОРНИК]])*(ROUNDDOWN($B53,10)>=ROUNDDOWN(СписокЗанятий[ВРЕМЯ НАЧАЛА],10))*($B53<=СписокЗанятий[ВРЕМЯ ОКОНЧАНИЯ]),СписокЗанятий[УНИКАЛЬНЫЕ]),СписокЗанятий[УНИКАЛЬНЫЕ],0),2),0)","v":0},{"$f":"IFERROR(INDEX(СписокЗанятий[],MATCH(SUMPRODUCT((СписокЗанятий[ДЕНЬ]=РасписаниеЗанятий[[#Headers],[СРЕДА]])*(ROUNDDOWN($B53,10)>=ROUNDDOWN(СписокЗанятий[ВРЕМЯ НАЧАЛА],10))*($B53<=СписокЗанятий[ВРЕМЯ ОКОНЧАНИЯ]),СписокЗанятий[УНИКАЛЬНЫЕ]),СписокЗанятий[УНИКАЛЬНЫЕ],0),2),0)","v":0},{"$f":"IFERROR(INDEX(СписокЗанятий[],MATCH(SUMPRODUCT((СписокЗанятий[ДЕНЬ]=РасписаниеЗанятий[[#Headers],[ЧЕТВЕРГ]])*(ROUNDDOWN($B53,10)>=ROUNDDOWN(СписокЗанятий[ВРЕМЯ НАЧАЛА],10))*($B53<=СписокЗанятий[ВРЕМЯ ОКОНЧАНИЯ]),СписокЗанятий[УНИКАЛЬНЫЕ]),СписокЗанятий[УНИКАЛЬНЫЕ],0),2),0)","v":0},{"$f":"IFERROR(INDEX(СписокЗанятий[],MATCH(SUMPRODUCT((СписокЗанятий[ДЕНЬ]=РасписаниеЗанятий[[#Headers],[ПЯТНИЦА]])*(ROUNDDOWN($B53,10)>=ROUNDDOWN(СписокЗанятий[ВРЕМЯ НАЧАЛА],10))*($B53<=СписокЗанятий[ВРЕМЯ ОКОНЧАНИЯ]),СписокЗанятий[УНИКАЛЬНЫЕ]),СписокЗанятий[УНИКАЛЬНЫЕ],0),2),0)","v":0},{"$f":"IFERROR(INDEX(СписокЗанятий[],MATCH(SUMPRODUCT((СписокЗанятий[ДЕНЬ]=РасписаниеЗанятий[[#Headers],[СУББОТА]])*(ROUNDDOWN($B53,10)>=ROUNDDOWN(СписокЗанятий[ВРЕМЯ НАЧАЛА],10))*($B53<=СписокЗанятий[ВРЕМЯ ОКОНЧАНИЯ]),СписокЗанятий[УНИКАЛЬНЫЕ]),СписокЗанятий[УНИКАЛЬНЫЕ],0),2),0)","v":0}]
[null,"20:30:00",{"$f":"IFERROR(INDEX(СписокЗанятий[],MATCH(SUMPRODUCT((СписокЗанятий[ДЕНЬ]=РасписаниеЗанятий[[#Headers],[ВОСКРЕСЕНЬЕ]])*(ROUNDDOWN($B54,10)>=ROUNDDOWN(СписокЗанятий[ВРЕМЯ НАЧАЛА],10))*($B54<=СписокЗанятий[ВРЕМЯ ОКОНЧАНИЯ]),СписокЗанятий[УНИКАЛЬНЫЕ]),СписокЗанятий[УНИКАЛЬНЫЕ],0),2),0)","v":0},{"$f":"IFERROR(INDEX(СписокЗанятий[],MATCH(SUMPRODUCT((СписокЗанятий[ДЕНЬ]=РасписаниеЗанятий[[#Headers],[ПОНЕДЕЛЬНИК]])*(ROUNDDOWN($B54,10)>=ROUNDDOWN(СписокЗанятий[ВРЕМЯ НАЧАЛА],10))*($B54<=СписокЗанятий[ВРЕМЯ ОКОНЧАНИЯ]),СписокЗанятий[УНИКАЛЬНЫЕ]),СписокЗанятий[УНИКАЛЬНЫЕ],0),2),0)","v":0},{"$f":"IFERROR(INDEX(СписокЗанятий[],MATCH(SUMPRODUCT((СписокЗанятий[ДЕНЬ]=РасписаниеЗанятий[[#Headers],[ВТОРНИК]])*(ROUNDDOWN($B54,10)>=ROUNDDOWN(СписокЗанятий[ВРЕМЯ НАЧАЛА],10))*($B54<=СписокЗанятий[ВРЕМЯ ОКОНЧАНИЯ]),СписокЗанятий[УНИКАЛЬНЫЕ]),СписокЗанятий[УНИКАЛЬНЫЕ],0),2),0)","v":0},{"$f":"IFERROR(INDEX(СписокЗанятий[],MATCH(SUMPRODUCT((СписокЗанятий[ДЕНЬ]=РасписаниеЗанятий[[#Headers],[СРЕДА]])*(ROUNDDOWN($B54,10)>=ROUNDDOWN(СписокЗанятий[ВРЕМЯ НАЧАЛА],10))*($B54<=СписокЗанятий[ВРЕМЯ ОКОНЧАНИЯ]),СписокЗанятий[УНИКАЛЬНЫЕ]),СписокЗанятий[УНИКАЛЬНЫЕ],0),2),0)","v":0},{"$f":"IFERROR(INDEX(СписокЗанятий[],MATCH(SUMPRODUCT((СписокЗанятий[ДЕНЬ]=РасписаниеЗанятий[[#Headers],[ЧЕТВЕРГ]])*(ROUNDDOWN($B54,10)>=ROUNDDOWN(СписокЗанятий[ВРЕМЯ НАЧАЛА],10))*($B54<=СписокЗанятий[ВРЕМЯ ОКОНЧАНИЯ]),СписокЗанятий[УНИКАЛЬНЫЕ]),СписокЗанятий[УНИКАЛЬНЫЕ],0),2),0)","v":0},{"$f":"IFERROR(INDEX(СписокЗанятий[],MATCH(SUMPRODUCT((СписокЗанятий[ДЕНЬ]=РасписаниеЗанятий[[#Headers],[ПЯТНИЦА]])*(ROUNDDOWN($B54,10)>=ROUNDDOWN(СписокЗанятий[ВРЕМЯ НАЧАЛА],10))*($B54<=СписокЗанятий[ВРЕМЯ ОКОНЧАНИЯ]),СписокЗанятий[УНИКАЛЬНЫЕ]),СписокЗанятий[УНИКАЛЬНЫЕ],0),2),0)","v":0},{"$f":"IFERROR(INDEX(СписокЗанятий[],MATCH(SUMPRODUCT((СписокЗанятий[ДЕНЬ]=РасписаниеЗанятий[[#Headers],[СУББОТА]])*(ROUNDDOWN($B54,10)>=ROUNDDOWN(СписокЗанятий[ВРЕМЯ НАЧАЛА],10))*($B54<=СписокЗанятий[ВРЕМЯ ОКОНЧАНИЯ]),СписокЗанятий[УНИКАЛЬНЫЕ]),СписокЗанятий[УНИКАЛЬНЫЕ],0),2),0)","v":0}]
[null,"20:45:00",{"$f":"IFERROR(INDEX(СписокЗанятий[],MATCH(SUMPRODUCT((СписокЗанятий[ДЕНЬ]=РасписаниеЗанятий[[#Headers],[ВОСКРЕСЕНЬЕ]])*(ROUNDDOWN($B55,10)>=ROUNDDOWN(СписокЗанятий[ВРЕМЯ НАЧАЛА],10))*($B55<=СписокЗанятий[ВРЕМЯ ОКОНЧАНИЯ]),СписокЗанятий[УНИКАЛЬНЫЕ]),СписокЗанятий[УНИКАЛЬНЫЕ],0),2),0)","v":0},{"$f":"IFERROR(INDEX(СписокЗанятий[],MATCH(SUMPRODUCT((СписокЗанятий[ДЕНЬ]=РасписаниеЗанятий[[#Headers],[ПОНЕДЕЛЬНИК]])*(ROUNDDOWN($B55,10)>=ROUNDDOWN(СписокЗанятий[ВРЕМЯ НАЧАЛА],10))*($B55<=СписокЗанятий[ВРЕМЯ ОКОНЧАНИЯ]),СписокЗанятий[УНИКАЛЬНЫЕ]),СписокЗанятий[УНИКАЛЬНЫЕ],0),2),0)","v":0},{"$f":"IFERROR(INDEX(СписокЗанятий[],MATCH(SUMPRODUCT((СписокЗанятий[ДЕНЬ]=РасписаниеЗанятий[[#Headers],[ВТОРНИК]])*(ROUNDDOWN($B55,10)>=ROUNDDOWN(СписокЗанятий[ВРЕМЯ НАЧАЛА],10))*($B55<=СписокЗанятий[ВРЕМЯ ОКОНЧАНИЯ]),СписокЗанятий[УНИКАЛЬНЫЕ]),СписокЗанятий[УНИКАЛЬНЫЕ],0),2),0)","v":0},{"$f":"IFERROR(INDEX(СписокЗанятий[],MATCH(SUMPRODUCT((СписокЗанятий[ДЕНЬ]=РасписаниеЗанятий[[#Headers],[СРЕДА]])*(ROUNDDOWN($B55,10)>=ROUNDDOWN(СписокЗанятий[ВРЕМЯ НАЧАЛА],10))*($B55<=СписокЗанятий[ВРЕМЯ ОКОНЧАНИЯ]),СписокЗанятий[УНИКАЛЬНЫЕ]),СписокЗанятий[УНИКАЛЬНЫЕ],0),2),0)","v":0},{"$f":"IFERROR(INDEX(СписокЗанятий[],MATCH(SUMPRODUCT((СписокЗанятий[ДЕНЬ]=РасписаниеЗанятий[[#Headers],[ЧЕТВЕРГ]])*(ROUNDDOWN($B55,10)>=ROUNDDOWN(СписокЗанятий[ВРЕМЯ НАЧАЛА],10))*($B55<=СписокЗанятий[ВРЕМЯ ОКОНЧАНИЯ]),СписокЗанятий[УНИКАЛЬНЫЕ]),СписокЗанятий[УНИКАЛЬНЫЕ],0),2),0)","v":0},{"$f":"IFERROR(INDEX(СписокЗанятий[],MATCH(SUMPRODUCT((СписокЗанятий[ДЕНЬ]=РасписаниеЗанятий[[#Headers],[ПЯТНИЦА]])*(ROUNDDOWN($B55,10)>=ROUNDDOWN(СписокЗанятий[ВРЕМЯ НАЧАЛА],10))*($B55<=СписокЗанятий[ВРЕМЯ ОКОНЧАНИЯ]),СписокЗанятий[УНИКАЛЬНЫЕ]),СписокЗанятий[УНИКАЛЬНЫЕ],0),2),0)","v":0},{"$f":"IFERROR(INDEX(СписокЗанятий[],MATCH(SUMPRODUCT((СписокЗанятий[ДЕНЬ]=РасписаниеЗанятий[[#Headers],[СУББОТА]])*(ROUNDDOWN($B55,10)>=ROUNDDOWN(СписокЗанятий[ВРЕМЯ НАЧАЛА],10))*($B55<=СписокЗанятий[ВРЕМЯ ОКОНЧАНИЯ]),СписокЗанятий[УНИКАЛЬНЫЕ]),СписокЗанятий[УНИКАЛЬНЫЕ],0),2),0)","v":0}]
[null,"21:00:00",{"$f":"IFERROR(INDEX(СписокЗанятий[],MATCH(SUMPRODUCT((СписокЗанятий[ДЕНЬ]=РасписаниеЗанятий[[#Headers],[ВОСКРЕСЕНЬЕ]])*(ROUNDDOWN($B56,10)>=ROUNDDOWN(СписокЗанятий[ВРЕМЯ НАЧАЛА],10))*($B56<=СписокЗанятий[ВРЕМЯ ОКОНЧАНИЯ]),СписокЗанятий[УНИКАЛЬНЫЕ]),СписокЗанятий[УНИКАЛЬНЫЕ],0),2),0)","v":0},{"$f":"IFERROR(INDEX(СписокЗанятий[],MATCH(SUMPRODUCT((СписокЗанятий[ДЕНЬ]=РасписаниеЗанятий[[#Headers],[ПОНЕДЕЛЬНИК]])*(ROUNDDOWN($B56,10)>=ROUNDDOWN(СписокЗанятий[ВРЕМЯ НАЧАЛА],10))*($B56<=СписокЗанятий[ВРЕМЯ ОКОНЧАНИЯ]),СписокЗанятий[УНИКАЛЬНЫЕ]),СписокЗанятий[УНИКАЛЬНЫЕ],0),2),0)","v":0},{"$f":"IFERROR(INDEX(СписокЗанятий[],MATCH(SUMPRODUCT((СписокЗанятий[ДЕНЬ]=РасписаниеЗанятий[[#Headers],[ВТОРНИК]])*(ROUNDDOWN($B56,10)>=ROUNDDOWN(СписокЗанятий[ВРЕМЯ НАЧАЛА],10))*($B56<=СписокЗанятий[ВРЕМЯ ОКОНЧАНИЯ]),СписокЗанятий[УНИКАЛЬНЫЕ]),СписокЗанятий[УНИКАЛЬНЫЕ],0),2),0)","v":0},{"$f":"IFERROR(INDEX(СписокЗанятий[],MATCH(SUMPRODUCT((СписокЗанятий[ДЕНЬ]=РасписаниеЗанятий[[#Headers],[СРЕДА]])*(ROUNDDOWN($B56,10)>=ROUNDDOWN(СписокЗанятий[ВРЕМЯ НАЧАЛА],10))*($B56<=СписокЗанятий[ВРЕМЯ ОКОНЧАНИЯ]),СписокЗанятий[УНИКАЛЬНЫЕ]),СписокЗанятий[УНИКАЛЬНЫЕ],0),2),0)","v":0},{"$f":"IFERROR(INDEX(СписокЗанятий[],MATCH(SUMPRODUCT((СписокЗанятий[ДЕНЬ]=РасписаниеЗанятий[[#Headers],[ЧЕТВЕРГ]])*(ROUNDDOWN($B56,10)>=ROUNDDOWN(СписокЗанятий[ВРЕМЯ НАЧАЛА],10))*($B56<=СписокЗанятий[ВРЕМЯ ОКОНЧАНИЯ]),СписокЗанятий[УНИКАЛЬНЫЕ]),СписокЗанятий[УНИКАЛЬНЫЕ],0),2),0)","v":0},{"$f":"IFERROR(INDEX(СписокЗанятий[],MATCH(SUMPRODUCT((СписокЗанятий[ДЕНЬ]=РасписаниеЗанятий[[#Headers],[ПЯТНИЦА]])*(ROUNDDOWN($B56,10)>=ROUNDDOWN(СписокЗанятий[ВРЕМЯ НАЧАЛА],10))*($B56<=СписокЗанятий[ВРЕМЯ ОКОНЧАНИЯ]),СписокЗанятий[УНИКАЛЬНЫЕ]),СписокЗанятий[УНИКАЛЬНЫЕ],0),2),0)","v":0},{"$f":"IFERROR(INDEX(СписокЗанятий[],MATCH(SUMPRODUCT((СписокЗанятий[ДЕНЬ]=РасписаниеЗанятий[[#Headers],[СУББОТА]])*(ROUNDDOWN($B56,10)>=ROUNDDOWN(СписокЗанятий[ВРЕМЯ НАЧАЛА],10))*($B56<=СписокЗанятий[ВРЕМЯ ОКОНЧАНИЯ]),СписокЗанятий[УНИКАЛЬНЫЕ]),СписокЗанятий[УНИКАЛЬНЫЕ],0),2),0)","v":0}]

{"sheet":"Список занятий","index":1,"n_rows":10,"n_cols":8,"rows_kept":10,"merged":[[0,1,0,5],[0,6,0,7]]}
[null,"СПИСОК ЗАНЯТИЙ",{"$nulls":4},"Расписание занятий"]
[null,"ЗАНЯТИЕ","Код","ДЕНЬ","РАСПОЛОЖЕНИЕ","ВРЕМЯ НАЧАЛА","ВРЕМЯ ОКОНЧАНИЯ","УНИКАЛЬНЫЕ"]
[null,"Написание документации","ДОК","ПОНЕДЕЛЬНИК","Корпус А","13:00:00","14:00:00",{"$f":"ROW()-ROW(СписокЗанятий[[#Headers],[УНИКАЛЬНЫЕ]])","v":1}]
[null,"Написание документации","ДОК","СРЕДА","Корпус А","13:00:00","14:00:00",{"$f":"ROW()-ROW(СписокЗанятий[[#Headers],[УНИКАЛЬНЫЕ]])","v":2}]
[null,"Ораторское искусство","ОРИС","ПОНЕДЕЛЬНИК","Корпус Б","16:00:00","17:00:00",{"$f":"ROW()-ROW(СписокЗанятий[[#Headers],[УНИКАЛЬНЫЕ]])","v":3}]
[null,"Физкультура","ФИЗ","ВТОРНИК","Корпус Б","11:00:00","12:00:00",{"$f":"ROW()-ROW(СписокЗанятий[[#Headers],[УНИКАЛЬНЫЕ]])","v":4}]
[null,"Физкультура","ФИЗ","ЧЕТВЕРГ","Корпус Б","11:00:00","12:00:00",{"$f":"ROW()-ROW(СписокЗанятий[[#Headers],[УНИКАЛЬНЫЕ]])","v":5}]
[null,"Алгебра","АЛГ","ПОНЕДЕЛЬНИК","Корпус В","08:10:00","09:15:00",{"$f":"ROW()-ROW(СписокЗанятий[[#Headers],[УНИКАЛЬНЫЕ]])","v":6}]
[null,"Алгебра","АЛГ","СРЕДА","Корпус В","08:10:00","09:15:00",{"$f":"ROW()-ROW(СписокЗанятий[[#Headers],[УНИКАЛЬНЫЕ]])","v":7}]
[null,"Алгебра","АЛГ","ПЯТНИЦА","Корпус В","08:10:00","09:15:00",{"$f":"ROW()-ROW(СписокЗанятий[[#Headers],[УНИКАЛЬНЫЕ]])","v":8}]